Body Name,Trans. Date,Department Code,Department,Expense Area Code,Expense Area,Expense type code,Expense type,Amount Paid (�),Supplier name,Extended description,TransNo,Period
Rother District Council,22/03/2018,101RESOURCES,Resources,20239,Computer Services,D2635,Computer Licences,"2,300.00",Granicus-Firmstep Ltd,Computer Licences - Computer Licence Renewal,2024098,202101
Rother District Council,30/03/2018,101RESOURCES,Resources,20239,Computer Services,D2635,Computer Licences,"1,000.00",Granicus-Firmstep Ltd,Computer Licences - Computer Licence Renewal,2024099,202101
Rother District Council,11/09/2018,101RESOURCES,Resources,20239,Computer Services,D2635,Computer Licences,"-6,551.25",Granicus-Firmstep Ltd,Computer Licences - Computer Licence Renewal,2024097,202101
Rother District Council,11/09/2018,101RESOURCES,Resources,20239,Computer Services,D2635,Computer Licences,"6,551.25",Granicus-Firmstep Ltd,Computer Licences,2024040,202101
Rother District Council,30/08/2019,081ACQUISIT,"Acquisitions, Transformation and Regeneration",20243,Business Improvement,A2203,Training,300.00,GeoPlace LLP,Training,2019320,202101
Rother District Council,05/05/2020,031RESOURCES,Chief Executive & Corporate Core,20170,Communications-Postages,D2626,Postages,207.93,Royal Mail Group Ltd,Postages - Response Service-Royal Mail Chg,2024509,202102
Rother District Council,05/05/2020,031RESOURCES,Chief Executive & Corporate Core,20170,Communications-Postages,D2626,Postages,0.48,Royal Mail Group Ltd,Postages - Response Service-Royal Mail Chg,2024509,202102
Rother District Council,11/05/2020,091HOUSING,Housing and Community Services,20206,Syrians,D2513,Hired and Contracted services,263.82,Lloyds Bank,Hired and contracted services - Syrian Misc,2023963,202101
Rother District Council,11/05/2020,101RESOURCES,Resources,20239,Computer Services,D2635,Computer Licences,9.99,Lloyds Bank,Computer Licences - Domain Name Renewal,2023964,202101
Rother District Council,11/05/2020,101RESOURCES,Resources,20239,Computer Services,D2635,Computer Licences,159.90,Lloyds Bank,Computer Licences - Domain Name Renewal,2023964,202101
Rother District Council,11/05/2020,031RESOURCES,Chief Executive & Corporate Core,20173,Administrative Offices - Town Hall,B2612,Cleaning materials,-83.04,Lloyds Bank,Cleaning materials - Premises,2023962,202101
Rother District Council,11/05/2020,031RESOURCES,Chief Executive & Corporate Core,20276,COVID19 RDC expenditure,D1201,Equipment & Materials,"1,749.75",Lloyds Bank,Equipment & Materials,2023975,202101
Rother District Council,11/05/2020,101RESOURCES,Resources,20239,Computer Services,D2633,Computer Equipment,125.66,Lloyds Bank,Computer Equipment,2023975,202101
Rother District Council,11/05/2020,101RESOURCES,Resources,20239,Computer Services,D2633,Computer Equipment,535.00,Lloyds Bank,Computer Equipment,2023975,202101
Rother District Council,11/05/2020,101RESOURCES,Resources,20239,Computer Services,D2633,Computer Equipment,126.00,Lloyds Bank,Computer Equipment,2023975,202101
Rother District Council,11/05/2020,101RESOURCES,Resources,20239,Computer Services,D2633,Computer Equipment,174.75,Lloyds Bank,Computer Equipment,2023975,202101
Rother District Council,11/05/2020,101RESOURCES,Resources,20239,Computer Services,D2633,Computer Equipment,99.93,Lloyds Bank,Computer Equipment,2023975,202101
Rother District Council,11/05/2020,101RESOURCES,Resources,20239,Computer Services,D2633,Computer Equipment,478.50,Lloyds Bank,Computer Equipment,2023975,202101
Rother District Council,11/05/2020,101RESOURCES,Resources,20239,Computer Services,D2633,Computer Equipment,17.07,Lloyds Bank,Computer Equipment,2023975,202101
Rother District Council,11/05/2020,101RESOURCES,Resources,20239,Computer Services,D2633,Computer Equipment,105.00,Lloyds Bank,Computer Equipment,2023975,202101
Rother District Council,11/05/2020,101RESOURCES,Resources,20239,Computer Services,D2633,Computer Equipment,20.82,Lloyds Bank,Computer Equipment,2023975,202101
Rother District Council,11/05/2020,101RESOURCES,Resources,20239,Computer Services,D2633,Computer Equipment,7.51,Lloyds Bank,Computer Equipment,2023975,202101
Rother District Council,11/05/2020,101RESOURCES,Resources,20239,Computer Services,D2633,Computer Equipment,169.21,Lloyds Bank,Computer Equipment,2023975,202101
Rother District Council,11/05/2020,101RESOURCES,Resources,20239,Computer Services,D2633,Computer Equipment,35.00,Lloyds Bank,Computer Equipment,2023975,202101
Rother District Council,11/05/2020,101RESOURCES,Resources,20239,Computer Services,D2633,Computer Equipment,65.56,Lloyds Bank,Computer Equipment,2023975,202101
Rother District Council,11/05/2020,101RESOURCES,Resources,20239,Computer Services,D2633,Computer Equipment,45.80,Lloyds Bank,Computer Equipment,2023975,202101
Rother District Council,11/05/2020,101RESOURCES,Resources,20239,Computer Services,D2633,Computer Equipment,161.33,Lloyds Bank,Computer Equipment,2023975,202101
Rother District Council,01/06/2020,101RESOURCES,Resources,20209,Corporate management,D2513,Hired and Contracted services,6.03,Lloyds Bank,Bank Charges,2024342,202101
Rother District Council,01/06/2020,101RESOURCES,Resources,20209,Corporate management,D2513,Hired and Contracted services,393.95,Lloyds Bank,Bank Charges,2024343,202101
Rother District Council,01/06/2020,101RESOURCES,Resources,20209,Corporate management,D2513,Hired and Contracted services,850.72,Lloyds Bank,Bank Charges,2024344,202101
Rother District Council,01/06/2020,101RESOURCES,Resources,20209,Corporate management,D2513,Hired and Contracted services,"1,778.58",Lloyds Bank,Bank Charges,2024345,202101
Rother District Council,09/07/2020,091HOUSING,Housing and Community Services,20206,Syrians,D2513,Hired and Contracted services,637.82,Lloyds Bank,Hired and contracted services - Syrian Misc,2023894,202101
Rother District Council,09/07/2020,031RESOURCES,Chief Executive & Corporate Core,20172,Facilities Management,D1201,Equipment & Materials,92.89,Lloyds Bank,Equipment & Materials - Purchase of Tools,2023896,202101
Rother District Council,09/07/2020,031RESOURCES,Chief Executive & Corporate Core,20276,COVID19 RDC expenditure,D1201,Equipment & Materials,200.00,Lloyds Bank,Equipment & materials - Miscellaneous,2023895,202101
Rother District Council,09/07/2020,031RESOURCES,Chief Executive & Corporate Core,20276,COVID19 RDC expenditure,D1201,Equipment & Materials,136.49,Lloyds Bank,Equipment & materials - Miscellaneous,2023895,202101
Rother District Council,09/07/2020,031RESOURCES,Chief Executive & Corporate Core,20276,COVID19 RDC expenditure,D1201,Equipment & Materials,88.50,Lloyds Bank,Equipment & materials - Miscellaneous,2023895,202101
Rother District Council,09/07/2020,031RESOURCES,Chief Executive & Corporate Core,20276,COVID19 RDC expenditure,D1201,Equipment & Materials,140.00,Lloyds Bank,Equipment & materials - Miscellaneous,2023895,202101
Rother District Council,09/07/2020,031RESOURCES,Chief Executive & Corporate Core,20276,COVID19 RDC expenditure,D1201,Equipment & Materials,129.90,Lloyds Bank,Equipment & materials - Miscellaneous,2023895,202101
Rother District Council,09/07/2020,091HOUSING,Housing and Community Services,20107,Camber Beach & Foreshore,D1201,Equipment & Materials,139.97,Lloyds Bank,Equipment & Materials - Electrical Equipment,2023897,202101
Rother District Council,09/07/2020,101RESOURCES,Resources,20239,Computer Services,D2635,Computer Licences,9.99,Lloyds Bank,Computer Licences - Domain Name Renewal,2023897,202101
Rother District Council,09/07/2020,101RESOURCES,Resources,20239,Computer Services,D2635,Computer Licences,79.92,Lloyds Bank,Computer Licences - Domain Name Renewal,2023897,202101
Rother District Council,09/07/2020,101RESOURCES,Resources,20239,Computer Services,D2633,Computer Equipment,"1,009.00",Lloyds Bank,Computer Equipment,2023896,202101
Rother District Council,16/07/2020,091HOUSING,Housing and Community Services,20261,"TA Purchases (prev - 41 Jameson Mews, Bexhill on Sea)",B2421,Water,20.57,South East Water Ltd,Water,2025598,202103
Rother District Council,16/07/2020,091HOUSING,Housing and Community Services,20261,"TA Purchases (prev - 41 Jameson Mews, Bexhill on Sea)",B2422,Sewerage,38.13,South East Water Ltd,Sewerage,2025598,202103
Rother District Council,01/08/2020,101RESOURCES,Resources,20209,Corporate management,D2513,Hired and Contracted services,8.69,Lloyds Bank,Bank Charges,2024346,202101
Rother District Council,01/08/2020,101RESOURCES,Resources,20209,Corporate management,D2513,Hired and Contracted services,666.95,Lloyds Bank,Bank Charges,2024347,202101
Rother District Council,01/08/2020,101RESOURCES,Resources,20209,Corporate management,D2513,Hired and Contracted services,860.63,Lloyds Bank,Bank Charges,2024348,202101
Rother District Council,01/08/2020,101RESOURCES,Resources,20209,Corporate management,D2513,Hired and Contracted services,"1,544.08",Lloyds Bank,Bank Charges,2024349,202101
Rother District Council,09/10/2020,041ENVIRON,Environmental Services,32144,EH Environmental Services Admin R + W Partnership,A2203,Training,145.00,CIEH-Chartered Institute of Environmental Health,Training,2024945,202102
Rother District Council,15/10/2020,999NOREPORT,Environmental Services,70706,Capital - Disabled Facilities Grant,N1012,Capital Advances,"1,950.00",Prestige Stairlifts Ltd,Capital Advances Disabled Facilities Grant,2024260,202101
Rother District Council,25/10/2020,081ACQUISIT,"Acquisitions, Transformation and Regeneration",20273,Environment Strategy,D2509,Consultants and Other Services,"1,980.00",CLS Energy (Consultancy) Ltd,Consultants and Other Services,2022525,202102
Rother District Council,30/11/2020,091HOUSING,Housing and Community Services,20200,Housing Needs - HB (Housing Benefit),D2513,Hired and Contracted services,28.00,Town Taxis,Hired and Contracted services,2024121,202101
Rother District Council,30/11/2020,091HOUSING,Housing and Community Services,20200,Housing Needs - HB (Housing Benefit),D2513,Hired and Contracted services,38.00,Town Taxis,Hired and Contracted services,2024121,202101
Rother District Council,09/12/2020,091HOUSING,Housing and Community Services,20107,Camber Beach & Foreshore,D2513,Hired and Contracted services,90.00,Lloyds Bank,Hired and contracted services - Tide Tables,2023823,202101
Rother District Council,09/12/2020,031RESOURCES,Chief Executive & Corporate Core,20171,Human Resources,D1201,Equipment & Materials,38.02,Lloyds Bank,Hired and Contracted Services - Health and Safety Act Equipment risk assessment,2023824,202101
Rother District Council,09/12/2020,081ACQUISIT,"Acquisitions, Transformation and Regeneration",20154,Committee Property Account,D1201,Equipment & Materials,458.92,Lloyds Bank,Equipment & Materials - Purchase of Tools,2023818,202101
Rother District Council,09/12/2020,091HOUSING,Housing and Community Services,20145,Maintenance Services,D2352,Clothing and Uniforms,82.72,Lloyds Bank,Clothing and Uniforms - Mens Protective-Other,2023818,202101
Rother District Council,09/12/2020,091HOUSING,Housing and Community Services,20120,Neighbourhood Services,D2513,Hired and Contracted services,125.00,Lloyds Bank,Car Parking - On Street Car Parking,2023818,202101
Rother District Council,09/12/2020,999NOREPORT,Housing and Community Services,70718,Capital - Sidley Recreation Ground,N1004,Architects & Consultant Fees,144.67,Lloyds Bank,Architects & Consultant Fees Capital-Architect and Conslt Fees,2023823,202101
Rother District Council,09/12/2020,101RESOURCES,Resources,20239,Computer Services,D2633,Computer Equipment,36.39,Lloyds Bank,Computer Equipment,2023817,202101
Rother District Council,01/01/2021,031RESOURCES,Chief Executive & Corporate Core,20180,Emergency Planning,D2922,Subscriptions,120.00,Emergency Planning Society,Subscriptions - Subscription to Organisations,2024216,202101
Rother District Council,11/01/2021,031RESOURCES,Chief Executive & Corporate Core,20175,Administrative Offices - T.H. Annex (NOT CHP),B1100,Repairs to Premises,96.00,Lloyds Bank,Repairs to Premises - Purchase of Materials - Build Maint,2024062,202101
Rother District Council,11/01/2021,091HOUSING,Housing and Community Services,20206,Syrians,D2513,Hired and Contracted services,908.22,Lloyds Bank,Hired and contracted services - Syrian Misc,2024036,202101
Rother District Council,11/01/2021,091HOUSING,Housing and Community Services,20204,Housing Administration Account,D2513,Hired and Contracted services,50.00,Lloyds Bank,Hired and contracted services - Service fee paid,2024062,202101
Rother District Council,11/01/2021,031RESOURCES,Chief Executive & Corporate Core,20276,COVID19 RDC expenditure,D1201,Equipment & Materials,334.73,Lloyds Bank,Equipment & materials - Miscellaneous,2024039,202101
Rother District Council,11/01/2021,101RESOURCES,Resources,20239,Computer Services,D2635,Computer Licences,15.99,Lloyds Bank,Computer Licences - Domain Name Renewal,2024045,202101
Rother District Council,11/01/2021,101RESOURCES,Resources,20239,Computer Services,D2635,Computer Licences,15.99,Lloyds Bank,Computer Licences - Domain Name Renewal,2024045,202101
Rother District Council,11/01/2021,091HOUSING,Housing and Community Services,20204,Housing Administration Account,D2513,Hired and Contracted services,10.00,Lloyds Bank,Car Parking - On Street Car Parking,2024062,202101
Rother District Council,11/01/2021,081ACQUISIT,"Acquisitions, Transformation and Regeneration",20144,Property Management,D2518,Advertising,37.50,Lloyds Bank,Advertising - ADVERT WEBSITE,2024045,202101
Rother District Council,11/01/2021,101RESOURCES,Resources,20239,Computer Services,D2633,Computer Equipment,104.66,Lloyds Bank,Computer Equipment,2024038,202101
Rother District Council,11/01/2021,101RESOURCES,Resources,20239,Computer Services,D2633,Computer Equipment,67.73,Lloyds Bank,Computer Equipment,2024038,202101
Rother District Council,11/01/2021,101RESOURCES,Resources,20239,Computer Services,D2633,Computer Equipment,15.99,Lloyds Bank,Computer Equipment,2024038,202101
Rother District Council,11/01/2021,101RESOURCES,Resources,20239,Computer Services,D2633,Computer Equipment,67.08,Lloyds Bank,Computer Equipment,2024038,202101
Rother District Council,11/01/2021,101RESOURCES,Resources,20239,Computer Services,D2633,Computer Equipment,42.50,Lloyds Bank,Computer Equipment,2024038,202101
Rother District Council,11/01/2021,101RESOURCES,Resources,20239,Computer Services,D2633,Computer Equipment,67.06,Lloyds Bank,Computer Equipment,2024038,202101
Rother District Council,11/01/2021,101RESOURCES,Resources,20239,Computer Services,D2633,Computer Equipment,57.02,Lloyds Bank,Computer Equipment,2024038,202101
Rother District Council,11/01/2021,101RESOURCES,Resources,20239,Computer Services,D2633,Computer Equipment,383.93,Lloyds Bank,Computer Equipment,2024038,202101
Rother District Council,11/01/2021,101RESOURCES,Resources,20239,Computer Services,D2633,Computer Equipment,67.48,Lloyds Bank,Computer Equipment,2024038,202101
Rother District Council,27/01/2021,071STRAT,Strategy and Planning,20246,Planning Applications,D2513,Hired and Contracted services,36.00,H M Land Registry,Hired and Contracted services,2023697,202101
Rother District Council,27/01/2021,041ENVIRON,Environmental Services,32134,EH Pollution R + W Partnership,D2513,Hired and Contracted services,6.00,H M Land Registry,Hired and Contracted services,2023697,202101
Rother District Council,27/01/2021,071STRAT,Strategy and Planning,20258,BC Dangerous Structures H+R Partnership,D2513,Hired and Contracted services,12.00,H M Land Registry,Hired and Contracted services,2023697,202101
Rother District Council,27/01/2021,101RESOURCES,Resources,20216,Cost Of Collection,D2513,Hired and Contracted services,9.00,H M Land Registry,Hired and Contracted services,2023697,202101
Rother District Council,31/01/2021,041ENVIRON,Environmental Services,32136,EH Pest Control R + W Partnership,C1104,Derv,1.90,Allstar Business Solutions,Derv - Fuel Service fee payable on fuel cards,2023679,202101
Rother District Council,31/01/2021,041ENVIRON,Environmental Services,32136,EH Pest Control R + W Partnership,C1104,Derv,88.59,Allstar Business Solutions,Derv,2023679,202101
Rother District Council,04/02/2021,071STRAT,Strategy and Planning,20246,Planning Applications,D2513,Hired and Contracted services,6.00,H M Land Registry,Hired and Contracted services,2023692,202101
Rother District Council,04/02/2021,041ENVIRON,Environmental Services,32144,EH Environmental Services Admin R + W Partnership,D2513,Hired and Contracted services,18.00,H M Land Registry,Hired and Contracted services,2023692,202101
Rother District Council,04/02/2021,081ACQUISIT,"Acquisitions, Transformation and Regeneration",20121,Programme and Policy Office,D2513,Hired and Contracted services,12.00,H M Land Registry,Hired and Contracted services,2023692,202101
Rother District Council,04/02/2021,071STRAT,Strategy and Planning,20258,BC Dangerous Structures H+R Partnership,D2513,Hired and Contracted services,3.00,H M Land Registry,Hired and Contracted services,2023692,202101
Rother District Council,04/02/2021,101RESOURCES,Resources,20216,Cost Of Collection,D2513,Hired and Contracted services,12.00,H M Land Registry,Hired and Contracted services,2023692,202101
Rother District Council,08/02/2021,091HOUSING,Housing and Community Services,20261,"TA Purchases (prev - 41 Jameson Mews, Bexhill on Sea)",D2513,Hired and Contracted services,850.00,Meridian Surveyors,Hired and contracted services - Service fee paid,2024072,202101
Rother District Council,09/02/2021,081ACQUISIT,"Acquisitions, Transformation and Regeneration",20122,Economic Development,A2203,Training,190.00,Lloyds Bank,Training,2024332,202101
Rother District Council,09/02/2021,081ACQUISIT,"Acquisitions, Transformation and Regeneration",20101,Cultural Development,D2922,Subscriptions,105.00,Lloyds Bank,Subscriptions - Marketing Arts Development Partnership,2024327,202101
Rother District Council,09/02/2021,031RESOURCES,Chief Executive & Corporate Core,20156,Representing Local Interest,D2734,Members Training and Seminars,130.00,Lloyds Bank,Members Training and Seminars,2024332,202101
Rother District Council,09/02/2021,091HOUSING,Housing and Community Services,20206,Syrians,D2513,Hired and Contracted services,271.56,Lloyds Bank,Hired and contracted services - Syrian Misc,2024328,202101
Rother District Council,09/02/2021,091HOUSING,Housing and Community Services,20145,Maintenance Services,D1201,Equipment & Materials,69.35,Lloyds Bank,Equipment & Materials - Purchase of Tools,2024331,202101
Rother District Council,09/02/2021,091HOUSING,Housing and Community Services,20145,Maintenance Services,D1201,Equipment & Materials,-69.35,Lloyds Bank,Equipment & Materials - Purchase of Tools,2024331,202101
Rother District Council,09/02/2021,101RESOURCES,Resources,20239,Computer Services,D2635,Computer Licences,74.48,Lloyds Bank,Computer Licences - Website Management,2024329,202101
Rother District Council,09/02/2021,101RESOURCES,Resources,20239,Computer Services,D2635,Computer Licences,35.66,Lloyds Bank,Computer Licences - Website Management,2024329,202101
Rother District Council,09/02/2021,101RESOURCES,Resources,20239,Computer Services,D2635,Computer Licences,74.48,Lloyds Bank,Computer Licences - Website Management,2024329,202101
Rother District Council,09/02/2021,101RESOURCES,Resources,20239,Computer Services,D2635,Computer Licences,15.99,Lloyds Bank,Computer Licences - Domain Name Renewal,2024327,202101
Rother District Council,09/02/2021,101RESOURCES,Resources,20239,Computer Services,D2635,Computer Licences,35.97,Lloyds Bank,Computer Licences - Domain Name Renewal,2024327,202101
Rother District Council,09/02/2021,101RESOURCES,Resources,20239,Computer Services,D2632,Additional Computer Equipment,-15.99,Lloyds Bank,Computer Equipment - Computer peripherals,2024330,202101
Rother District Council,09/02/2021,101RESOURCES,Resources,20239,Computer Services,D2632,Additional Computer Equipment,10.49,Lloyds Bank,Computer Equipment - Computer peripherals,2024330,202101
Rother District Council,09/02/2021,081ACQUISIT,"Acquisitions, Transformation and Regeneration",20144,Property Management,D2518,Advertising,37.50,Lloyds Bank,Advertising - ADVERT WEBSITE,2024327,202101
Rother District Council,10/02/2021,091HOUSING,Housing and Community Services,20200,Housing Needs - HB (Housing Benefit),D2508,Removals and Storage,485.00,Witham Brothers Ltd,Removals and Storage,2023616,202101
Rother District Council,11/02/2021,071STRAT,Strategy and Planning,20258,BC Dangerous Structures H+R Partnership,D2513,Hired and Contracted services,9.00,H M Land Registry,Hired and Contracted services,2023699,202101
Rother District Council,11/02/2021,041ENVIRON,Environmental Services,20129,Community Safety - CCTV costs only,D2513,Hired and Contracted services,3.00,H M Land Registry,Hired and Contracted services,2023699,202101
Rother District Council,11/02/2021,041ENVIRON,Environmental Services,32144,EH Environmental Services Admin R + W Partnership,D2513,Hired and Contracted services,12.00,H M Land Registry,Hired and Contracted services,2023699,202101
Rother District Council,11/02/2021,071STRAT,Strategy and Planning,20246,Planning Applications,D2513,Hired and Contracted services,18.00,H M Land Registry,Hired and Contracted services,2023699,202101
Rother District Council,11/02/2021,101RESOURCES,Resources,20216,Cost Of Collection,D2513,Hired and Contracted services,21.00,H M Land Registry,Hired and Contracted services,2023699,202101
Rother District Council,12/02/2021,031RESOURCES,Chief Executive & Corporate Core,20270,Preparation for EU Exit,D1201,Equipment & Materials,67.15,Health and Care (UK) Ltd t/a SafetyGloves.co.uk,Equipment & Materials - EnvH - Food Samples,2024627,202102
Rother District Council,12/02/2021,999NOREPORT,"Acquisitions, Transformation and Regeneration",70736,Capital - 18-40 Beeching Close Refurbishment,N1004,Architects & Consultant Fees,750.00,REDACTED PERSONAL DATA,Architects & Consultant Fees Capital-Architect and Conslt Fees,2024052,202101
Rother District Council,15/02/2021,101RESOURCES,Resources,20212,Risk Management/Insurance,D2520,Insurance,"5,000.00",Zurich Insurance plc,Insurance - risk management,2024178,202101
Rother District Council,15/02/2021,041ENVIRON,Environmental Services,32136,EH Pest Control R + W Partnership,C1104,Derv,3.80,Allstar Business Solutions,Derv - Fuel Service fee payable on fuel cards,2023680,202101
Rother District Council,15/02/2021,041ENVIRON,Environmental Services,32136,EH Pest Control R + W Partnership,C1104,Derv,95.00,Allstar Business Solutions,Derv,2023680,202101
Rother District Council,15/02/2021,091HOUSING,Housing and Community Services,20145,Maintenance Services,C1104,Derv,70.67,Allstar Business Solutions,Derv,2023680,202101
Rother District Council,15/02/2021,091HOUSING,Housing and Community Services,20145,Maintenance Services,C1104,Derv,60.59,Allstar Business Solutions,Derv,2023680,202101
Rother District Council,15/02/2021,101RESOURCES,Resources,20209,Corporate management,D2513,Hired and Contracted services,710.27,True Commerce (Oldham) Ltd,Hired and Contracted services,2024862,202102
Rother District Council,16/02/2021,101RESOURCES,Resources,20240,Printing Services,E2302,Third party payment private contractors,275.00,Scantech Lithographic Ltd,Third party payment private contractors - Work by Outside Contractors,2024750,202102
Rother District Council,19/02/2021,071STRAT,Strategy and Planning,20258,BC Dangerous Structures H+R Partnership,D2513,Hired and Contracted services,3.00,H M Land Registry,Hired and Contracted services,2023694,202101
Rother District Council,19/02/2021,041ENVIRON,Environmental Services,32144,EH Environmental Services Admin R + W Partnership,D2513,Hired and Contracted services,3.00,H M Land Registry,Hired and Contracted services,2023694,202101
Rother District Council,19/02/2021,071STRAT,Strategy and Planning,20246,Planning Applications,D2513,Hired and Contracted services,6.00,H M Land Registry,Hired and Contracted services,2023694,202101
Rother District Council,19/02/2021,101RESOURCES,Resources,20216,Cost Of Collection,D2513,Hired and Contracted services,39.00,H M Land Registry,Hired and Contracted services,2023694,202101
Rother District Council,20/02/2021,041ENVIRON,Environmental Services,32140,EN Wealden Training (WEALDEN ONLY) R + W Partnership,D2513,Hired and Contracted services,540.00,Michael Hills Associates,Hired and contracted services - Service fee paid,2024014,202101
Rother District Council,20/02/2021,041ENVIRON,Environmental Services,32142,EH Taxi and Private Hire Licenses R + W Partnership,D2513,Hired and Contracted services,40.00,uCheck,Hired and contracted services - Service fee paid,2023684,202101
Rother District Council,20/02/2021,041ENVIRON,Environmental Services,32142,EH Taxi and Private Hire Licenses R + W Partnership,D2513,Hired and Contracted services,8.67,uCheck,Hired and contracted services - Service fee paid,2023684,202101
Rother District Council,22/02/2021,999NOREPORT,Chief Executive & Corporate Core,90000,Resources,P1101,Vat Payments/(Receipts),"17,565.00",HM Revenue & Customs,Agreed Payment to VAT Office,2024510,202102
Rother District Council,23/02/2021,031RESOURCES,Chief Executive & Corporate Core,20171,Human Resources,D2513,Hired and Contracted services,330.00,REDACTED PERSONAL DATA,Hired and contracted services - Legal Advice,2024215,202101
Rother District Council,25/02/2021,031RESOURCES,Chief Executive & Corporate Core,20171,Human Resources,A2203,Training,818.10,Croner Group Ltd,Subscriptions - Subscription to Organisations,2023724,202101
Rother District Council,25/02/2021,031RESOURCES,Chief Executive & Corporate Core,20171,Human Resources,A2203,Training,101.81,Croner Group Ltd,Subscriptions - Subscription to Organisations,2023724,202101
Rother District Council,25/02/2021,091HOUSING,Housing and Community Services,20107,Camber Beach & Foreshore,B1100,Repairs to Premises,"9,410.40",REDACTED PERSONAL DATA,Repairs to Premises - Beach maintenance,2023909,202101
Rother District Council,25/02/2021,021CORP,Corporate Services & Human Resources,20168,Police Crime Commissioners,D2513,Hired and Contracted services,105.00,The Etchingham Club,Hired and Contracted services,2025552,202103
Rother District Council,25/02/2021,021CORP,Corporate Services & Human Resources,20165,ESCC Elections,D2513,Hired and Contracted services,105.00,The Etchingham Club,Hired and Contracted services,2025552,202103
Rother District Council,25/02/2021,021CORP,Corporate Services & Human Resources,20165,ESCC Elections,D2513,Hired and Contracted services,75.00,Hurst Green Village Hall,Hired and Contracted services,2025574,202103
Rother District Council,25/02/2021,021CORP,Corporate Services & Human Resources,20168,Police Crime Commissioners,D2513,Hired and Contracted services,75.00,Hurst Green Village Hall,Hired and Contracted services,2025574,202103
Rother District Council,26/02/2021,041ENVIRON,Environmental Services,20280,Covid 19 RHSS Reopening High Streets Safely,D2513,Hired and Contracted services,949.30,Supreme Creations Limited,Hired and contracted services - Service fee paid,2024101,202101
Rother District Council,26/02/2021,091HOUSING,Housing and Community Services,20236,Customer Services and Development,D2635,Computer Licences,19.95,Click4Assistance,Computer Licences - Computer Licence Renewal,2024803,202102
Rother District Council,26/02/2021,021CORP,Corporate Services & Human Resources,20165,ESCC Elections,D2513,Hired and Contracted services,100.00,Sedlescombe Village Hall,Hired and Contracted services,2025587,202103
Rother District Council,26/02/2021,021CORP,Corporate Services & Human Resources,20165,ESCC Elections,D2513,Hired and Contracted services,90.00,Ashburnham and Penhurst Village Hall,Hired and Contracted services,2025530,202103
Rother District Council,26/02/2021,021CORP,Corporate Services & Human Resources,20168,Police Crime Commissioners,D2513,Hired and Contracted services,90.00,Ashburnham and Penhurst Village Hall,Hired and Contracted services,2025530,202103
Rother District Council,26/02/2021,021CORP,Corporate Services & Human Resources,20168,Police Crime Commissioners,D2513,Hired and Contracted services,100.00,Sedlescombe Village Hall,Hired and Contracted services,2025587,202103
Rother District Council,26/02/2021,081ACQUISIT,"Acquisitions, Transformation and Regeneration",20144,Property Management,D2513,Hired and Contracted services,72.00,H M Land Registry,Hired and Contracted services,2023703,202101
Rother District Council,26/02/2021,071STRAT,Strategy and Planning,20258,BC Dangerous Structures H+R Partnership,D2513,Hired and Contracted services,3.00,H M Land Registry,Hired and Contracted services,2023703,202101
Rother District Council,26/02/2021,041ENVIRON,Environmental Services,32144,EH Environmental Services Admin R + W Partnership,D2513,Hired and Contracted services,3.00,H M Land Registry,Hired and Contracted services,2023703,202101
Rother District Council,26/02/2021,071STRAT,Strategy and Planning,20246,Planning Applications,D2513,Hired and Contracted services,9.00,H M Land Registry,Hired and Contracted services,2023703,202101
Rother District Council,26/02/2021,101RESOURCES,Resources,20216,Cost Of Collection,D2513,Hired and Contracted services,12.00,H M Land Registry,Hired and Contracted services,2023703,202101
Rother District Council,28/02/2021,041ENVIRON,Environmental Services,32136,EH Pest Control R + W Partnership,C1104,Derv,3.80,Allstar Business Solutions,Derv - Fuel Service fee payable on fuel cards,2023905,202101
Rother District Council,28/02/2021,091HOUSING,Housing and Community Services,20145,Maintenance Services,C1104,Derv,1.90,Allstar Business Solutions,Derv - Fuel Service fee payable on fuel cards,2023905,202101
Rother District Council,28/02/2021,041ENVIRON,Environmental Services,32136,EH Pest Control R + W Partnership,C1104,Derv,49.17,Allstar Business Solutions,Derv,2023905,202101
Rother District Council,28/02/2021,041ENVIRON,Environmental Services,32136,EH Pest Control R + W Partnership,C1104,Derv,49.19,Allstar Business Solutions,Derv,2023905,202101
Rother District Council,28/02/2021,091HOUSING,Housing and Community Services,20145,Maintenance Services,C1104,Derv,72.51,Allstar Business Solutions,Derv,2023905,202101
Rother District Council,28/02/2021,091HOUSING,Housing and Community Services,20200,Housing Needs - HB (Housing Benefit),D2514,Accommodation Costs,"1,092.00",LESSHOMELESS LTD,Accommodation Costs,2024351,202101
Rother District Council,28/02/2021,091HOUSING,Housing and Community Services,20329,Rough Sleeping Initiative,D2514,Accommodation Costs,"1,092.00",LESSHOMELESS LTD,Accommodation Costs,2024351,202101
Rother District Council,01/03/2021,101RESOURCES,Resources,20209,Corporate management,D2513,Hired and Contracted services,571.84,Lloyds Bank,Bank Charges,2024336,202101
Rother District Council,01/03/2021,101RESOURCES,Resources,20209,Corporate management,D2513,Hired and Contracted services,"1,295.74",Lloyds Bank,Bank Charges,2024337,202101
Rother District Council,01/03/2021,101RESOURCES,Resources,20209,Corporate management,D2513,Hired and Contracted services,1.55,Lloyds Bank,Bank Charges,2024334,202101
Rother District Council,01/03/2021,101RESOURCES,Resources,20209,Corporate management,D2513,Hired and Contracted services,3.40,Lloyds Bank,Bank Charges,2024334,202101
Rother District Council,01/03/2021,101RESOURCES,Resources,20209,Corporate management,D2513,Hired and Contracted services,127.40,Lloyds Bank,Bank Charges,2024335,202101
Rother District Council,01/03/2021,021CORP,Corporate Services & Human Resources,20165,ESCC Elections,D2513,Hired and Contracted services,78.75,Mountfield Village Hall,Hired and Contracted services,2025578,202103
Rother District Council,01/03/2021,021CORP,Corporate Services & Human Resources,20165,ESCC Elections,D2513,Hired and Contracted services,42.66,Playden Women�s Institute Hall,Hired and Contracted services,2025582,202103
Rother District Council,01/03/2021,021CORP,Corporate Services & Human Resources,20165,ESCC Elections,D2513,Hired and Contracted services,100.00,Ewhurst and  Staplecross Village Hall,Hired and Contracted services,2025570,202103
Rother District Council,01/03/2021,021CORP,Corporate Services & Human Resources,20168,Police Crime Commissioners,D2513,Hired and Contracted services,100.00,Ewhurst and  Staplecross Village Hall,Hired and Contracted services,2025570,202103
Rother District Council,01/03/2021,021CORP,Corporate Services & Human Resources,20168,Police Crime Commissioners,D2513,Hired and Contracted services,78.75,Mountfield Village Hall,Hired and Contracted services,2025578,202103
Rother District Council,01/03/2021,021CORP,Corporate Services & Human Resources,20168,Police Crime Commissioners,D2513,Hired and Contracted services,42.67,Playden Women�s Institute Hall,Hired and Contracted services,2025582,202103
Rother District Council,01/03/2021,031RESOURCES,Chief Executive & Corporate Core,20163,District Council Elections,D2513,Hired and Contracted services,42.67,Playden Women�s Institute Hall,Hired and Contracted services,2025582,202103
Rother District Council,01/03/2021,031RESOURCES,Chief Executive & Corporate Core,20180,Emergency Planning,D2621,Telephones,15.13,Daisy Communications PLC,Telephones,2023271,202101
Rother District Council,01/03/2021,091HOUSING,Housing and Community Services,20102,Rother Museum Services,D2621,Telephones,15.13,Daisy Communications PLC,Telephones,2023271,202101
Rother District Council,01/03/2021,041ENVIRON,Environmental Services,32134,EH Pollution R + W Partnership,D2621,Telephones,15.13,Daisy Communications PLC,Telephones,2023271,202101
Rother District Council,01/03/2021,091HOUSING,Housing and Community Services,20107,Camber Beach & Foreshore,D2621,Telephones,30.27,Daisy Communications PLC,Telephones,2023271,202101
Rother District Council,01/03/2021,101RESOURCES,Resources,20242,Communications-Phones,D2621,Telephones,75.68,Daisy Communications PLC,Telephones,2023271,202101
Rother District Council,01/03/2021,101RESOURCES,Resources,20239,Computer Services,D2621,Telephones,30.27,Daisy Communications PLC,Telephones,2023271,202101
Rother District Council,02/03/2021,101RESOURCES,Resources,20242,Communications-Phones,D2621,Telephones,25.73,TalkTalk Communications Ltd T/A TalkTalk Business,Telephones - Telephone Call Costs+Line Rental,2024929,202102
Rother District Council,02/03/2021,101RESOURCES,Resources,20212,Risk Management/Insurance,D2520,Insurance,"2,000.70",Zurich Insurance plc,Insurance - Fidelity Guarantee,2025024,202102
Rother District Council,02/03/2021,101RESOURCES,Resources,20212,Risk Management/Insurance,D2520,Insurance,"5,789.33",Zurich Insurance plc,Insurance - Engineering Inspections,2025023,202102
Rother District Council,02/03/2021,101RESOURCES,Resources,20216,Cost Of Collection,D2509,Consultants and Other Services,600.00,Airey Consultancy Services Ltd,Consultants and Other Services,2025523,202103
Rother District Council,03/03/2021,021CORP,Corporate Services & Human Resources,20165,ESCC Elections,D2513,Hired and Contracted services,96.00,Stonegate Village Hall,Hired and Contracted services,2025588,202103
Rother District Council,03/03/2021,021CORP,Corporate Services & Human Resources,20165,ESCC Elections,D2513,Hired and Contracted services,125.00,Life with Hope Trust/ Battle Baptist Church,Hired and Contracted services,2025591,202103
Rother District Council,03/03/2021,021CORP,Corporate Services & Human Resources,20168,Police Crime Commissioners,D2513,Hired and Contracted services,96.00,Stonegate Village Hall,Hired and Contracted services,2025588,202103
Rother District Council,03/03/2021,021CORP,Corporate Services & Human Resources,20168,Police Crime Commissioners,D2513,Hired and Contracted services,125.00,Life with Hope Trust/ Battle Baptist Church,Hired and Contracted services,2025591,202103
Rother District Council,03/03/2021,999NOREPORT,"Acquisitions, Transformation and Regeneration",70756,Capital - 64 Ninfield Road Sidley commercial element only,N1002,Land & Property fees,45.87,Guaranteed Conveyancing Solutions Ltd,Land & Property fees,2023308,202101
Rother District Council,03/03/2021,999NOREPORT,Housing and Community Services,70751,Capital - Temporary Accommodation,N1002,Land & Property fees,204.13,Guaranteed Conveyancing Solutions Ltd,Land & Property fees,2023308,202101
Rother District Council,03/03/2021,999NOREPORT,"Acquisitions, Transformation and Regeneration",70756,Capital - 64 Ninfield Road Sidley commercial element only,N1002,Land & Property fees,"3,073.63",HMRC Shipley (Stamp Duty),Land & Property fees,2023235,202101
Rother District Council,03/03/2021,999NOREPORT,Housing and Community Services,70751,Capital - Temporary Accommodation,N1002,Land & Property fees,"13,676.37",HMRC Shipley (Stamp Duty),Land & Property fees,2023235,202101
Rother District Council,04/03/2021,021CORP,Corporate Services & Human Resources,20165,ESCC Elections,D2513,Hired and Contracted services,55.00,Winchelsea Beach Community Association,Hired and Contracted services,2025586,202103
Rother District Council,04/03/2021,021CORP,Corporate Services & Human Resources,20165,ESCC Elections,D2513,Hired and Contracted services,50.00,Claverton Hotel,Hired and Contracted services,2025576,202103
Rother District Council,04/03/2021,021CORP,Corporate Services & Human Resources,20168,Police Crime Commissioners,D2513,Hired and Contracted services,50.00,Claverton Hotel,Hired and Contracted services,2025576,202103
Rother District Council,04/03/2021,021CORP,Corporate Services & Human Resources,20168,Police Crime Commissioners,D2513,Hired and Contracted services,55.00,Winchelsea Beach Community Association,Hired and Contracted services,2025586,202103
Rother District Council,04/03/2021,031RESOURCES,Chief Executive & Corporate Core,20163,District Council Elections,D2513,Hired and Contracted services,55.00,Winchelsea Beach Community Association,Hired and Contracted services,2025586,202103
Rother District Council,05/03/2021,101RESOURCES,Resources,20209,Corporate management,D2513,Hired and Contracted services,112.00,Lloyds Bank,Bank Charges,2023908,202101
Rother District Council,05/03/2021,101RESOURCES,Resources,20209,Corporate management,D2513,Hired and Contracted services,57.32,Lloyds Bank,Bank Charges,2024339,202101
Rother District Council,05/03/2021,021CORP,Corporate Services & Human Resources,20165,ESCC Elections,D2513,Hired and Contracted services,125.00,Sidley Baptist Church,Hired and Contracted services,2025542,202103
Rother District Council,05/03/2021,021CORP,Corporate Services & Human Resources,20168,Police Crime Commissioners,D2513,Hired and Contracted services,125.00,Sidley Baptist Church,Hired and Contracted services,2025542,202103
Rother District Council,05/03/2021,031RESOURCES,Chief Executive & Corporate Core,20163,District Council Elections,D2513,Hired and Contracted services,125.00,Sidley Baptist Church,Hired and Contracted services,2025542,202103
Rother District Council,05/03/2021,041ENVIRON,Environmental Services,32134,EH Pollution R + W Partnership,D2513,Hired and Contracted services,15.00,H M Land Registry,Hired and Contracted services,2023696,202101
Rother District Council,05/03/2021,071STRAT,Strategy and Planning,20246,Planning Applications,D2513,Hired and Contracted services,27.00,H M Land Registry,Hired and Contracted services,2023696,202101
Rother District Council,05/03/2021,041ENVIRON,Environmental Services,32144,EH Environmental Services Admin R + W Partnership,D2513,Hired and Contracted services,3.00,H M Land Registry,Hired and Contracted services,2023696,202101
Rother District Council,05/03/2021,041ENVIRON,Environmental Services,20129,Community Safety - CCTV costs only,D2513,Hired and Contracted services,6.00,H M Land Registry,Hired and Contracted services,2023696,202101
Rother District Council,05/03/2021,101RESOURCES,Resources,20216,Cost Of Collection,D2513,Hired and Contracted services,3.00,H M Land Registry,Hired and Contracted services,2023696,202101
Rother District Council,07/03/2021,091HOUSING,Housing and Community Services,20114,Bexhill Parks & Open Spaces,D1201,Equipment & Materials,90.95,REDACTED PERSONAL DATA,Equipment & Materials - Parks-Purchase of Planting Material,2023704,202101
Rother District Council,09/03/2021,101RESOURCES,Resources,20242,Communications-Phones,D2621,Telephones,67.50,TalkTalk Communications Ltd T/A TalkTalk Business,Telephones - Telephone Call Costs+Line Rental,2024523,202102
Rother District Council,09/03/2021,101RESOURCES,Resources,20216,Cost Of Collection,D2513,Hired and Contracted services,99.50,Royal Mail Group Ltd,Postages - Response Service-Royal Mail Chg,2023609,202102
Rother District Council,09/03/2021,021CORP,Corporate Services & Human Resources,20168,Police Crime Commissioners,D2513,Hired and Contracted services,100.00,Parker and  Ashcombe Almshouse Trust,Hired and Contracted services,2025568,202103
Rother District Council,09/03/2021,021CORP,Corporate Services & Human Resources,20165,ESCC Elections,D2513,Hired and Contracted services,100.00,Parker and  Ashcombe Almshouse Trust,Hired and Contracted services,2025568,202103
Rother District Council,09/03/2021,081ACQUISIT,"Acquisitions, Transformation and Regeneration",20118,Tourism,D2923,Grants made,"4,990.00",Streets of Battle,Grants made,2023411,202101
Rother District Council,10/03/2021,101RESOURCES,Resources,20239,Computer Services,D2633,Computer Equipment,131.63,Ricoh UK Limited,Computer Equip Maintenance - Maintenance re Colourwave Printer,2023504,202101
Rother District Council,10/03/2021,101RESOURCES,Resources,20209,Corporate management,D2513,Hired and Contracted services,174.75,Lloyds Bank,Bank Charges,2024338,202101
Rother District Council,11/03/2021,031RESOURCES,Chief Executive & Corporate Core,20173,Administrative Offices - Town Hall,B1100,Repairs to Premises,"1,680.00",REDACTED PERSONAL DATA,Repairs to Premises - Specified Repairs and Works listed,2023829,202101
Rother District Council,11/03/2021,021CORP,Corporate Services & Human Resources,20164,Parish Council Elections,D2513,Hired and Contracted services,116.67,Bexhill Amateur Athletic Community Association,Hired and Contracted services,2025533,202103
Rother District Council,11/03/2021,021CORP,Corporate Services & Human Resources,20165,ESCC Elections,D2513,Hired and Contracted services,116.67,Bexhill Amateur Athletic Community Association,Hired and Contracted services,2025533,202103
Rother District Council,11/03/2021,021CORP,Corporate Services & Human Resources,20168,Police Crime Commissioners,D2513,Hired and Contracted services,116.66,Bexhill Amateur Athletic Community Association,Hired and Contracted services,2025533,202103
Rother District Council,12/03/2021,071STRAT,Strategy and Planning,20258,BC Dangerous Structures H+R Partnership,D2513,Hired and Contracted services,9.00,H M Land Registry,Hired and Contracted services,2023691,202101
Rother District Council,12/03/2021,071STRAT,Strategy and Planning,20246,Planning Applications,D2513,Hired and Contracted services,12.00,H M Land Registry,Hired and Contracted services,2023691,202101
Rother District Council,12/03/2021,041ENVIRON,Environmental Services,32144,EH Environmental Services Admin R + W Partnership,D2513,Hired and Contracted services,18.00,H M Land Registry,Hired and Contracted services,2023691,202101
Rother District Council,12/03/2021,101RESOURCES,Resources,20216,Cost Of Collection,D2513,Hired and Contracted services,9.00,H M Land Registry,Hired and Contracted services,2023691,202101
Rother District Council,13/03/2021,101RESOURCES,Resources,20242,Communications-Phones,D2622,Mobile Phones,110.15,O2 (UK) Ltd,Mobile Phones,2024515,202102
Rother District Council,13/03/2021,101RESOURCES,Resources,20242,Communications-Phones,D2622,Mobile Phones,110.00,O2 (UK) Ltd,Mobile Phones,2024514,202102
Rother District Council,13/03/2021,101RESOURCES,Resources,20242,Communications-Phones,D2622,Mobile Phones,244.91,O2 (UK) Ltd,Mobile Phones,2024516,202102
Rother District Council,13/03/2021,101RESOURCES,Resources,20242,Communications-Phones,D2622,Mobile Phones,55.00,O2 (UK) Ltd,Mobile Phones,2024518,202102
Rother District Council,13/03/2021,101RESOURCES,Resources,20242,Communications-Phones,D2622,Mobile Phones,620.36,O2 (UK) Ltd,Mobile Phones,2024519,202102
Rother District Council,13/03/2021,101RESOURCES,Resources,20242,Communications-Phones,D2513,Hired and Contracted services,539.12,O2 (UK) Ltd,Hired and Contracted services,2024517,202102
Rother District Council,15/03/2021,041ENVIRON,Environmental Services,32136,EH Pest Control R + W Partnership,C1104,Derv,3.80,Allstar Business Solutions,Derv - Fuel Service fee payable on fuel cards,2024503,202102
Rother District Council,15/03/2021,091HOUSING,Housing and Community Services,20107,Camber Beach & Foreshore,C1104,Derv,1.90,Allstar Business Solutions,Derv - Fuel Service fee payable on fuel cards,2024503,202102
Rother District Council,15/03/2021,091HOUSING,Housing and Community Services,20145,Maintenance Services,C1104,Derv,1.90,Allstar Business Solutions,Derv - Fuel Service fee payable on fuel cards,2024503,202102
Rother District Council,15/03/2021,021CORP,Corporate Services & Human Resources,20164,Parish Council Elections,D2513,Hired and Contracted services,150.00,Cooden Beach Sports and Social Club,Hired and Contracted services,2025541,202103
Rother District Council,15/03/2021,021CORP,Corporate Services & Human Resources,20165,ESCC Elections,D2513,Hired and Contracted services,150.00,Cooden Beach Sports and Social Club,Hired and Contracted services,2025541,202103
Rother District Council,15/03/2021,021CORP,Corporate Services & Human Resources,20168,Police Crime Commissioners,D2513,Hired and Contracted services,180.00,Cooden Beach Sports and Social Club,Hired and Contracted services,2025541,202103
Rother District Council,15/03/2021,041ENVIRON,Environmental Services,32136,EH Pest Control R + W Partnership,C1104,Derv,42.50,Allstar Business Solutions,Derv,2024503,202102
Rother District Council,15/03/2021,041ENVIRON,Environmental Services,32136,EH Pest Control R + W Partnership,C1104,Derv,49.45,Allstar Business Solutions,Derv,2024503,202102
Rother District Council,15/03/2021,091HOUSING,Housing and Community Services,20107,Camber Beach & Foreshore,C1104,Derv,60.36,Allstar Business Solutions,Derv,2024503,202102
Rother District Council,15/03/2021,091HOUSING,Housing and Community Services,20145,Maintenance Services,C1104,Derv,50.00,Allstar Business Solutions,Derv,2024503,202102
Rother District Council,15/03/2021,091HOUSING,Housing and Community Services,20145,Maintenance Services,C1104,Derv,70.50,Allstar Business Solutions,Derv,2024503,202102
Rother District Council,16/03/2021,091HOUSING,Housing and Community Services,20137,Car Parks,B2201,Electricity,77.61,Opus Energy Ltd,Electricity - Electricity Charges,2024388,202101
Rother District Council,16/03/2021,999NOREPORT,"Acquisitions, Transformation and Regeneration",70737,Capital � Barnhorn Green,N1004,Architects & Consultant Fees,"10,300.00",Land Survey Solutions Ltd,Architects & Consultant Fees Capital-Architect and Conslt Fees,2025521,202103
Rother District Council,17/03/2021,091HOUSING,Housing and Community Services,20114,Bexhill Parks & Open Spaces,B1100,Repairs to Premises,750.00,J D Fencing Contractors,Repairs to Premises - Parks- Fencing Installation,2023446,202101
Rother District Council,17/03/2021,091HOUSING,Housing and Community Services,20109,Sports Development,D2923,Grants made,425.00,Bexhill Cricket Club,Grants made - Sports Development Projects,2024168,202101
Rother District Council,18/03/2021,101RESOURCES,Resources,20222,Accountancy,A1110,Agency Staff,"3,350.00",Law Morgan Limited,Agency Staff,2023833,202101
Rother District Council,18/03/2021,021CORP,Corporate Services & Human Resources,20164,Parish Council Elections,D2513,Hired and Contracted services,66.66,All Saints Church Sidley,Hired and Contracted services,2025540,202103
Rother District Council,18/03/2021,021CORP,Corporate Services & Human Resources,20165,ESCC Elections,D2513,Hired and Contracted services,66.67,All Saints Church Sidley,Hired and Contracted services,2025540,202103
Rother District Council,18/03/2021,021CORP,Corporate Services & Human Resources,20168,Police Crime Commissioners,D2513,Hired and Contracted services,66.67,All Saints Church Sidley,Hired and Contracted services,2025540,202103
Rother District Council,20/03/2021,041ENVIRON,Environmental Services,32142,EH Taxi and Private Hire Licenses R + W Partnership,D2513,Hired and Contracted services,40.00,uCheck,Hired and contracted services - Service fee paid,2023906,202101
Rother District Council,20/03/2021,041ENVIRON,Environmental Services,32142,EH Taxi and Private Hire Licenses R + W Partnership,D2513,Hired and Contracted services,8.67,uCheck,Hired and contracted services - Service fee paid,2023906,202101
Rother District Council,22/03/2021,091HOUSING,Housing and Community Services,20108,Bexhill Promenade & Foreshore,B1100,Repairs to Premises,44.85,Saint-Gobain Building Distribution Ltd t/a Jewson,Repairs to Premises - Purchase of Materials - Build Maint,2024051,202101
Rother District Council,22/03/2021,091HOUSING,Housing and Community Services,20114,Bexhill Parks & Open Spaces,D1201,Equipment & Materials,122.00,B.F.J. Engraving Ltd,Equipment & Materials - Parks Purchase of Seats/ Benches/Plaques,2024049,202101
Rother District Council,22/03/2021,091HOUSING,Housing and Community Services,20114,Bexhill Parks & Open Spaces,D1201,Equipment & Materials,50.00,B.F.J. Engraving Ltd,Equipment & Materials - Parks Purchase of Seats/ Benches/Plaques,2024049,202101
Rother District Council,23/03/2021,081ACQUISIT,"Acquisitions, Transformation and Regeneration",20142,Performance Management,D2922,Subscriptions,"1,075.00",Improvement & Development Agency (IDeA),Subscriptions - Subscription to Organisations,2024320,202101
Rother District Council,23/03/2021,031RESOURCES,Chief Executive & Corporate Core,20173,Administrative Offices - Town Hall,B1100,Repairs to Premises,137.59,Alfa Electric Ltd,Repairs to Premises - Repairs - Electrical Works,2023890,202101
Rother District Council,23/03/2021,091HOUSING,Housing and Community Services,20114,Bexhill Parks & Open Spaces,B1100,Repairs to Premises,107.63,Alfa Electric Ltd,Repairs to Premises - Repairs - Electrical Works,2023821,202101
Rother District Council,23/03/2021,091HOUSING,Housing and Community Services,20137,Car Parks,D2513,Hired and Contracted services,"15,691.78",Flowbird Smart City UK Ltd,Hired and contracted services - Car Parks-CALE Online Software Service for ticket machines,2023715,202101
Rother District Council,23/03/2021,031RESOURCES,Chief Executive & Corporate Core,20173,Administrative Offices - Town Hall,B2202,Gas,959.35,Laser Energy Buying Group (Kent County Council Commercial Services),Gas - Gas Charges,2024844,202102
Rother District Council,23/03/2021,031RESOURCES,Chief Executive & Corporate Core,20176,Administrative Offices - Print Room,B2202,Gas,101.15,Laser Energy Buying Group (Kent County Council Commercial Services),Gas - Gas Charges,2024844,202102
Rother District Council,23/03/2021,031RESOURCES,Chief Executive & Corporate Core,20175,Administrative Offices - T.H. Annex (NOT CHP),B2202,Gas,427.29,Laser Energy Buying Group (Kent County Council Commercial Services),Gas - Gas Charges,2024844,202102
Rother District Council,23/03/2021,081ACQUISIT,"Acquisitions, Transformation and Regeneration",20154,Committee Property Account,B2202,Gas,11.47,Laser Energy Buying Group (Kent County Council Commercial Services),Gas - Gas Charges,2024844,202102
Rother District Council,23/03/2021,091HOUSING,Housing and Community Services,20114,Bexhill Parks & Open Spaces,D1201,Equipment & Materials,"1,650.00",Direct Bollards Ltd,Equipment & Materials - Parks- Fencing Products,2023662,202101
Rother District Council,23/03/2021,031RESOURCES,Chief Executive & Corporate Core,20173,Administrative Offices - Town Hall,B2201,Electricity,"2,286.70",Laser Energy Buying Group (Kent County Council Commercial Services),Electricity - Electricity Charges,2024790,202102
Rother District Council,23/03/2021,031RESOURCES,Chief Executive & Corporate Core,20173,Administrative Offices - Town Hall,B2201,Electricity,"2,390.42",Laser Energy Buying Group (Kent County Council Commercial Services),Electricity - Electricity Charges,2024790,202102
Rother District Council,23/03/2021,031RESOURCES,Chief Executive & Corporate Core,20173,Administrative Offices - Town Hall,B2201,Electricity,"2,693.05",Laser Energy Buying Group (Kent County Council Commercial Services),Electricity - Electricity Charges,2024790,202102
Rother District Council,23/03/2021,031RESOURCES,Chief Executive & Corporate Core,20173,Administrative Offices - Town Hall,B2201,Electricity,"2,529.27",Laser Energy Buying Group (Kent County Council Commercial Services),Electricity - Electricity Charges,2024790,202102
Rother District Council,23/03/2021,031RESOURCES,Chief Executive & Corporate Core,20173,Administrative Offices - Town Hall,B2201,Electricity,"2,380.92",Laser Energy Buying Group (Kent County Council Commercial Services),Electricity - Electricity Charges,2024790,202102
Rother District Council,23/03/2021,031RESOURCES,Chief Executive & Corporate Core,20176,Administrative Offices - Print Room,B2201,Electricity,78.21,Laser Energy Buying Group (Kent County Council Commercial Services),Electricity - Electricity Charges,2024790,202102
Rother District Council,23/03/2021,031RESOURCES,Chief Executive & Corporate Core,20177,Administrative Offices - Rear Depot,B2201,Electricity,29.96,Laser Energy Buying Group (Kent County Council Commercial Services),Electricity - Electricity Charges,2024790,202102
Rother District Council,23/03/2021,031RESOURCES,Chief Executive & Corporate Core,20175,Administrative Offices - T.H. Annex (NOT CHP),B2201,Electricity,989.84,Laser Energy Buying Group (Kent County Council Commercial Services),Electricity - Electricity Charges,2024790,202102
Rother District Council,23/03/2021,031RESOURCES,Chief Executive & Corporate Core,20175,Administrative Offices - T.H. Annex (NOT CHP),B2201,Electricity,"1,099.17",Laser Energy Buying Group (Kent County Council Commercial Services),Electricity - Electricity Charges,2024790,202102
Rother District Council,23/03/2021,031RESOURCES,Chief Executive & Corporate Core,20175,Administrative Offices - T.H. Annex (NOT CHP),B2201,Electricity,"1,026.66",Laser Energy Buying Group (Kent County Council Commercial Services),Electricity - Electricity Charges,2024790,202102
Rother District Council,23/03/2021,031RESOURCES,Chief Executive & Corporate Core,20175,Administrative Offices - T.H. Annex (NOT CHP),B2201,Electricity,"1,096.70",Laser Energy Buying Group (Kent County Council Commercial Services),Electricity - Electricity Charges,2024790,202102
Rother District Council,23/03/2021,031RESOURCES,Chief Executive & Corporate Core,20175,Administrative Offices - T.H. Annex (NOT CHP),B2201,Electricity,"1,098.85",Laser Energy Buying Group (Kent County Council Commercial Services),Electricity - Electricity Charges,2024790,202102
Rother District Council,23/03/2021,081ACQUISIT,"Acquisitions, Transformation and Regeneration",20104,Ancient Monuments & Gazebo,B2201,Electricity,83.45,Laser Energy Buying Group (Kent County Council Commercial Services),Electricity - Electricity Charges,2024790,202102
Rother District Council,23/03/2021,081ACQUISIT,"Acquisitions, Transformation and Regeneration",20151,Udimore Workshops,B2201,Electricity,106.51,Laser Energy Buying Group (Kent County Council Commercial Services),Electricity - Electricity Charges,2024790,202102
Rother District Council,23/03/2021,081ACQUISIT,"Acquisitions, Transformation and Regeneration",20154,Committee Property Account,B2201,Electricity,371.45,Laser Energy Buying Group (Kent County Council Commercial Services),Electricity - Electricity Charges,2024790,202102
Rother District Council,23/03/2021,081ACQUISIT,"Acquisitions, Transformation and Regeneration",20154,Committee Property Account,B2201,Electricity,15.39,Laser Energy Buying Group (Kent County Council Commercial Services),Electricity - Electricity Charges,2024790,202102
Rother District Council,23/03/2021,081ACQUISIT,"Acquisitions, Transformation and Regeneration",20154,Committee Property Account,B2201,Electricity,15.39,Laser Energy Buying Group (Kent County Council Commercial Services),Electricity - Electricity Charges,2024790,202102
Rother District Council,23/03/2021,081ACQUISIT,"Acquisitions, Transformation and Regeneration",20154,Committee Property Account,B2201,Electricity,15.39,Laser Energy Buying Group (Kent County Council Commercial Services),Electricity - Electricity Charges,2024790,202102
Rother District Council,23/03/2021,081ACQUISIT,"Acquisitions, Transformation and Regeneration",20154,Committee Property Account,B2201,Electricity,4.07,Laser Energy Buying Group (Kent County Council Commercial Services),Electricity - Electricity Charges,2024790,202102
Rother District Council,23/03/2021,081ACQUISIT,"Acquisitions, Transformation and Regeneration",20154,Committee Property Account,B2201,Electricity,4.07,Laser Energy Buying Group (Kent County Council Commercial Services),Electricity - Electricity Charges,2024790,202102
Rother District Council,23/03/2021,081ACQUISIT,"Acquisitions, Transformation and Regeneration",20154,Committee Property Account,B2201,Electricity,183.13,Laser Energy Buying Group (Kent County Council Commercial Services),Electricity - Electricity Charges,2024790,202102
Rother District Council,23/03/2021,081ACQUISIT,"Acquisitions, Transformation and Regeneration",20154,Committee Property Account,B2201,Electricity,15.63,Laser Energy Buying Group (Kent County Council Commercial Services),Electricity - Electricity Charges,2024790,202102
Rother District Council,23/03/2021,081ACQUISIT,"Acquisitions, Transformation and Regeneration",20154,Committee Property Account,B2201,Electricity,15.63,Laser Energy Buying Group (Kent County Council Commercial Services),Electricity - Electricity Charges,2024790,202102
Rother District Council,23/03/2021,081ACQUISIT,"Acquisitions, Transformation and Regeneration",20154,Committee Property Account,B2201,Electricity,4.07,Laser Energy Buying Group (Kent County Council Commercial Services),Electricity - Electricity Charges,2024790,202102
Rother District Council,23/03/2021,091HOUSING,Housing and Community Services,20107,Camber Beach & Foreshore,B2201,Electricity,106.28,Laser Energy Buying Group (Kent County Council Commercial Services),Electricity - Electricity Charges,2024790,202102
Rother District Council,23/03/2021,091HOUSING,Housing and Community Services,20107,Camber Beach & Foreshore,B2201,Electricity,55.68,Laser Energy Buying Group (Kent County Council Commercial Services),Electricity - Electricity Charges,2024790,202102
Rother District Council,23/03/2021,081ACQUISIT,"Acquisitions, Transformation and Regeneration",20154,Committee Property Account,B2201,Electricity,15.63,Laser Energy Buying Group (Kent County Council Commercial Services),Electricity - Electricity Charges,2024790,202102
Rother District Council,23/03/2021,081ACQUISIT,"Acquisitions, Transformation and Regeneration",20154,Committee Property Account,B2201,Electricity,4.07,Laser Energy Buying Group (Kent County Council Commercial Services),Electricity - Electricity Charges,2024790,202102
Rother District Council,23/03/2021,081ACQUISIT,"Acquisitions, Transformation and Regeneration",20104,Ancient Monuments & Gazebo,B2201,Electricity,50.07,Laser Energy Buying Group (Kent County Council Commercial Services),Electricity - Electricity Charges,2024790,202102
Rother District Council,23/03/2021,081ACQUISIT,"Acquisitions, Transformation and Regeneration",20148,Misc Land & Buildings,B2201,Electricity,-43.59,Laser Energy Buying Group (Kent County Council Commercial Services),Electricity - Electricity Charges,2024790,202102
Rother District Council,23/03/2021,081ACQUISIT,"Acquisitions, Transformation and Regeneration",20148,Misc Land & Buildings,B2201,Electricity,-42.16,Laser Energy Buying Group (Kent County Council Commercial Services),Electricity - Electricity Charges,2024790,202102
Rother District Council,23/03/2021,081ACQUISIT,"Acquisitions, Transformation and Regeneration",20151,Udimore Workshops,B2201,Electricity,-37.53,Laser Energy Buying Group (Kent County Council Commercial Services),Electricity - Electricity Charges,2024790,202102
Rother District Council,23/03/2021,081ACQUISIT,"Acquisitions, Transformation and Regeneration",20151,Udimore Workshops,B2201,Electricity,-32.32,Laser Energy Buying Group (Kent County Council Commercial Services),Electricity - Electricity Charges,2024790,202102
Rother District Council,23/03/2021,081ACQUISIT,"Acquisitions, Transformation and Regeneration",20151,Udimore Workshops,B2201,Electricity,-23.06,Laser Energy Buying Group (Kent County Council Commercial Services),Electricity - Electricity Charges,2024790,202102
Rother District Council,23/03/2021,081ACQUISIT,"Acquisitions, Transformation and Regeneration",20148,Misc Land & Buildings,B2201,Electricity,-43.18,Laser Energy Buying Group (Kent County Council Commercial Services),Electricity - Electricity Charges,2024790,202102
Rother District Council,23/03/2021,081ACQUISIT,"Acquisitions, Transformation and Regeneration",20104,Ancient Monuments & Gazebo,B2201,Electricity,-31.76,Laser Energy Buying Group (Kent County Council Commercial Services),Electricity - Electricity Charges,2024790,202102
Rother District Council,23/03/2021,081ACQUISIT,"Acquisitions, Transformation and Regeneration",20104,Ancient Monuments & Gazebo,B2201,Electricity,-27.37,Laser Energy Buying Group (Kent County Council Commercial Services),Electricity - Electricity Charges,2024790,202102
Rother District Council,23/03/2021,091HOUSING,Housing and Community Services,20102,Rother Museum Services,B2201,Electricity,435.41,Laser Energy Buying Group (Kent County Council Commercial Services),Electricity - Electricity Charges,2024790,202102
Rother District Council,23/03/2021,081ACQUISIT,"Acquisitions, Transformation and Regeneration",20153,"Elva Business Centre, Bexhill",B2201,Electricity,840.51,Laser Energy Buying Group (Kent County Council Commercial Services),Electricity - Electricity Charges,2024790,202102
Rother District Council,23/03/2021,081ACQUISIT,"Acquisitions, Transformation and Regeneration",20154,Committee Property Account,B2201,Electricity,15.95,Laser Energy Buying Group (Kent County Council Commercial Services),Electricity - Electricity Charges,2024790,202102
Rother District Council,23/03/2021,081ACQUISIT,"Acquisitions, Transformation and Regeneration",20154,Committee Property Account,B2201,Electricity,15.95,Laser Energy Buying Group (Kent County Council Commercial Services),Electricity - Electricity Charges,2024790,202102
Rother District Council,23/03/2021,081ACQUISIT,"Acquisitions, Transformation and Regeneration",20154,Committee Property Account,B2201,Electricity,15.96,Laser Energy Buying Group (Kent County Council Commercial Services),Electricity - Electricity Charges,2024790,202102
Rother District Council,23/03/2021,081ACQUISIT,"Acquisitions, Transformation and Regeneration",20154,Committee Property Account,B2201,Electricity,15.96,Laser Energy Buying Group (Kent County Council Commercial Services),Electricity - Electricity Charges,2024790,202102
Rother District Council,23/03/2021,081ACQUISIT,"Acquisitions, Transformation and Regeneration",20154,Committee Property Account,B2201,Electricity,17.59,Laser Energy Buying Group (Kent County Council Commercial Services),Electricity - Electricity Charges,2024790,202102
Rother District Council,23/03/2021,081ACQUISIT,"Acquisitions, Transformation and Regeneration",20154,Committee Property Account,B2201,Electricity,17.59,Laser Energy Buying Group (Kent County Council Commercial Services),Electricity - Electricity Charges,2024790,202102
Rother District Council,23/03/2021,081ACQUISIT,"Acquisitions, Transformation and Regeneration",20154,Committee Property Account,B2201,Electricity,17.59,Laser Energy Buying Group (Kent County Council Commercial Services),Electricity - Electricity Charges,2024790,202102
Rother District Council,23/03/2021,081ACQUISIT,"Acquisitions, Transformation and Regeneration",20154,Committee Property Account,B2201,Electricity,15.63,Laser Energy Buying Group (Kent County Council Commercial Services),Electricity - Electricity Charges,2024790,202102
Rother District Council,23/03/2021,081ACQUISIT,"Acquisitions, Transformation and Regeneration",20148,Misc Land & Buildings,B2201,Electricity,-28.25,Laser Energy Buying Group (Kent County Council Commercial Services),Electricity - Electricity Charges,2024790,202102
Rother District Council,23/03/2021,081ACQUISIT,"Acquisitions, Transformation and Regeneration",20148,Misc Land & Buildings,B2201,Electricity,13.12,Laser Energy Buying Group (Kent County Council Commercial Services),Electricity - Electricity Charges,2024790,202102
Rother District Council,23/03/2021,081ACQUISIT,"Acquisitions, Transformation and Regeneration",20148,Misc Land & Buildings,B2201,Electricity,-19.46,Laser Energy Buying Group (Kent County Council Commercial Services),Electricity - Electricity Charges,2024790,202102
Rother District Council,23/03/2021,091HOUSING,Housing and Community Services,20102,Rother Museum Services,B2201,Electricity,477.67,Laser Energy Buying Group (Kent County Council Commercial Services),Electricity - Electricity Charges,2024790,202102
Rother District Council,23/03/2021,081ACQUISIT,"Acquisitions, Transformation and Regeneration",20155,Investment properties,B2201,Electricity,34.37,Laser Energy Buying Group (Kent County Council Commercial Services),Electricity - Electricity Charges,2024790,202102
Rother District Council,23/03/2021,081ACQUISIT,"Acquisitions, Transformation and Regeneration",20153,"Elva Business Centre, Bexhill",B2201,Electricity,928.41,Laser Energy Buying Group (Kent County Council Commercial Services),Electricity - Electricity Charges,2024790,202102
Rother District Council,23/03/2021,081ACQUISIT,"Acquisitions, Transformation and Regeneration",20153,"Elva Business Centre, Bexhill",B2201,Electricity,913.03,Laser Energy Buying Group (Kent County Council Commercial Services),Electricity - Electricity Charges,2024790,202102
Rother District Council,23/03/2021,081ACQUISIT,"Acquisitions, Transformation and Regeneration",20153,"Elva Business Centre, Bexhill",B2201,Electricity,702.89,Laser Energy Buying Group (Kent County Council Commercial Services),Electricity - Electricity Charges,2024790,202102
Rother District Council,23/03/2021,081ACQUISIT,"Acquisitions, Transformation and Regeneration",20153,"Elva Business Centre, Bexhill",B2201,Electricity,904.18,Laser Energy Buying Group (Kent County Council Commercial Services),Electricity - Electricity Charges,2024790,202102
Rother District Council,23/03/2021,081ACQUISIT,"Acquisitions, Transformation and Regeneration",20148,Misc Land & Buildings,B2201,Electricity,133.66,Laser Energy Buying Group (Kent County Council Commercial Services),Electricity - Electricity Charges,2024790,202102
Rother District Council,23/03/2021,091HOUSING,Housing and Community Services,20115,Rye Area Parks & Gardens,B2201,Electricity,133.66,Laser Energy Buying Group (Kent County Council Commercial Services),Electricity - Electricity Charges,2024790,202102
Rother District Council,23/03/2021,091HOUSING,Housing and Community Services,20108,Bexhill Promenade & Foreshore,B2201,Electricity,30.52,Laser Energy Buying Group (Kent County Council Commercial Services),Electricity - Electricity Charges,2024790,202102
Rother District Council,23/03/2021,091HOUSING,Housing and Community Services,20108,Bexhill Promenade & Foreshore,B2201,Electricity,49.13,Laser Energy Buying Group (Kent County Council Commercial Services),Electricity - Electricity Charges,2024790,202102
Rother District Council,23/03/2021,091HOUSING,Housing and Community Services,20108,Bexhill Promenade & Foreshore,B2201,Electricity,102.05,Laser Energy Buying Group (Kent County Council Commercial Services),Electricity - Electricity Charges,2024790,202102
Rother District Council,23/03/2021,091HOUSING,Housing and Community Services,20108,Bexhill Promenade & Foreshore,B2201,Electricity,26.85,Laser Energy Buying Group (Kent County Council Commercial Services),Electricity - Electricity Charges,2024790,202102
Rother District Council,23/03/2021,091HOUSING,Housing and Community Services,20128,Public Conveniences,B2201,Electricity,73.33,Laser Energy Buying Group (Kent County Council Commercial Services),Electricity - Electricity Charges,2024790,202102
Rother District Council,23/03/2021,091HOUSING,Housing and Community Services,20128,Public Conveniences,B2201,Electricity,24.60,Laser Energy Buying Group (Kent County Council Commercial Services),Electricity - Electricity Charges,2024790,202102
Rother District Council,23/03/2021,091HOUSING,Housing and Community Services,20128,Public Conveniences,B2201,Electricity,97.66,Laser Energy Buying Group (Kent County Council Commercial Services),Electricity - Electricity Charges,2024790,202102
Rother District Council,23/03/2021,091HOUSING,Housing and Community Services,20128,Public Conveniences,B2201,Electricity,105.41,Laser Energy Buying Group (Kent County Council Commercial Services),Electricity - Electricity Charges,2024790,202102
Rother District Council,23/03/2021,091HOUSING,Housing and Community Services,20128,Public Conveniences,B2201,Electricity,-49.88,Laser Energy Buying Group (Kent County Council Commercial Services),Electricity - Electricity Charges,2024790,202102
Rother District Council,23/03/2021,091HOUSING,Housing and Community Services,20108,Bexhill Promenade & Foreshore,B2201,Electricity,15.39,Laser Energy Buying Group (Kent County Council Commercial Services),Electricity - Electricity Charges,2024790,202102
Rother District Council,23/03/2021,091HOUSING,Housing and Community Services,20108,Bexhill Promenade & Foreshore,B2201,Electricity,2.04,Laser Energy Buying Group (Kent County Council Commercial Services),Electricity - Electricity Charges,2024790,202102
Rother District Council,23/03/2021,091HOUSING,Housing and Community Services,20108,Bexhill Promenade & Foreshore,B2201,Electricity,84.08,Laser Energy Buying Group (Kent County Council Commercial Services),Electricity - Electricity Charges,2024790,202102
Rother District Council,23/03/2021,091HOUSING,Housing and Community Services,20123,Cemeteries,B2201,Electricity,46.74,Laser Energy Buying Group (Kent County Council Commercial Services),Electricity - Electricity Charges,2024790,202102
Rother District Council,23/03/2021,091HOUSING,Housing and Community Services,20128,Public Conveniences,B2201,Electricity,-55.96,Laser Energy Buying Group (Kent County Council Commercial Services),Electricity - Electricity Charges,2024790,202102
Rother District Council,23/03/2021,091HOUSING,Housing and Community Services,20128,Public Conveniences,B2201,Electricity,17.71,Laser Energy Buying Group (Kent County Council Commercial Services),Electricity - Electricity Charges,2024790,202102
Rother District Council,23/03/2021,091HOUSING,Housing and Community Services,20128,Public Conveniences,B2201,Electricity,28.31,Laser Energy Buying Group (Kent County Council Commercial Services),Electricity - Electricity Charges,2024790,202102
Rother District Council,23/03/2021,091HOUSING,Housing and Community Services,20128,Public Conveniences,B2201,Electricity,24.60,Laser Energy Buying Group (Kent County Council Commercial Services),Electricity - Electricity Charges,2024790,202102
Rother District Council,23/03/2021,091HOUSING,Housing and Community Services,20128,Public Conveniences,B2201,Electricity,33.81,Laser Energy Buying Group (Kent County Council Commercial Services),Electricity - Electricity Charges,2024790,202102
Rother District Council,23/03/2021,091HOUSING,Housing and Community Services,20128,Public Conveniences,B2201,Electricity,-73.27,Laser Energy Buying Group (Kent County Council Commercial Services),Electricity - Electricity Charges,2024790,202102
Rother District Council,23/03/2021,091HOUSING,Housing and Community Services,20128,Public Conveniences,B2201,Electricity,-33.23,Laser Energy Buying Group (Kent County Council Commercial Services),Electricity - Electricity Charges,2024790,202102
Rother District Council,23/03/2021,091HOUSING,Housing and Community Services,20128,Public Conveniences,B2201,Electricity,-29.43,Laser Energy Buying Group (Kent County Council Commercial Services),Electricity - Electricity Charges,2024790,202102
Rother District Council,23/03/2021,091HOUSING,Housing and Community Services,20128,Public Conveniences,B2201,Electricity,-34.24,Laser Energy Buying Group (Kent County Council Commercial Services),Electricity - Electricity Charges,2024790,202102
Rother District Council,23/03/2021,091HOUSING,Housing and Community Services,20108,Bexhill Promenade & Foreshore,B2201,Electricity,2.03,Laser Energy Buying Group (Kent County Council Commercial Services),Electricity - Electricity Charges,2024790,202102
Rother District Council,23/03/2021,091HOUSING,Housing and Community Services,20108,Bexhill Promenade & Foreshore,B2201,Electricity,-66.31,Laser Energy Buying Group (Kent County Council Commercial Services),Electricity - Electricity Charges,2024790,202102
Rother District Council,23/03/2021,091HOUSING,Housing and Community Services,20108,Bexhill Promenade & Foreshore,B2201,Electricity,-77.38,Laser Energy Buying Group (Kent County Council Commercial Services),Electricity - Electricity Charges,2024790,202102
Rother District Council,23/03/2021,091HOUSING,Housing and Community Services,20114,Bexhill Parks & Open Spaces,B2201,Electricity,-31.03,Laser Energy Buying Group (Kent County Council Commercial Services),Electricity - Electricity Charges,2024790,202102
Rother District Council,23/03/2021,091HOUSING,Housing and Community Services,20114,Bexhill Parks & Open Spaces,B2201,Electricity,-34.23,Laser Energy Buying Group (Kent County Council Commercial Services),Electricity - Electricity Charges,2024790,202102
Rother District Council,23/03/2021,091HOUSING,Housing and Community Services,20114,Bexhill Parks & Open Spaces,B2201,Electricity,-29.43,Laser Energy Buying Group (Kent County Council Commercial Services),Electricity - Electricity Charges,2024790,202102
Rother District Council,23/03/2021,091HOUSING,Housing and Community Services,20114,Bexhill Parks & Open Spaces,B2201,Electricity,14.84,Laser Energy Buying Group (Kent County Council Commercial Services),Electricity - Electricity Charges,2024790,202102
Rother District Council,23/03/2021,091HOUSING,Housing and Community Services,20108,Bexhill Promenade & Foreshore,B2201,Electricity,31.55,Laser Energy Buying Group (Kent County Council Commercial Services),Electricity - Electricity Charges,2024790,202102
Rother District Council,23/03/2021,091HOUSING,Housing and Community Services,20108,Bexhill Promenade & Foreshore,B2201,Electricity,-31.55,Laser Energy Buying Group (Kent County Council Commercial Services),Electricity - Electricity Charges,2024790,202102
Rother District Council,23/03/2021,091HOUSING,Housing and Community Services,20108,Bexhill Promenade & Foreshore,B2201,Electricity,79.06,Laser Energy Buying Group (Kent County Council Commercial Services),Electricity - Electricity Charges,2024790,202102
Rother District Council,23/03/2021,091HOUSING,Housing and Community Services,20115,Rye Area Parks & Gardens,B2201,Electricity,-28.11,Laser Energy Buying Group (Kent County Council Commercial Services),Electricity - Electricity Charges,2024790,202102
Rother District Council,23/03/2021,091HOUSING,Housing and Community Services,20115,Rye Area Parks & Gardens,B2201,Electricity,-27.64,Laser Energy Buying Group (Kent County Council Commercial Services),Electricity - Electricity Charges,2024790,202102
Rother District Council,23/03/2021,091HOUSING,Housing and Community Services,20128,Public Conveniences,B2201,Electricity,-34.11,Laser Energy Buying Group (Kent County Council Commercial Services),Electricity - Electricity Charges,2024790,202102
Rother District Council,23/03/2021,091HOUSING,Housing and Community Services,20128,Public Conveniences,B2201,Electricity,44.53,Laser Energy Buying Group (Kent County Council Commercial Services),Electricity - Electricity Charges,2024790,202102
Rother District Council,23/03/2021,091HOUSING,Housing and Community Services,20128,Public Conveniences,B2201,Electricity,-28.55,Laser Energy Buying Group (Kent County Council Commercial Services),Electricity - Electricity Charges,2024790,202102
Rother District Council,23/03/2021,091HOUSING,Housing and Community Services,20128,Public Conveniences,B2201,Electricity,-28.55,Laser Energy Buying Group (Kent County Council Commercial Services),Electricity - Electricity Charges,2024790,202102
Rother District Council,23/03/2021,091HOUSING,Housing and Community Services,20128,Public Conveniences,B2201,Electricity,-48.34,Laser Energy Buying Group (Kent County Council Commercial Services),Electricity - Electricity Charges,2024790,202102
Rother District Council,23/03/2021,091HOUSING,Housing and Community Services,20128,Public Conveniences,B2201,Electricity,120.84,Laser Energy Buying Group (Kent County Council Commercial Services),Electricity - Electricity Charges,2024790,202102
Rother District Council,23/03/2021,091HOUSING,Housing and Community Services,20128,Public Conveniences,B2201,Electricity,-35.26,Laser Energy Buying Group (Kent County Council Commercial Services),Electricity - Electricity Charges,2024790,202102
Rother District Council,23/03/2021,091HOUSING,Housing and Community Services,20128,Public Conveniences,B2201,Electricity,30.00,Laser Energy Buying Group (Kent County Council Commercial Services),Electricity - Electricity Charges,2024790,202102
Rother District Council,23/03/2021,091HOUSING,Housing and Community Services,20128,Public Conveniences,B2201,Electricity,110.26,Laser Energy Buying Group (Kent County Council Commercial Services),Electricity - Electricity Charges,2024790,202102
Rother District Council,23/03/2021,091HOUSING,Housing and Community Services,20128,Public Conveniences,B2201,Electricity,65.71,Laser Energy Buying Group (Kent County Council Commercial Services),Electricity - Electricity Charges,2024790,202102
Rother District Council,23/03/2021,091HOUSING,Housing and Community Services,20128,Public Conveniences,B2201,Electricity,58.85,Laser Energy Buying Group (Kent County Council Commercial Services),Electricity - Electricity Charges,2024790,202102
Rother District Council,23/03/2021,091HOUSING,Housing and Community Services,20115,Rye Area Parks & Gardens,B2201,Electricity,-25.88,Laser Energy Buying Group (Kent County Council Commercial Services),Electricity - Electricity Charges,2024790,202102
Rother District Council,23/03/2021,091HOUSING,Housing and Community Services,20115,Rye Area Parks & Gardens,B2201,Electricity,-28.66,Laser Energy Buying Group (Kent County Council Commercial Services),Electricity - Electricity Charges,2024790,202102
Rother District Council,23/03/2021,091HOUSING,Housing and Community Services,20114,Bexhill Parks & Open Spaces,B2201,Electricity,-32.04,Laser Energy Buying Group (Kent County Council Commercial Services),Electricity - Electricity Charges,2024790,202102
Rother District Council,23/03/2021,091HOUSING,Housing and Community Services,20114,Bexhill Parks & Open Spaces,B2201,Electricity,-32.04,Laser Energy Buying Group (Kent County Council Commercial Services),Electricity - Electricity Charges,2024790,202102
Rother District Council,23/03/2021,091HOUSING,Housing and Community Services,20114,Bexhill Parks & Open Spaces,B2201,Electricity,190.22,Laser Energy Buying Group (Kent County Council Commercial Services),Electricity - Electricity Charges,2024790,202102
Rother District Council,23/03/2021,091HOUSING,Housing and Community Services,20114,Bexhill Parks & Open Spaces,B2201,Electricity,44.45,Laser Energy Buying Group (Kent County Council Commercial Services),Electricity - Electricity Charges,2024790,202102
Rother District Council,23/03/2021,091HOUSING,Housing and Community Services,20128,Public Conveniences,B2201,Electricity,33.91,Laser Energy Buying Group (Kent County Council Commercial Services),Electricity - Electricity Charges,2024790,202102
Rother District Council,23/03/2021,091HOUSING,Housing and Community Services,20128,Public Conveniences,B2201,Electricity,88.82,Laser Energy Buying Group (Kent County Council Commercial Services),Electricity - Electricity Charges,2024790,202102
Rother District Council,23/03/2021,091HOUSING,Housing and Community Services,20128,Public Conveniences,B2201,Electricity,-48.34,Laser Energy Buying Group (Kent County Council Commercial Services),Electricity - Electricity Charges,2024790,202102
Rother District Council,23/03/2021,091HOUSING,Housing and Community Services,20128,Public Conveniences,B2201,Electricity,48.34,Laser Energy Buying Group (Kent County Council Commercial Services),Electricity - Electricity Charges,2024790,202102
Rother District Council,23/03/2021,091HOUSING,Housing and Community Services,20128,Public Conveniences,B2201,Electricity,34.66,Laser Energy Buying Group (Kent County Council Commercial Services),Electricity - Electricity Charges,2024790,202102
Rother District Council,23/03/2021,091HOUSING,Housing and Community Services,20128,Public Conveniences,B2201,Electricity,73.27,Laser Energy Buying Group (Kent County Council Commercial Services),Electricity - Electricity Charges,2024790,202102
Rother District Council,23/03/2021,091HOUSING,Housing and Community Services,20128,Public Conveniences,B2201,Electricity,35.07,Laser Energy Buying Group (Kent County Council Commercial Services),Electricity - Electricity Charges,2024790,202102
Rother District Council,23/03/2021,091HOUSING,Housing and Community Services,20128,Public Conveniences,B2201,Electricity,32.04,Laser Energy Buying Group (Kent County Council Commercial Services),Electricity - Electricity Charges,2024790,202102
Rother District Council,23/03/2021,091HOUSING,Housing and Community Services,20128,Public Conveniences,B2201,Electricity,80.81,Laser Energy Buying Group (Kent County Council Commercial Services),Electricity - Electricity Charges,2024790,202102
Rother District Council,23/03/2021,091HOUSING,Housing and Community Services,20128,Public Conveniences,B2201,Electricity,-29.43,Laser Energy Buying Group (Kent County Council Commercial Services),Electricity - Electricity Charges,2024790,202102
Rother District Council,23/03/2021,091HOUSING,Housing and Community Services,20128,Public Conveniences,B2201,Electricity,61.95,Laser Energy Buying Group (Kent County Council Commercial Services),Electricity - Electricity Charges,2024790,202102
Rother District Council,23/03/2021,091HOUSING,Housing and Community Services,20128,Public Conveniences,B2201,Electricity,5.47,Laser Energy Buying Group (Kent County Council Commercial Services),Electricity - Electricity Charges,2024790,202102
Rother District Council,23/03/2021,091HOUSING,Housing and Community Services,20128,Public Conveniences,B2201,Electricity,-28.41,Laser Energy Buying Group (Kent County Council Commercial Services),Electricity - Electricity Charges,2024790,202102
Rother District Council,23/03/2021,091HOUSING,Housing and Community Services,20128,Public Conveniences,B2201,Electricity,79.74,Laser Energy Buying Group (Kent County Council Commercial Services),Electricity - Electricity Charges,2024790,202102
Rother District Council,23/03/2021,091HOUSING,Housing and Community Services,20128,Public Conveniences,B2201,Electricity,39.59,Laser Energy Buying Group (Kent County Council Commercial Services),Electricity - Electricity Charges,2024790,202102
Rother District Council,23/03/2021,091HOUSING,Housing and Community Services,20114,Bexhill Parks & Open Spaces,B2201,Electricity,-39.32,Laser Energy Buying Group (Kent County Council Commercial Services),Electricity - Electricity Charges,2024790,202102
Rother District Council,23/03/2021,091HOUSING,Housing and Community Services,20114,Bexhill Parks & Open Spaces,B2201,Electricity,21.88,Laser Energy Buying Group (Kent County Council Commercial Services),Electricity - Electricity Charges,2024790,202102
Rother District Council,23/03/2021,091HOUSING,Housing and Community Services,20108,Bexhill Promenade & Foreshore,B2201,Electricity,17.59,Laser Energy Buying Group (Kent County Council Commercial Services),Electricity - Electricity Charges,2024790,202102
Rother District Council,23/03/2021,091HOUSING,Housing and Community Services,20108,Bexhill Promenade & Foreshore,B2201,Electricity,-36.81,Laser Energy Buying Group (Kent County Council Commercial Services),Electricity - Electricity Charges,2024790,202102
Rother District Council,23/03/2021,091HOUSING,Housing and Community Services,20108,Bexhill Promenade & Foreshore,B2201,Electricity,54.63,Laser Energy Buying Group (Kent County Council Commercial Services),Electricity - Electricity Charges,2024790,202102
Rother District Council,23/03/2021,091HOUSING,Housing and Community Services,20115,Rye Area Parks & Gardens,B2201,Electricity,28.66,Laser Energy Buying Group (Kent County Council Commercial Services),Electricity - Electricity Charges,2024790,202102
Rother District Council,23/03/2021,091HOUSING,Housing and Community Services,20115,Rye Area Parks & Gardens,B2201,Electricity,13.12,Laser Energy Buying Group (Kent County Council Commercial Services),Electricity - Electricity Charges,2024790,202102
Rother District Council,23/03/2021,091HOUSING,Housing and Community Services,20115,Rye Area Parks & Gardens,B2201,Electricity,-19.46,Laser Energy Buying Group (Kent County Council Commercial Services),Electricity - Electricity Charges,2024790,202102
Rother District Council,23/03/2021,091HOUSING,Housing and Community Services,20114,Bexhill Parks & Open Spaces,B2201,Electricity,25.01,Laser Energy Buying Group (Kent County Council Commercial Services),Electricity - Electricity Charges,2024790,202102
Rother District Council,23/03/2021,091HOUSING,Housing and Community Services,20114,Bexhill Parks & Open Spaces,B2201,Electricity,16.28,Laser Energy Buying Group (Kent County Council Commercial Services),Electricity - Electricity Charges,2024790,202102
Rother District Council,23/03/2021,091HOUSING,Housing and Community Services,20128,Public Conveniences,B2201,Electricity,26.25,Laser Energy Buying Group (Kent County Council Commercial Services),Electricity - Electricity Charges,2024790,202102
Rother District Council,23/03/2021,091HOUSING,Housing and Community Services,20128,Public Conveniences,B2201,Electricity,25.15,Laser Energy Buying Group (Kent County Council Commercial Services),Electricity - Electricity Charges,2024790,202102
Rother District Council,23/03/2021,091HOUSING,Housing and Community Services,20128,Public Conveniences,B2201,Electricity,30.79,Laser Energy Buying Group (Kent County Council Commercial Services),Electricity - Electricity Charges,2024790,202102
Rother District Council,23/03/2021,091HOUSING,Housing and Community Services,20128,Public Conveniences,B2201,Electricity,29.41,Laser Energy Buying Group (Kent County Council Commercial Services),Electricity - Electricity Charges,2024790,202102
Rother District Council,23/03/2021,091HOUSING,Housing and Community Services,20128,Public Conveniences,B2201,Electricity,89.50,Laser Energy Buying Group (Kent County Council Commercial Services),Electricity - Electricity Charges,2024790,202102
Rother District Council,23/03/2021,091HOUSING,Housing and Community Services,20128,Public Conveniences,B2201,Electricity,30.79,Laser Energy Buying Group (Kent County Council Commercial Services),Electricity - Electricity Charges,2024790,202102
Rother District Council,23/03/2021,091HOUSING,Housing and Community Services,20128,Public Conveniences,B2201,Electricity,37.68,Laser Energy Buying Group (Kent County Council Commercial Services),Electricity - Electricity Charges,2024790,202102
Rother District Council,23/03/2021,091HOUSING,Housing and Community Services,20128,Public Conveniences,B2201,Electricity,31.75,Laser Energy Buying Group (Kent County Council Commercial Services),Electricity - Electricity Charges,2024790,202102
Rother District Council,23/03/2021,091HOUSING,Housing and Community Services,20128,Public Conveniences,B2201,Electricity,55.16,Laser Energy Buying Group (Kent County Council Commercial Services),Electricity - Electricity Charges,2024790,202102
Rother District Council,23/03/2021,091HOUSING,Housing and Community Services,20128,Public Conveniences,B2201,Electricity,31.61,Laser Energy Buying Group (Kent County Council Commercial Services),Electricity - Electricity Charges,2024790,202102
Rother District Council,23/03/2021,091HOUSING,Housing and Community Services,20128,Public Conveniences,B2201,Electricity,48.85,Laser Energy Buying Group (Kent County Council Commercial Services),Electricity - Electricity Charges,2024790,202102
Rother District Council,23/03/2021,091HOUSING,Housing and Community Services,20128,Public Conveniences,B2201,Electricity,46.60,Laser Energy Buying Group (Kent County Council Commercial Services),Electricity - Electricity Charges,2024790,202102
Rother District Council,23/03/2021,091HOUSING,Housing and Community Services,20128,Public Conveniences,B2201,Electricity,68.88,Laser Energy Buying Group (Kent County Council Commercial Services),Electricity - Electricity Charges,2024790,202102
Rother District Council,23/03/2021,091HOUSING,Housing and Community Services,20128,Public Conveniences,B2201,Electricity,41.71,Laser Energy Buying Group (Kent County Council Commercial Services),Electricity - Electricity Charges,2024790,202102
Rother District Council,23/03/2021,091HOUSING,Housing and Community Services,20128,Public Conveniences,B2201,Electricity,34.37,Laser Energy Buying Group (Kent County Council Commercial Services),Electricity - Electricity Charges,2024790,202102
Rother District Council,23/03/2021,091HOUSING,Housing and Community Services,20128,Public Conveniences,B2201,Electricity,19.61,Laser Energy Buying Group (Kent County Council Commercial Services),Electricity - Electricity Charges,2024790,202102
Rother District Council,23/03/2021,091HOUSING,Housing and Community Services,20128,Public Conveniences,B2201,Electricity,18.98,Laser Energy Buying Group (Kent County Council Commercial Services),Electricity - Electricity Charges,2024790,202102
Rother District Council,23/03/2021,091HOUSING,Housing and Community Services,20128,Public Conveniences,B2201,Electricity,19.61,Laser Energy Buying Group (Kent County Council Commercial Services),Electricity - Electricity Charges,2024790,202102
Rother District Council,23/03/2021,091HOUSING,Housing and Community Services,20115,Rye Area Parks & Gardens,B2201,Electricity,-25.88,Laser Energy Buying Group (Kent County Council Commercial Services),Electricity - Electricity Charges,2024790,202102
Rother District Council,23/03/2021,091HOUSING,Housing and Community Services,20115,Rye Area Parks & Gardens,B2201,Electricity,-28.66,Laser Energy Buying Group (Kent County Council Commercial Services),Electricity - Electricity Charges,2024790,202102
Rother District Council,23/03/2021,091HOUSING,Housing and Community Services,20115,Rye Area Parks & Gardens,B2201,Electricity,27.64,Laser Energy Buying Group (Kent County Council Commercial Services),Electricity - Electricity Charges,2024790,202102
Rother District Council,23/03/2021,091HOUSING,Housing and Community Services,20115,Rye Area Parks & Gardens,B2201,Electricity,28.11,Laser Energy Buying Group (Kent County Council Commercial Services),Electricity - Electricity Charges,2024790,202102
Rother District Council,23/03/2021,091HOUSING,Housing and Community Services,20115,Rye Area Parks & Gardens,B2201,Electricity,25.88,Laser Energy Buying Group (Kent County Council Commercial Services),Electricity - Electricity Charges,2024790,202102
Rother District Council,23/03/2021,091HOUSING,Housing and Community Services,20114,Bexhill Parks & Open Spaces,B2201,Electricity,105.08,Laser Energy Buying Group (Kent County Council Commercial Services),Electricity - Electricity Charges,2024790,202102
Rother District Council,23/03/2021,091HOUSING,Housing and Community Services,20114,Bexhill Parks & Open Spaces,B2201,Electricity,85.38,Laser Energy Buying Group (Kent County Council Commercial Services),Electricity - Electricity Charges,2024790,202102
Rother District Council,23/03/2021,091HOUSING,Housing and Community Services,20128,Public Conveniences,B2201,Electricity,32.04,Laser Energy Buying Group (Kent County Council Commercial Services),Electricity - Electricity Charges,2024790,202102
Rother District Council,23/03/2021,091HOUSING,Housing and Community Services,20128,Public Conveniences,B2201,Electricity,170.10,Laser Energy Buying Group (Kent County Council Commercial Services),Electricity - Electricity Charges,2024790,202102
Rother District Council,23/03/2021,091HOUSING,Housing and Community Services,20128,Public Conveniences,B2201,Electricity,165.50,Laser Energy Buying Group (Kent County Council Commercial Services),Electricity - Electricity Charges,2024790,202102
Rother District Council,23/03/2021,091HOUSING,Housing and Community Services,20128,Public Conveniences,B2201,Electricity,-43.86,Laser Energy Buying Group (Kent County Council Commercial Services),Electricity - Electricity Charges,2024790,202102
Rother District Council,23/03/2021,091HOUSING,Housing and Community Services,20137,Car Parks,B2201,Electricity,33.26,Laser Energy Buying Group (Kent County Council Commercial Services),Electricity - Electricity Charges,2024790,202102
Rother District Council,23/03/2021,091HOUSING,Housing and Community Services,20137,Car Parks,B2201,Electricity,42.06,Laser Energy Buying Group (Kent County Council Commercial Services),Electricity - Electricity Charges,2024790,202102
Rother District Council,24/03/2021,091HOUSING,Housing and Community Services,20261,"TA Purchases (prev - 41 Jameson Mews, Bexhill on Sea)",B2421,Water,121.99,South East Water Ltd,Water - Water Charges,2025599,202103
Rother District Council,24/03/2021,041ENVIRON,Environmental Services,32144,EH Environmental Services Admin R + W Partnership,A2203,Training,230.00,Housing Training and Consultancy Ltd,Training,2023769,202101
Rother District Council,24/03/2021,091HOUSING,Housing and Community Services,20261,"TA Purchases (prev - 41 Jameson Mews, Bexhill on Sea)",B2422,Sewerage,120.14,South East Water Ltd,Sewerage - Sewerage Charges,2025599,202103
Rother District Council,24/03/2021,091HOUSING,Housing and Community Services,20137,Car Parks,B1100,Repairs to Premises,474.89,Alfa Electric Ltd,Repairs to Premises - Repairs - Electrical Works,2023820,202101
Rother District Council,24/03/2021,091HOUSING,Housing and Community Services,20137,Car Parks,B1100,Repairs to Premises,29.60,Parker Building Supplies Ltd,Repairs to Premises - Purchase of Materials - Build Maint,2023613,202101
Rother District Council,24/03/2021,091HOUSING,Housing and Community Services,20114,Bexhill Parks & Open Spaces,B1100,Repairs to Premises,580.00,REDACTED PERSONAL DATA,Repairs to Premises - Parks- Landscaping Works,2024233,202101
Rother District Council,24/03/2021,091HOUSING,Housing and Community Services,20102,Rother Museum Services,B1100,Repairs to Premises,206.00,ADT Fire and  Security Plc,Repairs to Premises - Fire Alarm System Maintenance,2023835,202101
Rother District Council,24/03/2021,031RESOURCES,Chief Executive & Corporate Core,20173,Administrative Offices - Town Hall,D2513,Hired and Contracted services,140.00,J M Waste Management Limited,Hired and contracted services - Hire of Skip,2023790,202101
Rother District Council,24/03/2021,091HOUSING,Housing and Community Services,20109,Sports Development,D2923,Grants made,299.50,REDACTED PERSONAL DATA,Grants made - Sports Development-Active Rother,2023770,202101
Rother District Council,24/03/2021,091HOUSING,Housing and Community Services,20109,Sports Development,D2923,Grants made,299.50,REDACTED PERSONAL DATA,Grants made - Sports Development Projects,2023770,202101
Rother District Council,24/03/2021,091HOUSING,Housing and Community Services,20114,Bexhill Parks & Open Spaces,D1201,Equipment & Materials,808.08,UK Timber Ltd,Equipment & Materials - Parks - Horticultural Sundries,2024365,202102
Rother District Council,24/03/2021,091HOUSING,Housing and Community Services,20114,Bexhill Parks & Open Spaces,D1201,Equipment & Materials,895.00,Fuzion 4 Limited,Equipment & Materials - CCTV,2023643,202101
Rother District Council,24/03/2021,091HOUSING,Housing and Community Services,20114,Bexhill Parks & Open Spaces,D1201,Equipment & Materials,99.50,Fuzion 4 Limited,Equipment & Materials - CCTV,2023644,202101
Rother District Council,24/03/2021,021CORP,Corporate Services & Human Resources,20165,ESCC Elections,D2513,Hired and Contracted services,125.00,Catsfield Village Hall,Hired and Contracted services,2025548,202103
Rother District Council,24/03/2021,021CORP,Corporate Services & Human Resources,20168,Police Crime Commissioners,D2513,Hired and Contracted services,125.00,Catsfield Village Hall,Hired and Contracted services,2025548,202103
Rother District Council,25/03/2021,031RESOURCES,Chief Executive & Corporate Core,20171,Human Resources,A2203,Training,818.10,Croner Group Ltd,Subscriptions - Subscription to Organisations,2024064,202101
Rother District Council,25/03/2021,031RESOURCES,Chief Executive & Corporate Core,20171,Human Resources,A2203,Training,101.81,Croner Group Ltd,Subscriptions - Subscription to Organisations,2024064,202101
Rother District Council,25/03/2021,091HOUSING,Housing and Community Services,20114,Bexhill Parks & Open Spaces,B1100,Repairs to Premises,635.00,REDACTED PERSONAL DATA,Repairs to Premises - Parks - Redecoration Works,2023618,202101
Rother District Council,25/03/2021,091HOUSING,Housing and Community Services,20108,Bexhill Promenade & Foreshore,B1100,Repairs to Premises,250.00,The Old Clock Workshop,Repairs to Premises - Clock Repair/Maintenance,2023831,202101
Rother District Council,25/03/2021,091HOUSING,Housing and Community Services,20114,Bexhill Parks & Open Spaces,B1100,Repairs to Premises,250.00,The Old Clock Workshop,Repairs to Premises - Clock Repair/Maintenance,2023830,202101
Rother District Council,25/03/2021,091HOUSING,Housing and Community Services,20108,Bexhill Promenade & Foreshore,D2623,Radios and licences,12.95,Digitall Comms Ltd,Radios and licences - Radio/Transmitter Licences,2023877,202101
Rother District Council,25/03/2021,091HOUSING,Housing and Community Services,20108,Bexhill Promenade & Foreshore,D2623,Radios and licences,50.00,Digitall Comms Ltd,Radios and licences - Radio/Transmitter Licences,2023878,202101
Rother District Council,25/03/2021,091HOUSING,Housing and Community Services,20108,Bexhill Promenade & Foreshore,D2623,Radios and licences,50.00,Digitall Comms Ltd,Radios and licences - Radio/Transmitter Licences,2023879,202101
Rother District Council,25/03/2021,101RESOURCES,Resources,20216,Cost Of Collection,D2626,Postages,"1,321.72",DSI Billing Services Ltd,Postages - DSI Billing,2023768,202102
Rother District Council,25/03/2021,091HOUSING,Housing and Community Services,20114,Bexhill Parks & Open Spaces,D1201,Equipment & Materials,148.00,Thompson Advertising,Equipment and Materials - Parks - Purchase of Signs,2024027,202101
Rother District Council,25/03/2021,091HOUSING,Housing and Community Services,20114,Bexhill Parks & Open Spaces,D1201,Equipment & Materials,240.00,Town End (Leeds) Plc,Equipment & Materials - Parks - Horticultural Sundries,2023661,202101
Rother District Council,25/03/2021,101RESOURCES,Resources,20222,Accountancy,A1110,Agency Staff,"3,350.00",Law Morgan Limited,Agency Staff,2023834,202101
Rother District Council,26/03/2021,091HOUSING,Housing and Community Services,20128,Public Conveniences,B1100,Repairs to Premises,294.68,Alfa Electric Ltd,Repairs to Premises - Repairs - Electrical Works,2023822,202101
Rother District Council,26/03/2021,091HOUSING,Housing and Community Services,20114,Bexhill Parks & Open Spaces,B1100,Repairs to Premises,138.75,Saint-Gobain Building Distribution Ltd t/a Jewson,Repairs to Premises - Purchase of Materials - Build Maint,2023910,202101
Rother District Council,26/03/2021,091HOUSING,Housing and Community Services,20114,Bexhill Parks & Open Spaces,B1100,Repairs to Premises,240.00,REDACTED PERSONAL DATA,Repairs to Premises - Parks - Redecoration Works,2023728,202101
Rother District Council,26/03/2021,091HOUSING,Housing and Community Services,20114,Bexhill Parks & Open Spaces,B1100,Repairs to Premises,"3,874.80",The Children�s Playground Co. Ltd,Repairs to Premises - Parks - Playground Repairs,2024610,202102
Rother District Council,26/03/2021,071STRAT,Strategy and Planning,20258,BC Dangerous Structures H+R Partnership,D2513,Hired and Contracted services,9.00,H M Land Registry,Hired and contracted services - Env H-Land Registry,2023907,202101
Rother District Council,26/03/2021,041ENVIRON,Environmental Services,32144,EH Environmental Services Admin R + W Partnership,D2513,Hired and Contracted services,3.00,H M Land Registry,Hired and contracted services - Env H-Land Registry,2023907,202101
Rother District Council,26/03/2021,071STRAT,Strategy and Planning,20246,Planning Applications,D2513,Hired and Contracted services,39.00,H M Land Registry,Hired and contracted services - Council Tax-Land Registry Enquiries,2023907,202101
Rother District Council,26/03/2021,101RESOURCES,Resources,20216,Cost Of Collection,D2513,Hired and Contracted services,6.00,H M Land Registry,Hired and contracted services - Council Tax-Land Registry Enquiries,2023907,202101
Rother District Council,26/03/2021,081ACQUISIT,"Acquisitions, Transformation and Regeneration",20266,Property Investment Strategy,D2509,Consultants and Other Services,"4,950.00",Whitby Wood Ltd,Consultants and other services - Consultants Fees,2023976,202101
Rother District Council,26/03/2021,091HOUSING,Housing and Community Services,20200,Housing Needs - HB (Housing Benefit),D2514,Accommodation Costs,413.00,Lillybank Homes Ltd,Accommodation Costs,2023762,202101
Rother District Council,26/03/2021,091HOUSING,Housing and Community Services,20200,Housing Needs - HB (Housing Benefit),D2514,Accommodation Costs,24.99,Lillybank Homes Ltd,Accommodation Costs,2023762,202101
Rother District Council,26/03/2021,091HOUSING,Housing and Community Services,20200,Housing Needs - HB (Housing Benefit),D2514,Accommodation Costs,49.00,Lillybank Homes Ltd,Accommodation Costs,2023762,202101
Rother District Council,26/03/2021,091HOUSING,Housing and Community Services,20200,Housing Needs - HB (Housing Benefit),D2514,Accommodation Costs,455.00,Lillybank Homes Ltd,Accommodation Costs,2023762,202101
Rother District Council,26/03/2021,091HOUSING,Housing and Community Services,20200,Housing Needs - HB (Housing Benefit),D2514,Accommodation Costs,24.99,Lillybank Homes Ltd,Accommodation Costs,2023762,202101
Rother District Council,26/03/2021,091HOUSING,Housing and Community Services,20200,Housing Needs - HB (Housing Benefit),D2514,Accommodation Costs,413.00,Lillybank Homes Ltd,Accommodation Costs,2023762,202101
Rother District Council,26/03/2021,091HOUSING,Housing and Community Services,20200,Housing Needs - HB (Housing Benefit),D2514,Accommodation Costs,455.00,Lillybank Homes Ltd,Accommodation Costs,2023762,202101
Rother District Council,26/03/2021,091HOUSING,Housing and Community Services,20200,Housing Needs - HB (Housing Benefit),D2514,Accommodation Costs,507.50,Lillybank Homes Ltd,Accommodation Costs,2023762,202101
Rother District Council,26/03/2021,091HOUSING,Housing and Community Services,20329,Rough Sleeping Initiative,D2514,Accommodation Costs,413.00,Lillybank Homes Ltd,Accommodation Costs,2023762,202101
Rother District Council,26/03/2021,091HOUSING,Housing and Community Services,20329,Rough Sleeping Initiative,D2514,Accommodation Costs,520.00,Lillybank Homes Ltd,Accommodation Costs,2023762,202101
Rother District Council,26/03/2021,101RESOURCES,Resources,20222,Accountancy,D2513,Hired and Contracted services,"5,243.39",Wealden District Council,Hired and Contracted services,2023851,202101
Rother District Council,28/03/2021,091HOUSING,Housing and Community Services,20109,Sports Development,D2923,Grants made,195.00,REDACTED PERSONAL DATA,Grants made - Sports Development-Active Rother,2023802,202101
Rother District Council,28/03/2021,101RESOURCES,Resources,20222,Accountancy,D2635,Computer Licences,"1,210.37",Integra Associates Ltd,Computer Licences - New Computer Software,2024096,202101
Rother District Council,28/03/2021,091HOUSING,Housing and Community Services,20329,Rough Sleeping Initiative,D2514,Accommodation Costs,300.00,Specialist Care UK Group Ltd,Accommodation Costs,2024007,202101
Rother District Council,29/03/2021,081ACQUISIT,"Acquisitions, Transformation and Regeneration",20148,Misc Land & Buildings,B1100,Repairs to Premises,7.15,Sussex Plumbing Supplies Ltd,Repairs to Premises - Purchase of Materials - Build Maint,2023764,202101
Rother District Council,29/03/2021,071STRAT,Strategy and Planning,20255,Local Development Framework,D2513,Hired and Contracted services,"1,990.00",RRR Consultancy,Hired and contracted services - LDF Consultancy,2024043,202101
Rother District Council,29/03/2021,091HOUSING,Housing and Community Services,20114,Bexhill Parks & Open Spaces,D1201,Equipment & Materials,63.00,Farm Forestry Co Ltd,Equipment & Materials - Parks - Horticultural Sundries,2023793,202101
Rother District Council,29/03/2021,031RESOURCES,Chief Executive & Corporate Core,20276,COVID19 RDC expenditure,D2514,Accommodation Costs,60.00,South Down Residential Ltd,Accomodation Costs - Housing Due to Covid 19,2023740,202101
Rother District Council,29/03/2021,031RESOURCES,Chief Executive & Corporate Core,20276,COVID19 RDC expenditure,D2514,Accommodation Costs,300.00,South Down Residential Ltd,Accomodation Costs - Housing Due to Covid 19,2023740,202101
Rother District Council,29/03/2021,031RESOURCES,Chief Executive & Corporate Core,20276,COVID19 RDC expenditure,D2514,Accommodation Costs,402.50,South Down Residential Ltd,Accomodation Costs - Housing Due to Covid 19,2023740,202101
Rother District Council,29/03/2021,091HOUSING,Housing and Community Services,20205,Housing Loans Account,D2514,Accommodation Costs,850.00,JFS Properties,Accommodation Costs - Homelessness services Rent in Advance for Homeless,2023883,202101
Rother District Council,29/03/2021,091HOUSING,Housing and Community Services,20202,Rother Tenant Finder (prev Rother Letting Service),D2514,Accommodation Costs,"1,000.00",JFS Properties (Bexhill) t/a/ JFS Properties Ltd - Tenant Finder Incentive Only,Accommodation Costs - Homelessness services Rent in Advance for Homeless,2023882,202101
Rother District Council,29/03/2021,091HOUSING,Housing and Community Services,20205,Housing Loans Account,D2514,Accommodation Costs,980.00,JFS Properties,Accommodation Costs - Homelessness services Deposit for Landlords,2023883,202101
Rother District Council,29/03/2021,091HOUSING,Housing and Community Services,20200,Housing Needs - HB (Housing Benefit),D2514,Accommodation Costs,302.40,South Down Residential Ltd,Accommodation Costs,2023740,202101
Rother District Council,29/03/2021,091HOUSING,Housing and Community Services,20200,Housing Needs - HB (Housing Benefit),D2514,Accommodation Costs,75.60,South Down Residential Ltd,Accommodation Costs,2023740,202101
Rother District Council,29/03/2021,091HOUSING,Housing and Community Services,20200,Housing Needs - HB (Housing Benefit),D2514,Accommodation Costs,336.00,South Down Residential Ltd,Accommodation Costs,2023740,202101
Rother District Council,29/03/2021,091HOUSING,Housing and Community Services,20200,Housing Needs - HB (Housing Benefit),D2514,Accommodation Costs,84.00,South Down Residential Ltd,Accommodation Costs,2023740,202101
Rother District Council,29/03/2021,091HOUSING,Housing and Community Services,20200,Housing Needs - HB (Housing Benefit),D2514,Accommodation Costs,302.40,South Down Residential Ltd,Accommodation Costs,2023740,202101
Rother District Council,29/03/2021,091HOUSING,Housing and Community Services,20200,Housing Needs - HB (Housing Benefit),D2514,Accommodation Costs,75.60,South Down Residential Ltd,Accommodation Costs,2023740,202101
Rother District Council,29/03/2021,091HOUSING,Housing and Community Services,20329,Rough Sleeping Initiative,D2514,Accommodation Costs,336.00,South Down Residential Ltd,Accommodation Costs,2023740,202101
Rother District Council,29/03/2021,091HOUSING,Housing and Community Services,20329,Rough Sleeping Initiative,D2514,Accommodation Costs,84.00,South Down Residential Ltd,Accommodation Costs,2023740,202101
Rother District Council,29/03/2021,091HOUSING,Housing and Community Services,20329,Rough Sleeping Initiative,D2514,Accommodation Costs,145.60,South Down Residential Ltd,Accommodation Costs,2023740,202101
Rother District Council,29/03/2021,091HOUSING,Housing and Community Services,20329,Rough Sleeping Initiative,D2514,Accommodation Costs,36.40,South Down Residential Ltd,Accommodation Costs,2023740,202101
Rother District Council,29/03/2021,091HOUSING,Housing and Community Services,20329,Rough Sleeping Initiative,D2514,Accommodation Costs,145.60,South Down Residential Ltd,Accommodation Costs,2023740,202101
Rother District Council,29/03/2021,091HOUSING,Housing and Community Services,20329,Rough Sleeping Initiative,D2514,Accommodation Costs,36.40,South Down Residential Ltd,Accommodation Costs,2023740,202101
Rother District Council,29/03/2021,091HOUSING,Housing and Community Services,20200,Housing Needs - HB (Housing Benefit),D2514,Accommodation Costs,378.00,South Down Residential Ltd,Accommodation Costs,2023740,202101
Rother District Council,29/03/2021,091HOUSING,Housing and Community Services,20200,Housing Needs - HB (Housing Benefit),D2514,Accommodation Costs,420.00,South Down Residential Ltd,Accommodation Costs,2023740,202101
Rother District Council,29/03/2021,091HOUSING,Housing and Community Services,20200,Housing Needs - HB (Housing Benefit),D2514,Accommodation Costs,300.00,South Down Residential Ltd,Accommodation Costs,2023740,202101
Rother District Council,29/03/2021,091HOUSING,Housing and Community Services,20200,Housing Needs - HB (Housing Benefit),D2514,Accommodation Costs,402.50,South Down Residential Ltd,Accommodation Costs,2023740,202101
Rother District Council,29/03/2021,091HOUSING,Housing and Community Services,20200,Housing Needs - HB (Housing Benefit),D2514,Accommodation Costs,402.51,South Down Residential Ltd,Accommodation Costs,2023740,202101
Rother District Council,29/03/2021,091HOUSING,Housing and Community Services,20329,Rough Sleeping Initiative,D2514,Accommodation Costs,390.00,Roost People Ltd,Accommodation Costs,2023778,202101
Rother District Council,29/03/2021,091HOUSING,Housing and Community Services,20200,Housing Needs - HB (Housing Benefit),D2514,Accommodation Costs,340.00,Roost People Ltd,Accommodation Costs,2023778,202101
Rother District Council,29/03/2021,091HOUSING,Housing and Community Services,20200,Housing Needs - HB (Housing Benefit),D2514,Accommodation Costs,415.00,Roost People Ltd,Accommodation Costs,2023778,202101
Rother District Council,29/03/2021,091HOUSING,Housing and Community Services,20200,Housing Needs - HB (Housing Benefit),D2514,Accommodation Costs,390.00,Roost People Ltd,Accommodation Costs,2023778,202101
Rother District Council,29/03/2021,091HOUSING,Housing and Community Services,20200,Housing Needs - HB (Housing Benefit),D2514,Accommodation Costs,390.00,Roost People Ltd,Accommodation Costs,2023778,202101
Rother District Council,29/03/2021,091HOUSING,Housing and Community Services,20200,Housing Needs - HB (Housing Benefit),D2514,Accommodation Costs,315.00,Roost People Ltd,Accommodation Costs,2023778,202101
Rother District Council,29/03/2021,091HOUSING,Housing and Community Services,20200,Housing Needs - HB (Housing Benefit),D2514,Accommodation Costs,340.00,Roost People Ltd,Accommodation Costs,2023778,202101
Rother District Council,29/03/2021,091HOUSING,Housing and Community Services,20200,Housing Needs - HB (Housing Benefit),D2514,Accommodation Costs,315.00,Roost People Ltd,Accommodation Costs,2023778,202101
Rother District Council,29/03/2021,091HOUSING,Housing and Community Services,20329,Rough Sleeping Initiative,D2514,Accommodation Costs,390.00,Roost People Ltd,Accommodation Costs,2023778,202101
Rother District Council,29/03/2021,091HOUSING,Housing and Community Services,20200,Housing Needs - HB (Housing Benefit),D2514,Accommodation Costs,990.00,Key Property Solutions Guaranteed Ltd,Accommodation Costs,2023747,202101
Rother District Council,29/03/2021,091HOUSING,Housing and Community Services,20329,Rough Sleeping Initiative,D2514,Accommodation Costs,315.00,Roost People Ltd,Accommodation Costs,2023778,202101
Rother District Council,30/03/2021,091HOUSING,Housing and Community Services,20128,Public Conveniences,B2421,Water,609.44,Scottish Water Business Stream Limited,Water - Water Charges,2023825,202101
Rother District Council,30/03/2021,031RESOURCES,Chief Executive & Corporate Core,20171,Human Resources,A2203,Training,700.00,BraintrainersUK LLP,Training,2024050,202101
Rother District Council,30/03/2021,091HOUSING,Housing and Community Services,20128,Public Conveniences,B2422,Sewerage,817.16,Scottish Water Business Stream Limited,Sewerage - Sewerage Charges,2023825,202101
Rother District Council,30/03/2021,091HOUSING,Housing and Community Services,20107,Camber Beach & Foreshore,B1100,Repairs to Premises,"1,667.00",D M Building Services & Son Ltd,Repairs to Premises - Sand Clearance at Camber,2023911,202101
Rother District Council,30/03/2021,091HOUSING,Housing and Community Services,20114,Bexhill Parks & Open Spaces,B1100,Repairs to Premises,132.63,Alfa Electric Ltd,Repairs to Premises - Repairs - Electrical Works,2024312,202101
Rother District Council,30/03/2021,091HOUSING,Housing and Community Services,20114,Bexhill Parks & Open Spaces,B1100,Repairs to Premises,"2,570.00",Gristwood and Toms Limited,Repairs to Premises - Parks - Tree Works,2023789,202101
Rother District Council,30/03/2021,091HOUSING,Housing and Community Services,20109,Sports Development,D2923,Grants made,300.00,Up-Grade Training & Therapy Ltd,Grants made - Sports Development-Active Rother,2023880,202101
Rother District Council,30/03/2021,091HOUSING,Housing and Community Services,20109,Sports Development,D2923,Grants made,300.00,Up-Grade Training & Therapy Ltd,Grants made - Sports Development Projects,2023880,202101
Rother District Council,30/03/2021,091HOUSING,Housing and Community Services,20114,Bexhill Parks & Open Spaces,D1201,Equipment & Materials,50.00,Fuzion 4 Limited,Equipment & Materials - Parks- Purchase of Padlocks,2023810,202101
Rother District Council,30/03/2021,101RESOURCES,Resources,20217,Reliefs & Benefits-Council Tax Benefit,D2509,Consultants and Other Services,127.99,Northgate Public Services (UK) Ltd,Consultants and other services - Consultants Fees,2023819,202101
Rother District Council,30/03/2021,091HOUSING,Housing and Community Services,20236,Customer Services and Development,D2635,Computer Licences,39.90,Click4Assistance,Computer Licences - Maintenance/Upgrading of Software,2024048,202101
Rother District Council,31/03/2021,041ENVIRON,Environmental Services,32144,EH Environmental Services Admin R + W Partnership,A2203,Training,247.00,Institute of Licensing (Events) Ltd,Training,2023999,202101
Rother District Council,31/03/2021,081ACQUISIT,"Acquisitions, Transformation and Regeneration",20121,Programme and Policy Office,A2203,Training,"2,800.00",The Knowledge Academy,Training,2024046,202101
Rother District Council,31/03/2021,091HOUSING,Housing and Community Services,20236,Customer Services and Development,A2203,Training,700.00,The Knowledge Academy,Training,2024047,202101
Rother District Council,31/03/2021,091HOUSING,Housing and Community Services,20204,Housing Administration Account,A2203,Training,"2,100.00",The Knowledge Academy,Training,2024047,202101
Rother District Council,31/03/2021,031RESOURCES,Chief Executive & Corporate Core,20173,Administrative Offices - Town Hall,E2302,Third party payment private contractors,349.91,Biffa Waste Services Ltd,Third party payment private contractors - Commercial Waste Collection Contract,2023857,202101
Rother District Council,31/03/2021,081ACQUISIT,"Acquisitions, Transformation and Regeneration",20267,Property Investment Strategy - 18-40 Beeching Road ( Land and Buildings),B2422,Sewerage,26.80,Scottish Water Business Stream Limited,Sewerage - Sewerage Charges,2023828,202101
Rother District Council,31/03/2021,091HOUSING,Housing and Community Services,20128,Public Conveniences,B2422,Sewerage,944.02,Scottish Water Business Stream Limited,Sewerage - Sewerage Charges,2023826,202101
Rother District Council,31/03/2021,091HOUSING,Housing and Community Services,20114,Bexhill Parks & Open Spaces,B2422,Sewerage,104.89,Scottish Water Business Stream Limited,Sewerage - Sewerage Charges,2023826,202101
Rother District Council,31/03/2021,091HOUSING,Housing and Community Services,20137,Car Parks,B1100,Repairs to Premises,550.00,REDACTED PERSONAL DATA,Repairs to Premises - White Lining in Car Parks,2023891,202101
Rother District Council,31/03/2021,091HOUSING,Housing and Community Services,20108,Bexhill Promenade & Foreshore,B1100,Repairs to Premises,202.00,Hailsham Roadway Construction Ltd,Repairs to Premises - Specified Repairs and Works listed,2023863,202101
Rother District Council,31/03/2021,091HOUSING,Housing and Community Services,20114,Bexhill Parks & Open Spaces,B1100,Repairs to Premises,"1,020.38",Alfa Electric Ltd,Repairs to Premises - Repairs - Electrical Works,2023888,202101
Rother District Council,31/03/2021,091HOUSING,Housing and Community Services,20107,Camber Beach & Foreshore,B1100,Repairs to Premises,26.50,Rye Hire Ltd,Repairs to Premises - Purchase of Materials - Build Maint,2024008,202101
Rother District Council,31/03/2021,091HOUSING,Housing and Community Services,20128,Public Conveniences,B1100,Repairs to Premises,10.76,Sussex Plumbing Supplies Ltd,Repairs to Premises - Purchase of Materials - Build Maint,2023806,202101
Rother District Council,31/03/2021,091HOUSING,Housing and Community Services,20128,Public Conveniences,B1100,Repairs to Premises,22.03,Graham,Repairs to Premises - Purchase of Materials - Build Maint,2024102,202101
Rother District Council,31/03/2021,091HOUSING,Housing and Community Services,20137,Car Parks,B1100,Repairs to Premises,860.94,Hailsham Roadway Construction Ltd,Repairs to Premises - Car Park Maintenance,2023862,202101
Rother District Council,31/03/2021,091HOUSING,Housing and Community Services,20137,Car Parks,B1100,Repairs to Premises,"4,842.00",Hailsham Roadway Construction Ltd,Repairs to Premises - Car Park Maintenance,2024119,202101
Rother District Council,31/03/2021,091HOUSING,Housing and Community Services,20137,Car Parks,B1100,Repairs to Premises,"1,540.00",Hailsham Roadway Construction Ltd,Repairs to Premises - Car Park Maintenance,2024120,202101
Rother District Council,31/03/2021,081ACQUISIT,"Acquisitions, Transformation and Regeneration",20140,"Housing Policy,Strategy & Dev",A2202,Recruitment expenses,995.00,Ocean Media Group Ltd,Recruitment expenses Advertising Vacant Post,2023919,202101
Rother District Council,31/03/2021,031RESOURCES,Chief Executive & Corporate Core,20162,Electoral Registration,D2416,Stationery ordered internally (Print Room),270.23,Civica Election Services Ltd,Printing by external suppliers - Printing (Not from RDC Print Room),2023832,202101
Rother District Council,31/03/2021,101RESOURCES,Resources,20216,Cost Of Collection,D2626,Postages,"1,058.96",DSI Billing Services Ltd,Postages - DSI Billing,2023836,202102
Rother District Council,31/03/2021,999NOREPORT,Chief Executive & Corporate Core,90000,Resources,P1105,Owed by - Alliance Homes (Rother) Ltd,"1,792.00",Zurich Insurance plc,Owed by - Alliance Homes (Rother) Ltd - purchases,2024171,202101
Rother District Council,31/03/2021,101RESOURCES,Resources,20212,Risk Management/Insurance,D2520,Insurance,"10,640.00",Marsh Ltd,Insurance - Terrorism,2024034,202101
Rother District Council,31/03/2021,091HOUSING,Housing and Community Services,20206,Syrians,D2513,Hired and Contracted services,"1,546.27",247 Transport Solutions Ltd,Hired and contracted services - Syrian Resettlement Programme-Travel,2023899,202101
Rother District Council,31/03/2021,041ENVIRON,Environmental Services,32142,EH Taxi and Private Hire Licenses R + W Partnership,D2513,Hired and Contracted services,120.00,DBS The Disclosure and Barring Service,Hired and contracted services - Service fee paid,2023916,202101
Rother District Council,31/03/2021,091HOUSING,Housing and Community Services,20145,Maintenance Services,D2513,Hired and Contracted services,150.00,Hailsham Roadway Construction Ltd,Hired and contracted services - Service fee paid,2023920,202101
Rother District Council,31/03/2021,101RESOURCES,Resources,20216,Cost Of Collection,D2513,Hired and Contracted services,500.00,Inform CPI Ltd,Hired and contracted services - RV Finder,2023859,202102
Rother District Council,31/03/2021,101RESOURCES,Resources,20216,Cost Of Collection,D2513,Hired and Contracted services,"1,501.30",DSI Billing Services Ltd,Hired and contracted services - RV Finder,2024021,202102
Rother District Council,31/03/2021,071STRAT,Strategy and Planning,20253,Conservation & Preservation,D2513,Hired and Contracted services,"1,000.00",Sussex Wildlife Trust,Hired and contracted services - Plan-Ecological Advice,2024017,202101
Rother District Council,31/03/2021,041ENVIRON,Environmental Services,32134,EH Pollution R + W Partnership,D2513,Hired and Contracted services,"1,722.00",REDACTED PERSONAL DATA,Hired and contracted services - Parks-Public Health Burials,2023886,202101
Rother District Council,31/03/2021,031RESOURCES,Chief Executive & Corporate Core,20171,Human Resources,D2513,Hired and Contracted services,"1,650.00",REDACTED PERSONAL DATA,Hired and contracted services - Legal Advice,2024748,202102
Rother District Council,31/03/2021,999NOREPORT,"Acquisitions, Transformation and Regeneration",70725,Capital - Blackfriars,D2513,Hired and Contracted services,390.00,Bevan Brittan LLP,Hired and contracted services - Legal Advice,2023885,202101
Rother District Council,31/03/2021,999NOREPORT,"Acquisitions, Transformation and Regeneration",70725,Capital - Blackfriars,D2513,Hired and Contracted services,"1,058.00",Bevan Brittan LLP,Hired and contracted services - Legal Advice,2023996,202101
Rother District Council,31/03/2021,999NOREPORT,"Acquisitions, Transformation and Regeneration",70725,Capital - Blackfriars,D2513,Hired and Contracted services,"4,796.50",Bevan Brittan LLP,Hired and contracted services - Legal Advice,2024751,202102
Rother District Council,31/03/2021,999NOREPORT,"Acquisitions, Transformation and Regeneration",70725,Capital - Blackfriars,D2513,Hired and Contracted services,18.00,Bevan Brittan LLP,Hired and contracted services - Legal Advice,2024751,202102
Rother District Council,31/03/2021,081ACQUISIT,"Acquisitions, Transformation and Regeneration",20154,Committee Property Account,D2513,Hired and Contracted services,320.00,REDACTED PERSONAL DATA,Hired and contracted services - Hire of Skip,2023917,202101
Rother District Council,31/03/2021,101RESOURCES,Resources,20222,Accountancy,D2513,Hired and Contracted services,"2,547.37",Embridge Consulting (UK) Ltd,Hired and contracted services - Consultancy Service per Contract,2023990,202101
Rother District Council,31/03/2021,091HOUSING,Housing and Community Services,20137,Car Parks,D2513,Hired and Contracted services,"1,872.00",Jade Security Services Ltd,Hired and contracted services - Cash Security Fees-Car Parks,2024011,202101
Rother District Council,31/03/2021,091HOUSING,Housing and Community Services,20137,Car Parks,D2513,Hired and Contracted services,"18,204.90",Flowbird Smart City UK Ltd,Hired and contracted services - Car Parks-CALE Online Software Service for ticket machines,2023887,202101
Rother District Council,31/03/2021,101RESOURCES,Resources,20209,Corporate management,D2513,Hired and Contracted services,568.94,allpay.net Ltd,Hired and contracted services - Allpay Card/Rep/Let Chrg - Vatable,2024850,202102
Rother District Council,31/03/2021,101RESOURCES,Resources,20209,Corporate management,D2513,Hired and Contracted services,17.44,allpay.net Ltd,Hired and contracted services - Allpay Card/Rep/Let Chrg - Vatable,2024851,202102
Rother District Council,31/03/2021,101RESOURCES,Resources,20209,Corporate management,D2513,Hired and Contracted services,18.67,allpay.net Ltd,Hired and contracted services - Allpay Card/Rep/Let Chrg - Vatable,2024852,202102
Rother District Council,31/03/2021,101RESOURCES,Resources,20209,Corporate management,D2513,Hired and Contracted services,11.92,allpay.net Ltd,Hired and contracted services - Allpay Card/Rep/Let Chrg - Vatable,2024853,202102
Rother District Council,31/03/2021,101RESOURCES,Resources,20241,Stationery,D2420,General office supplies (Stationery purchased from ext suppliers),109.20,Lyreco UK Limited,General office supplies - Stationery (Stationery Services to buy ONLY),2023843,202101
Rother District Council,31/03/2021,101RESOURCES,Resources,20241,Stationery,D2420,General office supplies (Stationery purchased from ext suppliers),45.60,Lyreco UK Limited,General office supplies - Stationery (Stationery Services to buy ONLY),2023844,202101
Rother District Council,31/03/2021,081ACQUISIT,"Acquisitions, Transformation and Regeneration",20266,Property Investment Strategy,B2202,Gas,22.71,Southern Electric (SSE),Gas - Gas Charges,2024389,202101
Rother District Council,31/03/2021,091HOUSING,Housing and Community Services,20134,Recycling,D1201,Equipment & Materials,60.00,I.B. Lock & Safe,Equipment & Materials - Purchase of Tools,2023892,202101
Rother District Council,31/03/2021,091HOUSING,Housing and Community Services,20145,Maintenance Services,D1201,Equipment & Materials,4.16,Trade UK Account (Screwfix & B&Q),Equipment & Materials - Purchase of Tools,2023850,202101
Rother District Council,31/03/2021,091HOUSING,Housing and Community Services,20145,Maintenance Services,D1201,Equipment & Materials,166.66,Trade UK Account (Screwfix & B&Q),Equipment & Materials - Purchase of Tools,2023852,202101
Rother District Council,31/03/2021,091HOUSING,Housing and Community Services,20145,Maintenance Services,D1201,Equipment & Materials,12.49,Trade UK Account (Screwfix & B&Q),Equipment & Materials - Purchase of Tools,2023853,202101
Rother District Council,31/03/2021,031RESOURCES,Chief Executive & Corporate Core,20276,COVID19 RDC expenditure,D1201,Equipment & Materials,"1,748.80",Specialist Hygiene Services Ltd,Equipment & Materials - PCs Equipment,2023994,202101
Rother District Council,31/03/2021,031RESOURCES,Chief Executive & Corporate Core,20276,COVID19 RDC expenditure,D1201,Equipment & Materials,792.00,Hailsham Roadway Construction Ltd,Equipment & Materials - Parks- Playground Equipment,2024118,202101
Rother District Council,31/03/2021,091HOUSING,Housing and Community Services,20114,Bexhill Parks & Open Spaces,D1201,Equipment & Materials,120.00,Bourne Amenity Ltd,Equipment & Materials - Parks - Horticultural Sundries,2023842,202101
Rother District Council,31/03/2021,091HOUSING,Housing and Community Services,20108,Bexhill Promenade & Foreshore,D1201,Equipment & Materials,"2,580.50",E.Y.E. Marine Ltd,Equipment & Materials - Marker Buoys and Signs,2023921,202101
Rother District Council,31/03/2021,041ENVIRON,Environmental Services,32134,EH Pollution R + W Partnership,D1201,Equipment & Materials,730.00,Cirrus Research PLC,Equipment & Materials - EnvH- Pollution Equipment,2023912,202101
Rother District Council,31/03/2021,041ENVIRON,Environmental Services,32134,EH Pollution R + W Partnership,D1201,Equipment & Materials,48.00,Cirrus Research PLC,Equipment & Materials - Carriage/Handling Charge,2023912,202101
Rother District Council,31/03/2021,091HOUSING,Housing and Community Services,20137,Car Parks,D1201,Equipment & Materials,"2,419.50",PW Hire Ltd,Equipment & Materials - Car Parks various,2023914,202101
Rother District Council,31/03/2021,091HOUSING,Housing and Community Services,20261,"TA Purchases (prev - 41 Jameson Mews, Bexhill on Sea)",B2201,Electricity,54.73,British Gas Business (600 Accounts only),Electricity - Electricity Charges,2023913,202101
Rother District Council,31/03/2021,091HOUSING,Housing and Community Services,20107,Camber Beach & Foreshore,C1103,Petrol,1.90,,Derv - Fuel Service fee payable on fuel cards,2024856,202102
Rother District Council,31/03/2021,041ENVIRON,Environmental Services,32136,EH Pest Control R + W Partnership,C1104,Derv,5.70,Allstar Business Solutions,Derv - Fuel Service fee payable on fuel cards,2024856,202102
Rother District Council,31/03/2021,091HOUSING,Housing and Community Services,20145,Maintenance Services,C1104,Derv,1.90,Allstar Business Solutions,Derv - Fuel Service fee payable on fuel cards,2024856,202102
Rother District Council,31/03/2021,091HOUSING,Housing and Community Services,20128,Public Conveniences,B2611,Contract cleaning,"1,260.00",Specialist Hygiene Services Ltd,Contract cleaning - Public Conveniences Cleaning Servic,2024628,202102
Rother District Council,31/03/2021,091HOUSING,Housing and Community Services,20128,Public Conveniences,B2611,Contract cleaning,175.00,Specialist Hygiene Services Ltd,Contract cleaning - Public Conveniences Cleaning Servic,2024694,202102
Rother District Council,31/03/2021,091HOUSING,Housing and Community Services,20128,Public Conveniences,B2611,Contract cleaning,652.50,Specialist Hygiene Services Ltd,Contract cleaning - Public Conveniences Cleaning Servic,2024629,202102
Rother District Council,31/03/2021,091HOUSING,Housing and Community Services,20128,Public Conveniences,B2611,Contract cleaning,"1,035.00",Specialist Hygiene Services Ltd,Contract cleaning - Public Conveniences Cleaning Servic,2024630,202102
Rother District Council,31/03/2021,091HOUSING,Housing and Community Services,20128,Public Conveniences,B2611,Contract cleaning,427.50,Specialist Hygiene Services Ltd,Contract cleaning - Public Conveniences Cleaning Servic,2024631,202102
Rother District Council,31/03/2021,031RESOURCES,Chief Executive & Corporate Core,20175,Administrative Offices - T.H. Annex (NOT CHP),B2611,Contract cleaning,204.00,Abacus Main Ltd,Contract cleaning - Office Cleaning,2024025,202101
Rother District Council,31/03/2021,071STRAT,Strategy and Planning,20246,Planning Applications,D2509,Consultants and Other Services,750.00,Rural Planning Ltd,Consultants and other services - Consultants Fees,2023812,202101
Rother District Council,31/03/2021,081ACQUISIT,"Acquisitions, Transformation and Regeneration",20266,Property Investment Strategy,D2509,Consultants and Other Services,870.00,REDACTED PERSONAL DATA,Consultants and other services - Consultants Fees,2023902,202101
Rother District Council,31/03/2021,101RESOURCES,Resources,20222,Accountancy,D2509,Consultants and Other Services,"5,950.00",Paystream My Max Ltd,Consultants and other services - Consultants Fees,2024010,202101
Rother District Council,31/03/2021,091HOUSING,Housing and Community Services,20261,"TA Purchases (prev - 41 Jameson Mews, Bexhill on Sea)",D2509,Consultants and Other Services,150.00,Amstech Inspections & Testing Ltd,Consultants and other services - Consultants Fees,2023838,202101
Rother District Council,31/03/2021,091HOUSING,Housing and Community Services,20261,"TA Purchases (prev - 41 Jameson Mews, Bexhill on Sea)",D2509,Consultants and Other Services,150.00,Amstech Inspections & Testing Ltd,Consultants and other services - Consultants Fees,2023839,202101
Rother District Council,31/03/2021,091HOUSING,Housing and Community Services,20261,"TA Purchases (prev - 41 Jameson Mews, Bexhill on Sea)",D2509,Consultants and Other Services,150.00,Amstech Inspections & Testing Ltd,Consultants and other services - Consultants Fees,2023840,202101
Rother District Council,31/03/2021,091HOUSING,Housing and Community Services,20261,"TA Purchases (prev - 41 Jameson Mews, Bexhill on Sea)",D2509,Consultants and Other Services,150.00,Amstech Inspections & Testing Ltd,Consultants and other services - Consultants Fees,2023841,202101
Rother District Council,31/03/2021,091HOUSING,Housing and Community Services,20261,"TA Purchases (prev - 41 Jameson Mews, Bexhill on Sea)",D2509,Consultants and Other Services,150.00,Amstech Inspections & Testing Ltd,Consultants and other services - Consultants Fees,2023837,202101
Rother District Council,31/03/2021,091HOUSING,Housing and Community Services,20200,Housing Needs - HB (Housing Benefit),D2635,Computer Licences,"2,625.00",LHS Locata (Housing Services) Ltd,Computer Licences - Maintenance/Upgrading of Software,2024333,202101
Rother District Council,31/03/2021,999NOREPORT,"Acquisitions, Transformation and Regeneration",70737,Capital � Barnhorn Green,N1004,Architects & Consultant Fees,"8,415.00",R H Partnership Architects Ltd,Architects & Consultant Fees Capital-Architect and Conslt Fees,2023889,202101
Rother District Council,31/03/2021,999NOREPORT,"Acquisitions, Transformation and Regeneration",70725,Capital - Blackfriars,N1004,Architects & Consultant Fees,"8,437.77",REDACTED PERSONAL DATA,Architects & Consultant Fees Capital-Architect and Conslt Fees,2023854,202101
Rother District Council,31/03/2021,999NOREPORT,"Acquisitions, Transformation and Regeneration",70725,Capital - Blackfriars,N1004,Architects & Consultant Fees,"2,454.80",REDACTED PERSONAL DATA,Architects & Consultant Fees Capital-Architect and Conslt Fees,2023855,202101
Rother District Council,31/03/2021,091HOUSING,Housing and Community Services,20107,Camber Beach & Foreshore,C1103,Petrol,56.43,,Petrol,2024856,202102
Rother District Council,31/03/2021,041ENVIRON,Environmental Services,32136,EH Pest Control R + W Partnership,C1104,Derv,38.34,Allstar Business Solutions,Derv,2024856,202102
Rother District Council,31/03/2021,041ENVIRON,Environmental Services,32136,EH Pest Control R + W Partnership,C1104,Derv,43.84,Allstar Business Solutions,Derv,2024856,202102
Rother District Council,31/03/2021,041ENVIRON,Environmental Services,32136,EH Pest Control R + W Partnership,C1104,Derv,45.14,Allstar Business Solutions,Derv,2024856,202102
Rother District Council,31/03/2021,091HOUSING,Housing and Community Services,20108,Bexhill Promenade & Foreshore,B2611,Contract cleaning,126.00,Abacus Main Ltd,Contract cleaning,2023915,202101
Rother District Council,31/03/2021,091HOUSING,Housing and Community Services,20200,Housing Needs - HB (Housing Benefit),D2514,Accommodation Costs,52.50,Solutions Accommodation Providers Ltd,Accommodation Costs,2023904,202101
Rother District Council,31/03/2021,091HOUSING,Housing and Community Services,20200,Housing Needs - HB (Housing Benefit),D2514,Accommodation Costs,210.00,Solutions Accommodation Providers Ltd,Accommodation Costs,2023904,202101
Rother District Council,31/03/2021,091HOUSING,Housing and Community Services,20329,Rough Sleeping Initiative,D2513,Hired and Contracted services,274.30,Town Taxis,Hired and Contracted services,2024033,202101
Rother District Council,31/03/2021,091HOUSING,Housing and Community Services,20329,Rough Sleeping Initiative,D2514,Accommodation Costs,"1,209.00",LESSHOMELESS LTD,Accommodation Costs,2023901,202101
Rother District Council,31/03/2021,091HOUSING,Housing and Community Services,20200,Housing Needs - HB (Housing Benefit),D2514,Accommodation Costs,"1,209.00",LESSHOMELESS LTD,Accommodation Costs,2023901,202101
Rother District Council,31/03/2021,091HOUSING,Housing and Community Services,20200,Housing Needs - HB (Housing Benefit),D2514,Accommodation Costs,900.00,Solutions Accommodation Providers Ltd,Accommodation Costs,2023903,202101
Rother District Council,31/03/2021,091HOUSING,Housing and Community Services,20329,Rough Sleeping Initiative,D2513,Hired and Contracted services,62.48,247 Transport Solutions Ltd,Hired and Contracted services,2023900,202101
Rother District Council,31/03/2021,091HOUSING,Housing and Community Services,20145,Maintenance Services,C1104,Derv,75.83,Allstar Business Solutions,Derv,2024856,202102
Rother District Council,31/03/2021,091HOUSING,Housing and Community Services,20145,Maintenance Services,C1104,Derv,70.83,Allstar Business Solutions,Derv,2024856,202102
Rother District Council,01/04/2021,031RESOURCES,Chief Executive & Corporate Core,20171,Human Resources,A2203,Training,751.90,Croner-I,Training,2025032,202103
Rother District Council,01/04/2021,091HOUSING,Housing and Community Services,20125,Coast Protection,E2302,Third party payment private contractors,400.00,REDACTED PERSONAL DATA,Third party payment private contractors - Fairlight Compressor Maintenance Contract,2023849,202101
Rother District Council,01/04/2021,031RESOURCES,Chief Executive & Corporate Core,20182,Legal Services,E1101,Third party payment other LAs,"194,550.00",Wealden District Council,Third party payment other LAs - shared service legal management fee,2023884,202101
Rother District Council,01/04/2021,101RESOURCES,Resources,20242,Communications-Phones,D2621,Telephones,980.07,KCOM Group Plc,Telephones - KCOM Smartnumber Charges,2023938,202101
Rother District Council,01/04/2021,101RESOURCES,Resources,20242,Communications-Phones,D2621,Telephones,"9,916.14",KCOM Group Plc,Telephones - KCOM Smartnumber Charges,2023939,202101
Rother District Council,01/04/2021,101RESOURCES,Resources,20242,Communications-Phones,D2621,Telephones,26.00,KCOM Group Plc,Telephones - KCOM Smartnumber Charges,2023945,202101
Rother District Council,01/04/2021,091HOUSING,Housing and Community Services,20107,Camber Beach & Foreshore,D2621,Telephones,50.95,Beaming Ltd,Telephones - Broadband Connection,2025185,202103
Rother District Council,01/04/2021,091HOUSING,Housing and Community Services,20235,Rye Community Help Point,D2621,Telephones,50.95,Beaming Ltd,Telephones - Broadband Connection,2025185,202103
Rother District Council,01/04/2021,091HOUSING,Housing and Community Services,20123,Cemeteries,D2922,Subscriptions,455.00,Institute of Cemetery and Crematorium  Management,Subscriptions - Parks- Subscriptions,2025295,202103
Rother District Council,01/04/2021,091HOUSING,Housing and Community Services,20125,Coast Protection,A2202,Recruitment expenses,731.40,JPIMedia Publishing Ltd,Recruitment expenses Advertising Vacant Post,2023928,202101
Rother District Council,01/04/2021,101RESOURCES,Resources,20222,Accountancy,A2202,Recruitment expenses,771.00,JPIMedia Publishing Ltd,Recruitment expenses Advertising Vacant Post,2023927,202101
Rother District Council,01/04/2021,101RESOURCES,Resources,20240,Printing Services,D2417,Photocopy Paper by external suppliers,194.18,Premier Paper Group Ltd,Photocopy Paper by external suppliers - White,2023931,202101
Rother District Council,01/04/2021,101RESOURCES,Resources,20240,Printing Services,D2638,Photocopier Contracts,288.15,Canon (UK) Ltd,Photocopier Contracts,2023858,202101
Rother District Council,01/04/2021,121PRECEPTS,Precepts,42203,Parish Precepts,F1201,Parish precepts,"6,550.00",Mountfield Parish Council,Parish precepts,2024487,202102
Rother District Council,01/04/2021,121PRECEPTS,Precepts,42203,Parish Precepts,F1201,Parish precepts,"47,500.00",Northiam Parish Council,Parish precepts,2024488,202102
Rother District Council,01/04/2021,121PRECEPTS,Precepts,42203,Parish Precepts,F1201,Parish precepts,"18,500.00",Peasmarsh Parish Council,Parish precepts,2024489,202102
Rother District Council,01/04/2021,121PRECEPTS,Precepts,42203,Parish Precepts,F1201,Parish precepts,"11,500.00",Pett Parish Council,Parish precepts,2024490,202102
Rother District Council,01/04/2021,121PRECEPTS,Precepts,42203,Parish Precepts,F1201,Parish precepts,"2,500.00",Playden Parish Council,Parish precepts,2024491,202102
Rother District Council,01/04/2021,121PRECEPTS,Precepts,42203,Parish Precepts,F1201,Parish precepts,"86,588.00",Rye Town Council,Parish precepts,2024492,202102
Rother District Council,01/04/2021,121PRECEPTS,Precepts,42203,Parish Precepts,F1201,Parish precepts,"28,592.00",Sedlescombe Parish Council,Parish precepts,2024493,202102
Rother District Council,01/04/2021,121PRECEPTS,Precepts,42203,Parish Precepts,F1201,Parish precepts,"14,115.50",Crowhurst Parish Council,Parish precepts,2024494,202102
Rother District Council,01/04/2021,121PRECEPTS,Precepts,42203,Parish Precepts,F1201,Parish precepts,"49,185.00",Salehurst and Robertsbridge Parish Council,Parish precepts,2024495,202102
Rother District Council,01/04/2021,121PRECEPTS,Precepts,42203,Parish Precepts,F1201,Parish precepts,"73,990.00",Ticehurst Parish Council,Parish precepts,2024496,202102
Rother District Council,01/04/2021,121PRECEPTS,Precepts,42203,Parish Precepts,F1201,Parish precepts,"3,500.00",Udimore Parish Council,Parish precepts,2024497,202102
Rother District Council,01/04/2021,121PRECEPTS,Precepts,42203,Parish Precepts,F1201,Parish precepts,"22,670.50",Westfield Parish Council,Parish precepts,2024498,202102
Rother District Council,01/04/2021,121PRECEPTS,Precepts,42203,Parish Precepts,F1201,Parish precepts,"3,550.00",Whatlington Parish Council,Parish precepts,2024499,202102
Rother District Council,01/04/2021,121PRECEPTS,Precepts,42203,Parish Precepts,F1201,Parish precepts,"1,000.00",Rye Foreign Parish Council,Parish precepts,2024500,202102
Rother District Council,01/04/2021,121PRECEPTS,Precepts,42203,Parish Precepts,F1201,Parish precepts,"5,275.00",Bodiam Parish Council,Parish precepts,2024473,202102
Rother District Council,01/04/2021,121PRECEPTS,Precepts,42203,Parish Precepts,F1201,Parish precepts,"18,587.50",Brede Parish Council,Parish precepts,2024474,202102
Rother District Council,01/04/2021,121PRECEPTS,Precepts,42203,Parish Precepts,F1201,Parish precepts,"3,753.00",Brightling Parish Council,Parish precepts,2024475,202102
Rother District Council,01/04/2021,121PRECEPTS,Precepts,42203,Parish Precepts,F1201,Parish precepts,"44,080.05",Burwash Parish Council,Parish precepts,2024476,202102
Rother District Council,01/04/2021,121PRECEPTS,Precepts,42203,Parish Precepts,F1201,Parish precepts,"33,424.50",Camber Parish Council,Parish precepts,2024477,202102
Rother District Council,01/04/2021,121PRECEPTS,Precepts,42203,Parish Precepts,F1201,Parish precepts,"13,000.00",Catsfield Parish Council,Parish precepts,2024478,202102
Rother District Council,01/04/2021,121PRECEPTS,Precepts,42203,Parish Precepts,F1201,Parish precepts,"4,217.50",Dallington Parish Council,Parish precepts,2024479,202102
Rother District Council,01/04/2021,121PRECEPTS,Precepts,42203,Parish Precepts,F1201,Parish precepts,"38,000.00",Etchingham Parish Council,Parish precepts,2024480,202102
Rother District Council,01/04/2021,121PRECEPTS,Precepts,42203,Parish Precepts,F1201,Parish precepts,"35,067.00",Ewhurst Parish Council,Parish precepts,2024481,202102
Rother District Council,01/04/2021,121PRECEPTS,Precepts,42203,Parish Precepts,F1201,Parish precepts,"31,500.00",Fairlight Parish Council,Parish precepts,2024482,202102
Rother District Council,01/04/2021,121PRECEPTS,Precepts,42203,Parish Precepts,F1201,Parish precepts,"4,250.00",Guestling Parish Council,Parish precepts,2024483,202102
Rother District Council,01/04/2021,121PRECEPTS,Precepts,42203,Parish Precepts,F1201,Parish precepts,"21,717.50",Hurst Green Parish Council,Parish precepts,2024484,202102
Rother District Council,01/04/2021,121PRECEPTS,Precepts,42203,Parish Precepts,F1201,Parish precepts,"56,887.50",Icklesham Parish Council,Parish precepts,2024485,202102
Rother District Council,01/04/2021,121PRECEPTS,Precepts,42203,Parish Precepts,F1201,Parish precepts,"8,000.00",Iden Parish Council,Parish precepts,2024486,202102
Rother District Council,01/04/2021,121PRECEPTS,Precepts,42203,Parish Precepts,F1201,Parish precepts,"6,303.50",Ashburnham and  Penhurst Parish Council,Parish precepts,2024470,202102
Rother District Council,01/04/2021,121PRECEPTS,Precepts,42203,Parish Precepts,F1201,Parish precepts,"184,415.00",Battle Town Council,Parish precepts,2024471,202102
Rother District Council,01/04/2021,121PRECEPTS,Precepts,42203,Parish Precepts,F1201,Parish precepts,"11,500.00",Beckley Parish Council,Parish precepts,2024472,202102
Rother District Council,01/04/2021,101RESOURCES,Resources,20242,Communications-Phones,D2622,Mobile Phones,780.78,Telefonica UK Ltd,Mobile Phones - Purchase of mobile phones,2024599,202102
Rother District Council,01/04/2021,091HOUSING,Housing and Community Services,20206,Syrians,D2513,Hired and Contracted services,"3,024.48",REDACTED PERSONAL DATA,Hired and contracted services - Syrian-Education-Exempt VAT,2023950,202101
Rother District Council,01/04/2021,101RESOURCES,Resources,20209,Corporate management,D2513,Hired and Contracted services,20.09,Merchant Rentals Ltd,Hired and contracted services - Streamline Machine-Rental,2024513,202102
Rother District Council,01/04/2021,031RESOURCES,Chief Executive & Corporate Core,20276,COVID19 RDC expenditure,D2513,Hired and Contracted services,378.41,Specialist Hygiene Services Ltd,Hired and contracted services - Service fees paid relating to Covid-19,2023993,202101
Rother District Council,01/04/2021,081ACQUISIT,"Acquisitions, Transformation and Regeneration",20153,"Elva Business Centre, Bexhill",D2513,Hired and Contracted services,459.00,GT Access Ltd,Hired and contracted services - Service fee paid,2024695,202102
Rother District Council,01/04/2021,081ACQUISIT,"Acquisitions, Transformation and Regeneration",20153,"Elva Business Centre, Bexhill",D2513,Hired and Contracted services,10.80,GT Access Ltd,Hired and contracted services - Service fee paid,2024695,202102
Rother District Council,01/04/2021,031RESOURCES,Chief Executive & Corporate Core,20173,Administrative Offices - Town Hall,D2513,Hired and Contracted services,262.65,Clearwater Technology Ltd,Hired and contracted services - Legionella Sampling and Monitoring,2024603,202102
Rother District Council,01/04/2021,031RESOURCES,Chief Executive & Corporate Core,20176,Administrative Offices - Print Room,D2513,Hired and Contracted services,262.65,Clearwater Technology Ltd,Hired and contracted services - Legionella Sampling and Monitoring,2024603,202102
Rother District Council,01/04/2021,071STRAT,Strategy and Planning,20246,Planning Applications,D2513,Hired and Contracted services,3.00,H M Land Registry,Hired and contracted services - Land Registry-Planning,2024540,202102
Rother District Council,01/04/2021,071STRAT,Strategy and Planning,20258,BC Dangerous Structures H+R Partnership,D2513,Hired and Contracted services,3.00,H M Land Registry,Hired and contracted services - Env H-Land Registry,2024540,202102
Rother District Council,01/04/2021,041ENVIRON,Environmental Services,32144,EH Environmental Services Admin R + W Partnership,D2513,Hired and Contracted services,6.00,H M Land Registry,Hired and contracted services - Env H-Land Registry,2024540,202102
Rother District Council,01/04/2021,101RESOURCES,Resources,20216,Cost Of Collection,D2513,Hired and Contracted services,30.00,H M Land Registry,Hired and contracted services - Council Tax-Land Registry Enquiries,2024540,202102
Rother District Council,01/04/2021,091HOUSING,Housing and Community Services,20137,Car Parks,D2513,Hired and Contracted services,"2,446.16",Park Now Ltd,Hired and contracted services - Car Parks-RingGo service charges,2023980,202101
Rother District Council,01/04/2021,091HOUSING,Housing and Community Services,20103,De La Warr Pav-Client,D2923,Grants made,"119,250.00",De La Warr Pavilion Charitable Trust,Grants made - Revenue Grants,2024501,202102
Rother District Council,01/04/2021,031RESOURCES,Chief Executive & Corporate Core,20173,Administrative Offices - Town Hall,D2513,Hired and Contracted services,226.59,Wealden and Eastbourne Lifeline,Equipment & Materials - Purchase of Tools,2024130,202102
Rother District Council,01/04/2021,091HOUSING,Housing and Community Services,20261,"TA Purchases (prev - 41 Jameson Mews, Bexhill on Sea)",B2201,Electricity,48.36,British Gas Business (600 Accounts only),Electricity - Electricity Charges,2023924,202101
Rother District Council,01/04/2021,101RESOURCES,Resources,20229,Internal Drainage Boards,F1202,Drainage board levies,"65,898.00",Romney Marshes Area Internal Drainage Board,Drainage board levies - Romney Marsh Area Internal Drainage,2024502,202102
Rother District Council,01/04/2021,091HOUSING,Housing and Community Services,20128,Public Conveniences,B2611,Contract cleaning,840.07,Specialist Hygiene Services Ltd,Contract cleaning - Public Conveniences Cleaning Servic,2024223,202101
Rother District Council,01/04/2021,091HOUSING,Housing and Community Services,20128,Public Conveniences,B2611,Contract cleaning,743.08,Specialist Hygiene Services Ltd,Contract cleaning - Public Conveniences Cleaning Servic,2024223,202101
Rother District Council,01/04/2021,091HOUSING,Housing and Community Services,20128,Public Conveniences,B2611,Contract cleaning,196.06,Specialist Hygiene Services Ltd,Contract cleaning - Public Conveniences Cleaning Servic,2024223,202101
Rother District Council,01/04/2021,091HOUSING,Housing and Community Services,20128,Public Conveniences,B2611,Contract cleaning,700.01,Specialist Hygiene Services Ltd,Contract cleaning - Public Conveniences Cleaning Servic,2024223,202101
Rother District Council,01/04/2021,091HOUSING,Housing and Community Services,20128,Public Conveniences,B2611,Contract cleaning,504.04,Specialist Hygiene Services Ltd,Contract cleaning - Public Conveniences Cleaning Servic,2024223,202101
Rother District Council,01/04/2021,091HOUSING,Housing and Community Services,20128,Public Conveniences,B2611,Contract cleaning,840.07,Specialist Hygiene Services Ltd,Contract cleaning - Public Conveniences Cleaning Servic,2024223,202101
Rother District Council,01/04/2021,091HOUSING,Housing and Community Services,20128,Public Conveniences,B2611,Contract cleaning,504.04,Specialist Hygiene Services Ltd,Contract cleaning - Public Conveniences Cleaning Servic,2024223,202101
Rother District Council,01/04/2021,091HOUSING,Housing and Community Services,20128,Public Conveniences,B2611,Contract cleaning,615.96,Specialist Hygiene Services Ltd,Contract cleaning - Public Conveniences Cleaning Servic,2024223,202101
Rother District Council,01/04/2021,091HOUSING,Housing and Community Services,20128,Public Conveniences,B2611,Contract cleaning,280.02,Specialist Hygiene Services Ltd,Contract cleaning - Public Conveniences Cleaning Servic,2024223,202101
Rother District Council,01/04/2021,091HOUSING,Housing and Community Services,20128,Public Conveniences,B2611,Contract cleaning,336.03,Specialist Hygiene Services Ltd,Contract cleaning - Public Conveniences Cleaning Servic,2024223,202101
Rother District Council,01/04/2021,091HOUSING,Housing and Community Services,20128,Public Conveniences,B2611,Contract cleaning,588.00,Specialist Hygiene Services Ltd,Contract cleaning - Public Conveniences Cleaning Servic,2024223,202101
Rother District Council,01/04/2021,091HOUSING,Housing and Community Services,20128,Public Conveniences,B2611,Contract cleaning,532.00,Specialist Hygiene Services Ltd,Contract cleaning - Public Conveniences Cleaning Servic,2024223,202101
Rother District Council,01/04/2021,091HOUSING,Housing and Community Services,20128,Public Conveniences,B2611,Contract cleaning,251.98,Specialist Hygiene Services Ltd,Contract cleaning - Public Conveniences Cleaning Servic,2024223,202101
Rother District Council,01/04/2021,091HOUSING,Housing and Community Services,20128,Public Conveniences,B2611,Contract cleaning,559.96,Specialist Hygiene Services Ltd,Contract cleaning - Public Conveniences Cleaning Servic,2024223,202101
Rother District Council,01/04/2021,091HOUSING,Housing and Community Services,20128,Public Conveniences,B2611,Contract cleaning,307.98,Specialist Hygiene Services Ltd,Contract cleaning - Public Conveniences Cleaning Servic,2024223,202101
Rother District Council,01/04/2021,091HOUSING,Housing and Community Services,20128,Public Conveniences,B2611,Contract cleaning,504.04,Specialist Hygiene Services Ltd,Contract cleaning - Public Conveniences Cleaning Servic,2024223,202101
Rother District Council,01/04/2021,091HOUSING,Housing and Community Services,20128,Public Conveniences,B2611,Contract cleaning,742.56,Specialist Hygiene Services Ltd,Contract cleaning - Public Conveniences Cleaning Servic,2024223,202101
Rother District Council,01/04/2021,091HOUSING,Housing and Community Services,20128,Public Conveniences,B2611,Contract cleaning,"1,215.52",Specialist Hygiene Services Ltd,Contract cleaning - Public Conveniences Cleaning Servic,2024223,202101
Rother District Council,01/04/2021,091HOUSING,Housing and Community Services,20128,Public Conveniences,B2611,Contract cleaning,472.87,Specialist Hygiene Services Ltd,Contract cleaning - Public Conveniences Cleaning Servic,2024223,202101
Rother District Council,01/04/2021,091HOUSING,Housing and Community Services,20128,Public Conveniences,B2611,Contract cleaning,928.11,Specialist Hygiene Services Ltd,Contract cleaning - Public Conveniences Cleaning Servic,2024223,202101
Rother District Council,01/04/2021,091HOUSING,Housing and Community Services,20128,Public Conveniences,B2611,Contract cleaning,"1,231.27",Specialist Hygiene Services Ltd,Contract cleaning - Public Conveniences Cleaning Servic,2024223,202101
Rother District Council,01/04/2021,091HOUSING,Housing and Community Services,20128,Public Conveniences,B2611,Contract cleaning,"1,231.27",Specialist Hygiene Services Ltd,Contract cleaning - Public Conveniences Cleaning Servic,2024223,202101
Rother District Council,01/04/2021,091HOUSING,Housing and Community Services,20128,Public Conveniences,B2611,Contract cleaning,"1,751.03",Specialist Hygiene Services Ltd,Contract cleaning - Public Conveniences Cleaning Servic,2024223,202101
Rother District Council,01/04/2021,091HOUSING,Housing and Community Services,20128,Public Conveniences,B2611,Contract cleaning,290.70,Specialist Hygiene Services Ltd,Contract cleaning - Public Conveniences Cleaning Servic,2024223,202101
Rother District Council,01/04/2021,091HOUSING,Housing and Community Services,20128,Public Conveniences,B2611,Contract cleaning,387.69,Specialist Hygiene Services Ltd,Contract cleaning - Public Conveniences Cleaning Servic,2024223,202101
Rother District Council,01/04/2021,091HOUSING,Housing and Community Services,20128,Public Conveniences,B2611,Contract cleaning,323.94,Specialist Hygiene Services Ltd,Contract cleaning - Public Conveniences Cleaning Servic,2024223,202101
Rother District Council,01/04/2021,091HOUSING,Housing and Community Services,20128,Public Conveniences,B2611,Contract cleaning,355.39,Specialist Hygiene Services Ltd,Contract cleaning - Public Conveniences Cleaning Servic,2024223,202101
Rother District Council,01/04/2021,091HOUSING,Housing and Community Services,20128,Public Conveniences,B2611,Contract cleaning,387.69,Specialist Hygiene Services Ltd,Contract cleaning - Public Conveniences Cleaning Servic,2024223,202101
Rother District Council,01/04/2021,091HOUSING,Housing and Community Services,20128,Public Conveniences,B2611,Contract cleaning,290.70,Specialist Hygiene Services Ltd,Contract cleaning - Public Conveniences Cleaning Servic,2024223,202101
Rother District Council,01/04/2021,091HOUSING,Housing and Community Services,20128,Public Conveniences,B2611,Contract cleaning,567.62,Specialist Hygiene Services Ltd,Contract cleaning - Public Conveniences Cleaning Servic,2024223,202101
Rother District Council,01/04/2021,071STRAT,Strategy and Planning,20246,Planning Applications,D2509,Consultants and Other Services,"1,950.00",Bespoke Properties Ltd,Consultants and other services - Consultants Fees,2024225,202101
Rother District Council,01/04/2021,101RESOURCES,Resources,20239,Computer Services,D2631,Computer Equip Maintenance,"14,819.00",Centerprise International Limited,Computer Equip Maintenance - Maintenance-File Servers,2023860,202101
Rother District Council,01/04/2021,999NOREPORT,"Acquisitions, Transformation and Regeneration",70702,Capital - De La Warr Pavillion - Capital Grant,N1011,Capital Grants,"14,072.50",De La Warr Pavilion Charitable Trust,Capital Grants - Community Grants Scheme,2024501,202102
Rother District Council,01/04/2021,999NOREPORT,Environmental Services,70706,Capital - Disabled Facilities Grant,N1012,Capital Advances,"2,941.99",Gregory (Kent) Ltd,Capital Advances Disabled Facilities Grant,2023982,202101
Rother District Council,01/04/2021,999NOREPORT,Environmental Services,70706,Capital - Disabled Facilities Grant,N1012,Capital Advances,996.67,Peabody South East Ltd,Capital Advances Disabled Facilities Grant,2023983,202101
Rother District Council,01/04/2021,999NOREPORT,Environmental Services,70706,Capital - Disabled Facilities Grant,N1012,Capital Advances,"6,644.49",Gregory (Kent) Ltd,Capital Advances Disabled Facilities Grant,2023984,202101
Rother District Council,01/04/2021,999NOREPORT,Environmental Services,70706,Capital - Disabled Facilities Grant,N1012,Capital Advances,"4,681.50",Griffin and Son,Capital Advances Disabled Facilities Grant,2023985,202101
Rother District Council,01/04/2021,031RESOURCES,Chief Executive & Corporate Core,20162,Electoral Registration,D1203,Books And Publications,144.00,Thomson Reuters Ltd,Books And Publications - Miscellaneous Legal Reference Books,2023977,202101
Rother District Council,01/04/2021,031RESOURCES,Chief Executive & Corporate Core,20162,Electoral Registration,D1203,Books And Publications,144.00,Thomson Reuters Ltd,Books And Publications - Miscellaneous Legal Reference Books,2023977,202101
Rother District Council,01/04/2021,101RESOURCES,Resources,20209,Corporate management,D2513,Hired and Contracted services,1.86,Lloyds Bank,Bank Charges,2024504,202102
Rother District Council,01/04/2021,101RESOURCES,Resources,20209,Corporate management,D2513,Hired and Contracted services,"1,092.76",Lloyds Bank,Bank Charges,2024505,202102
Rother District Council,01/04/2021,101RESOURCES,Resources,20209,Corporate management,D2513,Hired and Contracted services,"1,933.47",Lloyds Bank,Bank Charges,2024506,202102
Rother District Council,01/04/2021,101RESOURCES,Resources,20209,Corporate management,D2513,Hired and Contracted services,202.70,Lloyds Bank,Bank Charges,2024507,202102
Rother District Council,01/04/2021,101RESOURCES,Resources,20222,Accountancy,A1110,Agency Staff,"1,608.00",Law Morgan Limited,Agency Staff,2025247,202103
Rother District Council,01/04/2021,021CORP,Corporate Services & Human Resources,20164,Parish Council Elections,D2513,Hired and Contracted services,140.00,Beckley Village Hall,Hired and Contracted services,2025531,202103
Rother District Council,01/04/2021,021CORP,Corporate Services & Human Resources,20168,Police Crime Commissioners,D2513,Hired and Contracted services,140.00,Beckley Village Hall,Hired and Contracted services,2025531,202103
Rother District Council,01/04/2021,021CORP,Corporate Services & Human Resources,20168,Police Crime Commissioners,D2513,Hired and Contracted services,125.00,Northiam Village Hall Trust,Hired and Contracted services,2025579,202103
Rother District Council,01/04/2021,021CORP,Corporate Services & Human Resources,20165,ESCC Elections,D2513,Hired and Contracted services,125.00,Northiam Village Hall Trust,Hired and Contracted services,2025579,202103
Rother District Council,01/04/2021,031RESOURCES,Chief Executive & Corporate Core,20180,Emergency Planning,D2621,Telephones,15.82,Daisy Communications PLC,Telephones,2023979,202101
Rother District Council,01/04/2021,091HOUSING,Housing and Community Services,20107,Camber Beach & Foreshore,D2623,Radios and licences,11.92,Radio Relay,Radios and licences,2023932,202101
Rother District Council,01/04/2021,091HOUSING,Housing and Community Services,20102,Rother Museum Services,D2621,Telephones,15.82,Daisy Communications PLC,Telephones,2023979,202101
Rother District Council,01/04/2021,041ENVIRON,Environmental Services,32134,EH Pollution R + W Partnership,D2621,Telephones,15.82,Daisy Communications PLC,Telephones,2023979,202101
Rother District Council,01/04/2021,091HOUSING,Housing and Community Services,20107,Camber Beach & Foreshore,D2621,Telephones,31.65,Daisy Communications PLC,Telephones,2023979,202101
Rother District Council,01/04/2021,091HOUSING,Housing and Community Services,20329,Rough Sleeping Initiative,D2514,Accommodation Costs,60.00,Savoy Court Hotel Ltd,Accommodation Costs,2023845,202101
Rother District Council,01/04/2021,091HOUSING,Housing and Community Services,20329,Rough Sleeping Initiative,D2514,Accommodation Costs,15.00,Savoy Court Hotel Ltd,Accommodation Costs,2023845,202101
Rother District Council,01/04/2021,091HOUSING,Housing and Community Services,20200,Housing Needs - HB (Housing Benefit),D2514,Accommodation Costs,"1,155.00",Paramount Independent Property Services LLP,Accommodation Costs,2024005,202101
Rother District Council,01/04/2021,091HOUSING,Housing and Community Services,20200,Housing Needs - HB (Housing Benefit),D2514,Accommodation Costs,"1,540.00",Paramount Independent Property Services LLP,Accommodation Costs,2024005,202101
Rother District Council,01/04/2021,091HOUSING,Housing and Community Services,20200,Housing Needs - HB (Housing Benefit),D2514,Accommodation Costs,165.00,Paramount Independent Property Services LLP,Accommodation Costs,2024005,202101
Rother District Council,01/04/2021,091HOUSING,Housing and Community Services,20200,Housing Needs - HB (Housing Benefit),D2514,Accommodation Costs,"1,782.50",Imperial Portfolios Ltd,Accommodation Costs,2023929,202101
Rother District Council,01/04/2021,091HOUSING,Housing and Community Services,20200,Housing Needs - HB (Housing Benefit),D2514,Accommodation Costs,"2,092.50",Imperial Portfolios Ltd,Accommodation Costs,2023929,202101
Rother District Council,01/04/2021,091HOUSING,Housing and Community Services,20200,Housing Needs - HB (Housing Benefit),D2514,Accommodation Costs,"1,782.50",Imperial Portfolios Ltd,Accommodation Costs,2023929,202101
Rother District Council,01/04/2021,091HOUSING,Housing and Community Services,20329,Rough Sleeping Initiative,D2514,Accommodation Costs,108.00,Savoy Court Hotel Ltd,Accommodation Costs,2023847,202101
Rother District Council,01/04/2021,091HOUSING,Housing and Community Services,20329,Rough Sleeping Initiative,D2514,Accommodation Costs,27.00,Savoy Court Hotel Ltd,Accommodation Costs,2023847,202101
Rother District Council,01/04/2021,091HOUSING,Housing and Community Services,20329,Rough Sleeping Initiative,D2514,Accommodation Costs,108.00,Savoy Court Hotel Ltd,Accommodation Costs,2023846,202101
Rother District Council,01/04/2021,091HOUSING,Housing and Community Services,20329,Rough Sleeping Initiative,D2514,Accommodation Costs,27.00,Savoy Court Hotel Ltd,Accommodation Costs,2023846,202101
Rother District Council,01/04/2021,091HOUSING,Housing and Community Services,20200,Housing Needs - HB (Housing Benefit),D2514,Accommodation Costs,"2,015.00",Paramount Independent Property Services LLP,Accommodation Costs,2024005,202101
Rother District Council,01/04/2021,091HOUSING,Housing and Community Services,20200,Housing Needs - HB (Housing Benefit),D2514,Accommodation Costs,"2,015.00",Paramount Independent Property Services LLP,Accommodation Costs,2024005,202101
Rother District Council,01/04/2021,091HOUSING,Housing and Community Services,20200,Housing Needs - HB (Housing Benefit),D2514,Accommodation Costs,"1,178.00",Paramount Independent Property Services LLP,Accommodation Costs,2024005,202101
Rother District Council,01/04/2021,091HOUSING,Housing and Community Services,20200,Housing Needs - HB (Housing Benefit),D2514,Accommodation Costs,130.00,Paramount Independent Property Services LLP,Accommodation Costs,2024005,202101
Rother District Council,01/04/2021,091HOUSING,Housing and Community Services,20329,Rough Sleeping Initiative,D2514,Accommodation Costs,40.00,Paramount Independent Property Services LLP,Accommodation Costs,2024005,202101
Rother District Council,01/04/2021,091HOUSING,Housing and Community Services,20329,Rough Sleeping Initiative,D2514,Accommodation Costs,"1,457.00",Paramount Independent Property Services LLP,Accommodation Costs,2024005,202101
Rother District Council,01/04/2021,091HOUSING,Housing and Community Services,20329,Rough Sleeping Initiative,D2514,Accommodation Costs,"1,426.00",Paramount Independent Property Services LLP,Accommodation Costs,2024005,202101
Rother District Council,01/04/2021,091HOUSING,Housing and Community Services,20329,Rough Sleeping Initiative,D2514,Accommodation Costs,"1,457.00",Paramount Independent Property Services LLP,Accommodation Costs,2024005,202101
Rother District Council,01/04/2021,091HOUSING,Housing and Community Services,20329,Rough Sleeping Initiative,D2514,Accommodation Costs,663.00,Paramount Independent Property Services LLP,Accommodation Costs,2024005,202101
Rother District Council,01/04/2021,091HOUSING,Housing and Community Services,20329,Rough Sleeping Initiative,D2514,Accommodation Costs,152.00,Paramount Independent Property Services LLP,Accommodation Costs,2024005,202101
Rother District Council,01/04/2021,091HOUSING,Housing and Community Services,20200,Housing Needs - HB (Housing Benefit),D2514,Accommodation Costs,"7,500.00",Paramount Independent Property Services LLP,Accommodation Costs,2023848,202101
Rother District Council,01/04/2021,101RESOURCES,Resources,20242,Communications-Phones,D2621,Telephones,79.72,Daisy Communications PLC,Telephones,2023979,202101
Rother District Council,01/04/2021,101RESOURCES,Resources,20239,Computer Services,D2621,Telephones,31.64,Daisy Communications PLC,Telephones,2023979,202101
Rother District Council,02/04/2021,101RESOURCES,Resources,20242,Communications-Phones,D2621,Telephones,26.66,TalkTalk Communications Ltd T/A TalkTalk Business,Telephones - Telephone Call Costs+Line Rental,2024930,202102
Rother District Council,02/04/2021,091HOUSING,Housing and Community Services,20128,Public Conveniences,B2422,Sewerage,38.83,Scottish Water Business Stream Limited,Sewerage - Sewerage Charges,2023827,202101
Rother District Council,02/04/2021,091HOUSING,Housing and Community Services,20107,Camber Beach & Foreshore,D2623,Radios and licences,75.00,Ofcom - Radio Licence Fees,Radios and licences - Radio/Transmitter Licences,2024614,202102
Rother District Council,02/04/2021,091HOUSING,Housing and Community Services,20206,Syrians,D2513,Hired and Contracted services,225.00,Milburn Psychology Practice,Hired and contracted services - Syrian Misc,2024004,202101
Rother District Council,02/04/2021,081ACQUISIT,"Acquisitions, Transformation and Regeneration",20153,"Elva Business Centre, Bexhill",B1100,Repairs to Premises,138.40,J M Waste Management Limited,Contract cleaning - Office Cleaning,2024240,202101
Rother District Council,02/04/2021,091HOUSING,Housing and Community Services,20329,Rough Sleeping Initiative,D2514,Accommodation Costs,413.00,Lillybank Homes Ltd,Accommodation Costs,2024002,202101
Rother District Council,02/04/2021,091HOUSING,Housing and Community Services,20200,Housing Needs - HB (Housing Benefit),D2514,Accommodation Costs,413.00,Lillybank Homes Ltd,Accommodation Costs,2024002,202101
Rother District Council,02/04/2021,091HOUSING,Housing and Community Services,20200,Housing Needs - HB (Housing Benefit),D2514,Accommodation Costs,24.99,Lillybank Homes Ltd,Accommodation Costs,2024002,202101
Rother District Council,02/04/2021,091HOUSING,Housing and Community Services,20200,Housing Needs - HB (Housing Benefit),D2514,Accommodation Costs,455.00,Lillybank Homes Ltd,Accommodation Costs,2024002,202101
Rother District Council,02/04/2021,091HOUSING,Housing and Community Services,20200,Housing Needs - HB (Housing Benefit),D2514,Accommodation Costs,24.99,Lillybank Homes Ltd,Accommodation Costs,2024002,202101
Rother District Council,02/04/2021,091HOUSING,Housing and Community Services,20200,Housing Needs - HB (Housing Benefit),D2514,Accommodation Costs,325.00,Lillybank Homes Ltd,Accommodation Costs,2024002,202101
Rother District Council,02/04/2021,091HOUSING,Housing and Community Services,20200,Housing Needs - HB (Housing Benefit),D2514,Accommodation Costs,413.00,Lillybank Homes Ltd,Accommodation Costs,2024002,202101
Rother District Council,02/04/2021,091HOUSING,Housing and Community Services,20200,Housing Needs - HB (Housing Benefit),D2514,Accommodation Costs,455.00,Lillybank Homes Ltd,Accommodation Costs,2024002,202101
Rother District Council,02/04/2021,091HOUSING,Housing and Community Services,20200,Housing Needs - HB (Housing Benefit),D2514,Accommodation Costs,507.50,Lillybank Homes Ltd,Accommodation Costs,2024002,202101
Rother District Council,02/04/2021,091HOUSING,Housing and Community Services,20329,Rough Sleeping Initiative,D2514,Accommodation Costs,455.00,Lillybank Homes Ltd,Accommodation Costs,2024002,202101
Rother District Council,04/04/2021,071STRAT,Strategy and Planning,20246,Planning Applications,D2519,Statutory Advertising,273.60,Reach Publishing Services Ltd,Statutory Advertising - Planadv-Kent+East Sussex Courier,2023949,202101
Rother District Council,04/04/2021,091HOUSING,Housing and Community Services,20137,Car Parks,D2352,Clothing and Uniforms,69.99,SuperStitch 86,Clothing and Uniforms - Mens Uniform-Coat,2023960,202101
Rother District Council,04/04/2021,091HOUSING,Housing and Community Services,20329,Rough Sleeping Initiative,D2514,Accommodation Costs,330.00,REDACTED PERSONAL DATA,Accommodation Costs,2023930,202101
Rother District Council,04/04/2021,091HOUSING,Housing and Community Services,20329,Rough Sleeping Initiative,D2514,Accommodation Costs,350.00,REDACTED PERSONAL DATA,Accommodation Costs,2023930,202101
Rother District Council,04/04/2021,091HOUSING,Housing and Community Services,20329,Rough Sleeping Initiative,D2514,Accommodation Costs,385.00,REDACTED PERSONAL DATA,Accommodation Costs,2023930,202101
Rother District Council,04/04/2021,091HOUSING,Housing and Community Services,20329,Rough Sleeping Initiative,D2514,Accommodation Costs,350.00,REDACTED PERSONAL DATA,Accommodation Costs,2023930,202101
Rother District Council,04/04/2021,091HOUSING,Housing and Community Services,20329,Rough Sleeping Initiative,D2514,Accommodation Costs,385.00,REDACTED PERSONAL DATA,Accommodation Costs,2023930,202101
Rother District Council,04/04/2021,091HOUSING,Housing and Community Services,20329,Rough Sleeping Initiative,D2514,Accommodation Costs,350.00,REDACTED PERSONAL DATA,Accommodation Costs,2023930,202101
Rother District Council,04/04/2021,091HOUSING,Housing and Community Services,20200,Housing Needs - HB (Housing Benefit),D2514,Accommodation Costs,55.00,REDACTED PERSONAL DATA,Accommodation Costs,2023930,202101
Rother District Council,05/04/2021,091HOUSING,Housing and Community Services,20133,Refuse Collection,E2302,Third party payment private contractors,225.00,Sussex Waste Management Ltd,Third party payment private contractors - Waste Management Services Contract,2024162,202101
Rother District Council,05/04/2021,091HOUSING,Housing and Community Services,20133,Refuse Collection,E2302,Third party payment private contractors,470.00,Sussex Waste Management Ltd,Third party payment private contractors - Commercial Waste Collection Contract,2024163,202101
Rother District Council,05/04/2021,041ENVIRON,Environmental Services,32142,EH Taxi and Private Hire Licenses R + W Partnership,D2513,Hired and Contracted services,80.00,uCheck,Hired and contracted services - Service fee paid,2024511,202102
Rother District Council,05/04/2021,041ENVIRON,Environmental Services,32142,EH Taxi and Private Hire Licenses R + W Partnership,D2513,Hired and Contracted services,17.34,uCheck,Hired and contracted services - Service fee paid,2024511,202102
Rother District Council,05/04/2021,091HOUSING,Housing and Community Services,20108,Bexhill Promenade & Foreshore,D1201,Equipment & Materials,"1,950.00",REDACTED PERSONAL DATA,Equipment & Materials - Marker Buoys and Signs,2023856,202101
Rother District Council,05/04/2021,091HOUSING,Housing and Community Services,20200,Housing Needs - HB (Housing Benefit),D2514,Accommodation Costs,390.00,REDACTED PERSONAL DATA,Accommodation Costs - RRP - Homelessness services Temp Accom - No VAT,2023943,202101
Rother District Council,05/04/2021,091HOUSING,Housing and Community Services,20200,Housing Needs - HB (Housing Benefit),D2514,Accommodation Costs,25.00,REDACTED PERSONAL DATA,Accommodation Costs - RRP - Homelessness services Temp Accom - No VAT,2023944,202101
Rother District Council,05/04/2021,091HOUSING,Housing and Community Services,20329,Rough Sleeping Initiative,D2514,Accommodation Costs,300.00,Specialist Care UK Group Ltd,Accommodation Costs,2023864,202101
Rother District Council,05/04/2021,091HOUSING,Housing and Community Services,20329,Rough Sleeping Initiative,D2514,Accommodation Costs,20.00,Savoy Court Hotel Ltd,Accommodation Costs,2023946,202101
Rother District Council,05/04/2021,091HOUSING,Housing and Community Services,20329,Rough Sleeping Initiative,D2514,Accommodation Costs,144.00,Savoy Court Hotel Ltd,Accommodation Costs,2023947,202101
Rother District Council,05/04/2021,091HOUSING,Housing and Community Services,20329,Rough Sleeping Initiative,D2514,Accommodation Costs,36.00,Savoy Court Hotel Ltd,Accommodation Costs,2023947,202101
Rother District Council,05/04/2021,091HOUSING,Housing and Community Services,20329,Rough Sleeping Initiative,D2514,Accommodation Costs,144.00,Savoy Court Hotel Ltd,Accommodation Costs,2023948,202101
Rother District Council,05/04/2021,091HOUSING,Housing and Community Services,20329,Rough Sleeping Initiative,D2514,Accommodation Costs,36.00,Savoy Court Hotel Ltd,Accommodation Costs,2023948,202101
Rother District Council,05/04/2021,091HOUSING,Housing and Community Services,20329,Rough Sleeping Initiative,D2514,Accommodation Costs,80.00,Savoy Court Hotel Ltd,Accommodation Costs,2023946,202101
Rother District Council,05/04/2021,091HOUSING,Housing and Community Services,20200,Housing Needs - HB (Housing Benefit),D2514,Accommodation Costs,262.50,Specialist Care UK Group Ltd,Accommodation Costs,2023873,202101
Rother District Council,05/04/2021,091HOUSING,Housing and Community Services,20200,Housing Needs - HB (Housing Benefit),D2514,Accommodation Costs,262.50,Specialist Care UK Group Ltd,Accommodation Costs,2023867,202101
Rother District Council,05/04/2021,091HOUSING,Housing and Community Services,20329,Rough Sleeping Initiative,D2514,Accommodation Costs,175.00,Specialist Care UK Group Ltd,Accommodation Costs,2023870,202101
Rother District Council,05/04/2021,091HOUSING,Housing and Community Services,20329,Rough Sleeping Initiative,D2514,Accommodation Costs,262.50,Specialist Care UK Group Ltd,Accommodation Costs,2023871,202101
Rother District Council,05/04/2021,091HOUSING,Housing and Community Services,20329,Rough Sleeping Initiative,D2514,Accommodation Costs,350.00,Specialist Care UK Group Ltd,Accommodation Costs,2023866,202101
Rother District Council,05/04/2021,091HOUSING,Housing and Community Services,20329,Rough Sleeping Initiative,D2514,Accommodation Costs,350.00,Specialist Care UK Group Ltd,Accommodation Costs,2023869,202101
Rother District Council,05/04/2021,091HOUSING,Housing and Community Services,20329,Rough Sleeping Initiative,D2514,Accommodation Costs,262.50,Specialist Care UK Group Ltd,Accommodation Costs,2023868,202101
Rother District Council,05/04/2021,091HOUSING,Housing and Community Services,20200,Housing Needs - HB (Housing Benefit),D2514,Accommodation Costs,262.50,Specialist Care UK Group Ltd,Accommodation Costs,2023872,202101
Rother District Council,05/04/2021,091HOUSING,Housing and Community Services,20200,Housing Needs - HB (Housing Benefit),D2514,Accommodation Costs,175.00,Specialist Care UK Group Ltd,Accommodation Costs,2023865,202101
Rother District Council,05/04/2021,091HOUSING,Housing and Community Services,20329,Rough Sleeping Initiative,D2514,Accommodation Costs,350.00,Specialist Care UK Group Ltd,Accommodation Costs,2023874,202101
Rother District Council,05/04/2021,091HOUSING,Housing and Community Services,20200,Housing Needs - HB (Housing Benefit),D2514,Accommodation Costs,390.00,REDACTED PERSONAL DATA,Accommodation Costs,2023943,202101
Rother District Council,05/04/2021,091HOUSING,Housing and Community Services,20200,Housing Needs - HB (Housing Benefit),D2514,Accommodation Costs,390.00,REDACTED PERSONAL DATA,Accommodation Costs,2023943,202101
Rother District Council,05/04/2021,091HOUSING,Housing and Community Services,20200,Housing Needs - HB (Housing Benefit),D2514,Accommodation Costs,390.00,REDACTED PERSONAL DATA,Accommodation Costs,2023943,202101
Rother District Council,05/04/2021,091HOUSING,Housing and Community Services,20200,Housing Needs - HB (Housing Benefit),D2514,Accommodation Costs,637.50,Specialist Care UK Group Ltd,Accommodation Costs,2023875,202101
Rother District Council,05/04/2021,091HOUSING,Housing and Community Services,20200,Housing Needs - HB (Housing Benefit),D2514,Accommodation Costs,25.00,REDACTED PERSONAL DATA,Accommodation Costs,2023944,202101
Rother District Council,05/04/2021,091HOUSING,Housing and Community Services,20200,Housing Needs - HB (Housing Benefit),D2514,Accommodation Costs,25.00,REDACTED PERSONAL DATA,Accommodation Costs,2023944,202101
Rother District Council,05/04/2021,091HOUSING,Housing and Community Services,20200,Housing Needs - HB (Housing Benefit),D2514,Accommodation Costs,25.00,REDACTED PERSONAL DATA,Accommodation Costs,2023944,202101
Rother District Council,06/04/2021,091HOUSING,Housing and Community Services,20128,Public Conveniences,B2421,Water,137.21,Castle Water Ltd,Water - Water Charges,2023968,202101
Rother District Council,06/04/2021,101RESOURCES,Resources,20242,Communications-Phones,D2621,Telephones,"2,184.44",KCOM Group Plc,Telephones - KCOM Smartnumber Charges,2023940,202101
Rother District Council,06/04/2021,031RESOURCES,Chief Executive & Corporate Core,20170,Communications-Postages,D2626,Postages,"4,000.00",Pitney Bowes Purchase Power,Stock Accounts Town Hall Franking Machine,2023995,202101
Rother District Council,06/04/2021,031RESOURCES,Chief Executive & Corporate Core,20170,Communications-Postages,D2626,Postages,40.00,Pitney Bowes Purchase Power,Stock Accounts Town Hall Franking Machine,2023995,202101
Rother District Council,06/04/2021,031RESOURCES,Chief Executive & Corporate Core,20170,Communications-Postages,D2626,Postages,0.06,Pitney Bowes Purchase Power,Stock Accounts Town Hall Franking Machine,2023995,202101
Rother District Council,06/04/2021,031RESOURCES,Chief Executive & Corporate Core,20170,Communications-Postages,D2626,Postages,2.38,Pitney Bowes Purchase Power,Stock Accounts Town Hall Franking Machine,2023995,202101
Rother District Council,06/04/2021,091HOUSING,Housing and Community Services,20102,Rother Museum Services,B1100,Repairs to Premises,129.51,Stannah Lift Services Ltd,Repairs to Premises - Specified Repairs and Works listed,2023981,202101
Rother District Council,06/04/2021,091HOUSING,Housing and Community Services,20114,Bexhill Parks & Open Spaces,B1100,Repairs to Premises,"1,850.00",REDACTED PERSONAL DATA,Repairs to Premises - Repairs Guttering,2023957,202101
Rother District Council,06/04/2021,031RESOURCES,Chief Executive & Corporate Core,20173,Administrative Offices - Town Hall,B1100,Repairs to Premises,139.54,Alfa Electric Ltd,Repairs to Premises - Repairs - Electrical Works,2024032,202101
Rother District Council,06/04/2021,081ACQUISIT,"Acquisitions, Transformation and Regeneration",20155,Investment properties,B1100,Repairs to Premises,194.17,Alfa Electric Ltd,Repairs to Premises - Repairs - Electrical Works,2024450,202101
Rother District Council,06/04/2021,081ACQUISIT,"Acquisitions, Transformation and Regeneration",20151,Udimore Workshops,B2311,Rents and service charges,183.75,REDACTED PERSONAL DATA,Rents and service charges - Rents -udimore part unit 3,2023881,202101
Rother District Council,06/04/2021,091HOUSING,Housing and Community Services,20261,"TA Purchases (prev - 41 Jameson Mews, Bexhill on Sea)",D2513,Hired and Contracted services,119.25,Lets 2 Share Limited,Hired and contracted services - Service fee paid,2023942,202101
Rother District Council,06/04/2021,091HOUSING,Housing and Community Services,20261,"TA Purchases (prev - 41 Jameson Mews, Bexhill on Sea)",D2513,Hired and Contracted services,25.43,Lets 2 Share Limited,Hired and contracted services - Service fee paid,2023942,202101
Rother District Council,06/04/2021,091HOUSING,Housing and Community Services,20261,"TA Purchases (prev - 41 Jameson Mews, Bexhill on Sea)",D2513,Hired and Contracted services,25.43,Lets 2 Share Limited,Hired and contracted services - Service fee paid,2023942,202101
Rother District Council,06/04/2021,091HOUSING,Housing and Community Services,20261,"TA Purchases (prev - 41 Jameson Mews, Bexhill on Sea)",D2513,Hired and Contracted services,25.43,Lets 2 Share Limited,Hired and contracted services - Service fee paid,2023942,202101
Rother District Council,06/04/2021,091HOUSING,Housing and Community Services,20261,"TA Purchases (prev - 41 Jameson Mews, Bexhill on Sea)",D2513,Hired and Contracted services,25.43,Lets 2 Share Limited,Hired and contracted services - Service fee paid,2023942,202101
Rother District Council,06/04/2021,091HOUSING,Housing and Community Services,20261,"TA Purchases (prev - 41 Jameson Mews, Bexhill on Sea)",D2513,Hired and Contracted services,25.43,Lets 2 Share Limited,Hired and contracted services - Service fee paid,2023942,202101
Rother District Council,06/04/2021,999NOREPORT,Housing and Community Services,70751,Capital - Temporary Accommodation,D2513,Hired and Contracted services,180.00,Dale Saunders Ltd,Hired and contracted services - Service fee paid,2023970,202101
Rother District Council,06/04/2021,091HOUSING,Housing and Community Services,20123,Cemeteries,D2513,Hired and Contracted services,90.00,REDACTED PERSONAL DATA,Hired and contracted services - Parks-Artist Services for Book Reme,2024226,202101
Rother District Council,06/04/2021,101RESOURCES,Resources,20209,Corporate management,D2513,Hired and Contracted services,880.00,Her Majestys Court Service,Hired and contracted services - Court Costs/Fees,2024622,202102
Rother District Council,06/04/2021,041ENVIRON,Environmental Services,32134,EH Pollution R + W Partnership,D2923,Grants made,"2,100.00",Hastings and Rother Mediation Service,Grants made - Hastings+Rother Mediation Service,2024293,202101
Rother District Council,06/04/2021,091HOUSING,Housing and Community Services,20114,Bexhill Parks & Open Spaces,D1201,Equipment & Materials,206.90,EW Burrow Nursery Ltd t/a English Woodlands,Equipment & Materials - Parks - Horticultural Sundries,2023922,202101
Rother District Council,06/04/2021,091HOUSING,Housing and Community Services,20114,Bexhill Parks & Open Spaces,D1201,Equipment & Materials,"1,007.20",CED Ltd,Equipment & Materials - Parks - Horticultural Sundries,2024059,202101
Rother District Council,06/04/2021,091HOUSING,Housing and Community Services,20145,Maintenance Services,D1201,Equipment & Materials,6.65,Trade UK Account (Screwfix & B&Q),Clothing and Uniforms - Mens Protective-Other,2023988,202101
Rother District Council,06/04/2021,101RESOURCES,Resources,20222,Accountancy,A1110,Agency Staff,"12,730.00",Penna PLC,Agency Staff,2023956,202101
Rother District Council,06/04/2021,031RESOURCES,Chief Executive & Corporate Core,20276,COVID19 RDC expenditure,D2514,Accommodation Costs,246.00,South Down Residential Ltd,Accomodation Costs - Housing Due to Covid 19,2023935,202101
Rother District Council,06/04/2021,031RESOURCES,Chief Executive & Corporate Core,20276,COVID19 RDC expenditure,D2514,Accommodation Costs,57.50,South Down Residential Ltd,Accomodation Costs - Housing Due to Covid 19,2023935,202101
Rother District Council,06/04/2021,031RESOURCES,Chief Executive & Corporate Core,20276,COVID19 RDC expenditure,D2514,Accommodation Costs,92.00,South Down Residential Ltd,Accomodation Costs - Housing Due to Covid 19,2023935,202101
Rother District Council,06/04/2021,031RESOURCES,Chief Executive & Corporate Core,20276,COVID19 RDC expenditure,D2514,Accommodation Costs,23.00,South Down Residential Ltd,Accomodation Costs - Housing Due to Covid 19,2023935,202101
Rother District Council,06/04/2021,031RESOURCES,Chief Executive & Corporate Core,20276,COVID19 RDC expenditure,D2514,Accommodation Costs,188.80,South Down Residential Ltd,Accomodation Costs - Housing Due to Covid 19,2023935,202101
Rother District Council,06/04/2021,031RESOURCES,Chief Executive & Corporate Core,20276,COVID19 RDC expenditure,D2514,Accommodation Costs,47.20,South Down Residential Ltd,Accomodation Costs - Housing Due to Covid 19,2023935,202101
Rother District Council,06/04/2021,041ENVIRON,Environmental Services,20129,Community Safety - CCTV costs only,D2514,Accommodation Costs,695.00,Property Rentals (Sussex) Ltd,Accommodation Costs - Homelessness services Rent in Advance for Homeless,2024214,202101
Rother District Council,06/04/2021,041ENVIRON,Environmental Services,20129,Community Safety - CCTV costs only,D2514,Accommodation Costs,801.00,Property Rentals (Sussex) Ltd,Accommodation Costs - Homelessness services Deposit for Landlords,2024214,202101
Rother District Council,06/04/2021,021CORP,Corporate Services & Human Resources,20164,Parish Council Elections,D2513,Hired and Contracted services,522.57,Shaw and Sons Ltd,Hired and Contracted services,2023978,202101
Rother District Council,06/04/2021,021CORP,Corporate Services & Human Resources,20165,ESCC Elections,D2513,Hired and Contracted services,"1,538.69",Shaw and Sons Ltd,Hired and Contracted services,2023978,202101
Rother District Council,06/04/2021,021CORP,Corporate Services & Human Resources,20168,Police Crime Commissioners,D2513,Hired and Contracted services,"1,846.41",Shaw and Sons Ltd,Hired and Contracted services,2023978,202101
Rother District Council,06/04/2021,031RESOURCES,Chief Executive & Corporate Core,20163,District Council Elections,D2513,Hired and Contracted services,58.07,Shaw and Sons Ltd,Hired and Contracted services,2023978,202101
Rother District Council,06/04/2021,031RESOURCES,Chief Executive & Corporate Core,20276,COVID19 RDC expenditure,D2514,Accommodation Costs,180.00,South Down Residential Ltd,Accommodation Costs,2023935,202101
Rother District Council,06/04/2021,091HOUSING,Housing and Community Services,20200,Housing Needs - HB (Housing Benefit),D2514,Accommodation Costs,129.60,South Down Residential Ltd,Accommodation Costs,2023935,202101
Rother District Council,06/04/2021,091HOUSING,Housing and Community Services,20200,Housing Needs - HB (Housing Benefit),D2514,Accommodation Costs,32.40,South Down Residential Ltd,Accommodation Costs,2023935,202101
Rother District Council,06/04/2021,091HOUSING,Housing and Community Services,20200,Housing Needs - HB (Housing Benefit),D2514,Accommodation Costs,177.60,South Down Residential Ltd,Accommodation Costs,2023935,202101
Rother District Council,06/04/2021,091HOUSING,Housing and Community Services,20200,Housing Needs - HB (Housing Benefit),D2514,Accommodation Costs,44.40,South Down Residential Ltd,Accommodation Costs,2023935,202101
Rother District Council,06/04/2021,091HOUSING,Housing and Community Services,20200,Housing Needs - HB (Housing Benefit),D2514,Accommodation Costs,144.00,South Down Residential Ltd,Accommodation Costs,2023935,202101
Rother District Council,06/04/2021,091HOUSING,Housing and Community Services,20200,Housing Needs - HB (Housing Benefit),D2514,Accommodation Costs,36.00,South Down Residential Ltd,Accommodation Costs,2023935,202101
Rother District Council,06/04/2021,091HOUSING,Housing and Community Services,20200,Housing Needs - HB (Housing Benefit),D2514,Accommodation Costs,196.80,South Down Residential Ltd,Accommodation Costs,2023935,202101
Rother District Council,06/04/2021,091HOUSING,Housing and Community Services,20200,Housing Needs - HB (Housing Benefit),D2514,Accommodation Costs,49.20,South Down Residential Ltd,Accommodation Costs,2023935,202101
Rother District Council,06/04/2021,091HOUSING,Housing and Community Services,20329,Rough Sleeping Initiative,D2514,Accommodation Costs,144.00,South Down Residential Ltd,Accommodation Costs,2023935,202101
Rother District Council,06/04/2021,091HOUSING,Housing and Community Services,20329,Rough Sleeping Initiative,D2514,Accommodation Costs,36.00,South Down Residential Ltd,Accommodation Costs,2023935,202101
Rother District Council,06/04/2021,091HOUSING,Housing and Community Services,20329,Rough Sleeping Initiative,D2514,Accommodation Costs,196.80,South Down Residential Ltd,Accommodation Costs,2023935,202101
Rother District Council,06/04/2021,091HOUSING,Housing and Community Services,20329,Rough Sleeping Initiative,D2514,Accommodation Costs,49.20,South Down Residential Ltd,Accommodation Costs,2023935,202101
Rother District Council,06/04/2021,091HOUSING,Housing and Community Services,20329,Rough Sleeping Initiative,D2514,Accommodation Costs,62.40,South Down Residential Ltd,Accommodation Costs,2023935,202101
Rother District Council,06/04/2021,091HOUSING,Housing and Community Services,20329,Rough Sleeping Initiative,D2514,Accommodation Costs,15.60,South Down Residential Ltd,Accommodation Costs,2023935,202101
Rother District Council,06/04/2021,091HOUSING,Housing and Community Services,20329,Rough Sleeping Initiative,D2514,Accommodation Costs,86.40,South Down Residential Ltd,Accommodation Costs,2023935,202101
Rother District Council,06/04/2021,091HOUSING,Housing and Community Services,20329,Rough Sleeping Initiative,D2514,Accommodation Costs,21.60,South Down Residential Ltd,Accommodation Costs,2023935,202101
Rother District Council,06/04/2021,091HOUSING,Housing and Community Services,20329,Rough Sleeping Initiative,D2514,Accommodation Costs,62.40,South Down Residential Ltd,Accommodation Costs,2023935,202101
Rother District Council,06/04/2021,091HOUSING,Housing and Community Services,20329,Rough Sleeping Initiative,D2514,Accommodation Costs,15.60,South Down Residential Ltd,Accommodation Costs,2023935,202101
Rother District Council,06/04/2021,091HOUSING,Housing and Community Services,20329,Rough Sleeping Initiative,D2514,Accommodation Costs,86.40,South Down Residential Ltd,Accommodation Costs,2023935,202101
Rother District Council,06/04/2021,091HOUSING,Housing and Community Services,20329,Rough Sleeping Initiative,D2514,Accommodation Costs,21.60,South Down Residential Ltd,Accommodation Costs,2023935,202101
Rother District Council,06/04/2021,091HOUSING,Housing and Community Services,20329,Rough Sleeping Initiative,D2514,Accommodation Costs,26.00,South Down Residential Ltd,Accommodation Costs,2023935,202101
Rother District Council,06/04/2021,091HOUSING,Housing and Community Services,20200,Housing Needs - HB (Housing Benefit),D2514,Accommodation Costs,129.60,South Down Residential Ltd,Accommodation Costs,2023935,202101
Rother District Council,06/04/2021,091HOUSING,Housing and Community Services,20200,Housing Needs - HB (Housing Benefit),D2514,Accommodation Costs,32.40,South Down Residential Ltd,Accommodation Costs,2023935,202101
Rother District Council,06/04/2021,091HOUSING,Housing and Community Services,20200,Housing Needs - HB (Housing Benefit),D2514,Accommodation Costs,177.60,South Down Residential Ltd,Accommodation Costs,2023935,202101
Rother District Council,06/04/2021,091HOUSING,Housing and Community Services,20200,Housing Needs - HB (Housing Benefit),D2514,Accommodation Costs,44.40,South Down Residential Ltd,Accommodation Costs,2023935,202101
Rother District Council,06/04/2021,091HOUSING,Housing and Community Services,20200,Housing Needs - HB (Housing Benefit),D2514,Accommodation Costs,162.00,South Down Residential Ltd,Accommodation Costs,2023935,202101
Rother District Council,06/04/2021,091HOUSING,Housing and Community Services,20200,Housing Needs - HB (Housing Benefit),D2514,Accommodation Costs,55.50,South Down Residential Ltd,Accommodation Costs,2023935,202101
Rother District Council,06/04/2021,091HOUSING,Housing and Community Services,20200,Housing Needs - HB (Housing Benefit),D2514,Accommodation Costs,133.20,South Down Residential Ltd,Accommodation Costs,2023935,202101
Rother District Council,06/04/2021,091HOUSING,Housing and Community Services,20200,Housing Needs - HB (Housing Benefit),D2514,Accommodation Costs,33.30,South Down Residential Ltd,Accommodation Costs,2023935,202101
Rother District Council,06/04/2021,091HOUSING,Housing and Community Services,20200,Housing Needs - HB (Housing Benefit),D2514,Accommodation Costs,180.00,South Down Residential Ltd,Accommodation Costs,2023935,202101
Rother District Council,06/04/2021,091HOUSING,Housing and Community Services,20200,Housing Needs - HB (Housing Benefit),D2514,Accommodation Costs,246.00,South Down Residential Ltd,Accommodation Costs,2023935,202101
Rother District Council,06/04/2021,091HOUSING,Housing and Community Services,20200,Housing Needs - HB (Housing Benefit),D2514,Accommodation Costs,180.00,South Down Residential Ltd,Accommodation Costs,2023935,202101
Rother District Council,06/04/2021,091HOUSING,Housing and Community Services,20200,Housing Needs - HB (Housing Benefit),D2514,Accommodation Costs,246.00,South Down Residential Ltd,Accommodation Costs,2023935,202101
Rother District Council,06/04/2021,091HOUSING,Housing and Community Services,20200,Housing Needs - HB (Housing Benefit),D2514,Accommodation Costs,54.00,South Down Residential Ltd,Accommodation Costs,2023935,202101
Rother District Council,06/04/2021,091HOUSING,Housing and Community Services,20200,Housing Needs - HB (Housing Benefit),D2514,Accommodation Costs,57.50,South Down Residential Ltd,Accommodation Costs,2023935,202101
Rother District Council,06/04/2021,091HOUSING,Housing and Community Services,20200,Housing Needs - HB (Housing Benefit),D2514,Accommodation Costs,92.00,South Down Residential Ltd,Accommodation Costs,2023935,202101
Rother District Council,06/04/2021,091HOUSING,Housing and Community Services,20200,Housing Needs - HB (Housing Benefit),D2514,Accommodation Costs,23.00,South Down Residential Ltd,Accommodation Costs,2023935,202101
Rother District Council,06/04/2021,091HOUSING,Housing and Community Services,20200,Housing Needs - HB (Housing Benefit),D2514,Accommodation Costs,188.80,South Down Residential Ltd,Accommodation Costs,2023935,202101
Rother District Council,06/04/2021,091HOUSING,Housing and Community Services,20200,Housing Needs - HB (Housing Benefit),D2514,Accommodation Costs,47.20,South Down Residential Ltd,Accommodation Costs,2023935,202101
Rother District Council,06/04/2021,091HOUSING,Housing and Community Services,20329,Rough Sleeping Initiative,D2514,Accommodation Costs,315.00,Roost People Ltd,Accommodation Costs,2023959,202101
Rother District Council,06/04/2021,091HOUSING,Housing and Community Services,20200,Housing Needs - HB (Housing Benefit),D2514,Accommodation Costs,315.00,Roost People Ltd,Accommodation Costs,2023959,202101
Rother District Council,06/04/2021,091HOUSING,Housing and Community Services,20200,Housing Needs - HB (Housing Benefit),D2514,Accommodation Costs,340.00,Roost People Ltd,Accommodation Costs,2023959,202101
Rother District Council,06/04/2021,091HOUSING,Housing and Community Services,20200,Housing Needs - HB (Housing Benefit),D2514,Accommodation Costs,315.00,Roost People Ltd,Accommodation Costs,2023959,202101
Rother District Council,06/04/2021,091HOUSING,Housing and Community Services,20200,Housing Needs - HB (Housing Benefit),D2514,Accommodation Costs,340.00,Roost People Ltd,Accommodation Costs,2023959,202101
Rother District Council,06/04/2021,091HOUSING,Housing and Community Services,20200,Housing Needs - HB (Housing Benefit),D2514,Accommodation Costs,390.00,Coast Holiday Lettings Ltd,Accommodation Costs,2023997,202101
Rother District Council,06/04/2021,091HOUSING,Housing and Community Services,20200,Housing Needs - HB (Housing Benefit),D2514,Accommodation Costs,415.00,Roost People Ltd,Accommodation Costs,2023959,202101
Rother District Council,06/04/2021,091HOUSING,Housing and Community Services,20200,Housing Needs - HB (Housing Benefit),D2514,Accommodation Costs,390.00,Roost People Ltd,Accommodation Costs,2023959,202101
Rother District Council,06/04/2021,091HOUSING,Housing and Community Services,20200,Housing Needs - HB (Housing Benefit),D2514,Accommodation Costs,390.00,Roost People Ltd,Accommodation Costs,2023959,202101
Rother District Council,06/04/2021,091HOUSING,Housing and Community Services,20200,Housing Needs - HB (Housing Benefit),D2514,Accommodation Costs,390.00,Roost People Ltd,Accommodation Costs,2023959,202101
Rother District Council,06/04/2021,091HOUSING,Housing and Community Services,20329,Rough Sleeping Initiative,D2514,Accommodation Costs,390.00,Roost People Ltd,Accommodation Costs,2023959,202101
Rother District Council,06/04/2021,091HOUSING,Housing and Community Services,20200,Housing Needs - HB (Housing Benefit),D2514,Accommodation Costs,415.00,PADA Hanlon Ltd,Accommodation Costs,2023952,202101
Rother District Council,06/04/2021,091HOUSING,Housing and Community Services,20200,Housing Needs - HB (Housing Benefit),D2514,Accommodation Costs,315.00,PADA Hanlon Ltd,Accommodation Costs,2023958,202101
Rother District Council,06/04/2021,091HOUSING,Housing and Community Services,20200,Housing Needs - HB (Housing Benefit),D2514,Accommodation Costs,385.00,Lets 2 Share Limited,Accommodation Costs,2023942,202101
Rother District Council,06/04/2021,091HOUSING,Housing and Community Services,20200,Housing Needs - HB (Housing Benefit),D2514,Accommodation Costs,385.00,Lets 2 Share Limited,Accommodation Costs,2023942,202101
Rother District Council,06/04/2021,091HOUSING,Housing and Community Services,20200,Housing Needs - HB (Housing Benefit),D2514,Accommodation Costs,385.00,Lets 2 Share Limited,Accommodation Costs,2023942,202101
Rother District Council,06/04/2021,091HOUSING,Housing and Community Services,20200,Housing Needs - HB (Housing Benefit),D2514,Accommodation Costs,385.00,Lets 2 Share Limited,Accommodation Costs,2023942,202101
Rother District Council,06/04/2021,091HOUSING,Housing and Community Services,20200,Housing Needs - HB (Housing Benefit),D2514,Accommodation Costs,415.00,47-48 Havelock Road Ltd,Accommodation Costs,2023953,202101
Rother District Council,06/04/2021,101RESOURCES,Resources,20240,Printing Services,D2416,Stationery ordered internally (Print Room),12.50,SBS Consumables,Stationery ordered internally (Print Room),2024188,202101
Rother District Council,06/04/2021,999NOREPORT,"Acquisitions, Transformation and Regeneration",70725,Capital - Blackfriars,N1004,Architects & Consultant Fees,"6,883.00",Bevan Brittan LLP,Architects & Consultant Fees,2025205,202103
Rother District Council,07/04/2021,031RESOURCES,Chief Executive & Corporate Core,20171,Human Resources,A2203,Training,287.50,Solace,Training,2024058,202101
Rother District Council,07/04/2021,091HOUSING,Housing and Community Services,20236,Customer Services and Development,A2203,Training,300.00,HQN Ltd,Training,2023966,202101
Rother District Council,07/04/2021,091HOUSING,Housing and Community Services,20128,Public Conveniences,B2422,Sewerage,330.00,CountyClean Environmental Services Ltd,Sewerage - Sewage/Cesspool Emptying,2023972,202101
Rother District Council,07/04/2021,091HOUSING,Housing and Community Services,20107,Camber Beach & Foreshore,B1100,Repairs to Premises,810.00,William Cooke and Son (Farmers) Ltd,Repairs to Premises - Sand Clearance at Camber,2024060,202101
